Capital or Revenue,Directorate,SERCOP High Level Category,SERCOP Detailed Category,Transaction Number,Date,Service Area,Expenses Type,Amount,Supplier Name
Revenue,Place,Planning services,Environmental Initiatives,5105659221,10.01.2018,East Wight Landscape Partnership,Grants to External Bodies,"2,660.00",REDACTED PERSONAL DATA
Revenue,Adult Services,Adult Social Care,Learning Disab Supp (to be reallocated),5105659738,19.01.2018,Plean Dene,Consumable Cleaning Materials,28,A & M APPLIANCE CARE
Revenue,Adult Services,Adult Social Care,Learning Disab Supp (to be reallocated),5105659194,10.01.2018,31 Carter Avenue,Minor Works,105.52,A & M APPLIANCE CARE
Revenue,Adult Services,Adult Social Care,Central Codes (to be reallocated),5105659259,12.01.2018,Gouldings Resource Centre,Maintenance of Operational Equipment,60,A & M APPLIANCE CARE
Revenue,Adult Services,Adult Social Care,Central Codes (to be reallocated),5105658403,03.01.2018,Gouldings Resource Centre,Consumable Cleaning Materials,190,A & M APPLIANCE CARE
Revenue,Adult Services,Adult Social Care,Central Codes (to be reallocated),5105658741,05.01.2018,Adelaide Resource Centre,Consumable Cleaning Materials,244,A & M APPLIANCE CARE
Revenue,Adult Services,Adult Social Care,Central Codes (to be reallocated),5105659260,10.01.2018,Gouldings Resource Centre,Consumable Cleaning Materials,32,A & M APPLIANCE CARE
Revenue,Adult Services,Adult Social Care,Central Codes (to be reallocated),5105661028,26.01.2018,Adelaide Resource Centre,Consumable Cleaning Materials,230,A & M APPLIANCE CARE
Revenue,Place,Cultural and Related Services,Open Spaces,5105658230,03.01.2018,Other Grounds Maintenance,Payment to Private Contractors,"1,070.00",A GUSTAR T/A IVY TREE CARE
Revenue,Place,Cultural and Related Services,Open Spaces,5105658228,03.01.2018,Tree Felling / Replacement,Payment to Private Contractors,140,A GUSTAR T/A IVY TREE CARE
Revenue,Place,Cultural and Related Services,Open Spaces,5105658225,03.01.2018,Tree Felling / Replacement,Payment to Private Contractors,490,A GUSTAR T/A IVY TREE CARE
Revenue,Place,Cultural and Related Services,Open Spaces,5105660621,24.01.2018,Other Grounds Maintenance,Payment to Private Contractors,265,A GUSTAR T/A IVY TREE CARE
Revenue,Resources,Central Services,Support Services,5105659534,12.01.2018,Litigation Costs,Legal Fees - Other Parties,400,"COLLEGE CHAMBERS, BARRISTERS"
Revenue,Resources,Central Services,Support Services,5105657432,03.01.2018,Litigation Costs,Legal Fees - Other Parties,900,"COLLEGE CHAMBERS, BARRISTERS"
Revenue,Resources,Central Services,Support Services,5105658155,12.01.2018,Litigation Costs,Legal Fees - Other Parties,400,"COLLEGE CHAMBERS, BARRISTERS"
Revenue,Resources,Central Services,Support Services,5105658155,12.01.2018,Litigation Costs,Legal Fees - Other Parties,125,"COLLEGE CHAMBERS, BARRISTERS"
Revenue,Regeneration,Central Services,Support Services,5105658322,10.01.2018,"County Hall,Newport","Refuse Collection, Disposal and Recycling Costs",48,ALAN NEWBERY WASTE MANAGEMENT
Revenue,Childrens Services,Children's & Education Services,Special Schools & Alternative Provision,5105658902,05.01.2018,Island Learning Centre,Schools Catering Contract,252,AMAR EXCLUSIVES
Revenue,Childrens Services,Children's & Education Services,Special Schools & Alternative Provision,5105658943,05.01.2018,Island Learning Centre,Taxis - Contract Hire,144,AMAR EXCLUSIVES
Revenue,Adult Services,Adult Social Care,Central Codes (to be reallocated),5105659242,10.01.2018,Community Outreach,Vehicle Maintenance Costs,286.05,ISLANDWIDE WINDSCREENS
Revenue,Childrens Services,Children's & Education Services,Other Education and Community Budget,5105659174,10.01.2018,Home to School SEN Transport (LA),Taxis - Contract Hire,264,BEACON TAXIS
Revenue,Childrens Services,Children's & Education Services,Family Support Services,5105661153,31.01.2018,Short Breaks,Charges from Independent Providers,421.8,BEBE'CINNO
Revenue,Regeneration,Central Services,Support Services,5105660185,19.01.2018,"Enterprise House, Newport",Grounds Maintenance,225,C & J GROUND MAINTENANCE
Capital,Place,Capital,Capital,5105660183,24.01.2018,Parks and Gardens Capital,Payment to Contractors - Capital,"2,823.55",C & J GROUND MAINTENANCE
Revenue,Regeneration,Housing Services,Other Council Property,5105660186,19.01.2018,Shared Ownership,Grounds Maintenance,375,C & J GROUND MAINTENANCE
Revenue,Childrens Services,Children's & Education Services,Special Schools & Alternative Provision,5105660184,19.01.2018,Workshop Initiative Support in Education,Grounds Maintenance,275,C & J GROUND MAINTENANCE
Revenue,Childrens Services,Children's & Education Services,Other Education and Community Budget,5105658178,10.01.2018,Home to College Post 16 Transport,Taxis - Contract Hire,84,CAROLS TAXIS
Revenue,Childrens Services,Children's & Education Services,Other Education and Community Budget,5105658176,10.01.2018,Home to College Post 16 Transport,Taxis - Contract Hire,192,CAROLS TAXIS
Revenue,Childrens Services,Children's & Education Services,Other Education and Community Budget,5105658177,10.01.2018,Home to College Post 16 Transport,Taxis - Contract Hire,740,CAROLS TAXIS
Revenue,Childrens Services,Children's & Education Services,Other Education and Community Budget,5105659847,31.01.2018,Home to College Post 16 Transport,Taxis - Contract Hire,48,CAROLS TAXIS
Revenue,Childrens Services,Children's & Education Services,Other Education and Community Budget,5105659846,31.01.2018,Home to College Post 16 Transport,Taxis - Contract Hire,420,CAROLS TAXIS
Revenue,Childrens Services,Children's & Education Services,Other Education and Community Budget,5105660044,31.01.2018,Home to College Post 16 Transport,Taxis - Contract Hire,120,CAROLS TAXIS
Revenue,Place,Planning services,Environmental Initiatives,5105660092,19.01.2018,East Wight Landscape Partnership,Consultants Fees,800,REDACTED PERSONAL DATA
Revenue,Childrens Services,Children's & Education Services,Other Education and Community Budget,5105659258,12.01.2018,Home to School SEN Transport (LA),Taxis - Contract Hire,720,CLARES CABS
Revenue,Place,Cultural and Related Services,Open Spaces,5105661071,31.01.2018,Other Grounds Maintenance,Payment to Private Contractors,361.8,C N SERVICES
Revenue,Place,Cultural and Related Services,Open Spaces,5105661069,31.01.2018,Play Areas Health & Safety work,Payment to Private Contractors,"1,099.37",C N SERVICES
Revenue,Place,Environmental & Regulatory Services,Coast Protection,5105661005,26.01.2018,Coast Protection,Payment to Private Contractors,739.35,C N SERVICES
Revenue,Place,Environmental & Regulatory Services,Coast Protection,5105661070,31.01.2018,Coast Protection,Payment to Private Contractors,476.67,C N SERVICES
Revenue,Place,Environmental & Regulatory Services,Coast Protection,5105661068,31.01.2018,Coast Protection,Payment to Private Contractors,107.5,C N SERVICES
Revenue,Place,Environmental & Regulatory Services,Coast Protection,5105661067,31.01.2018,Coast Protection,Payment to Private Contractors,189.9,C N SERVICES
Revenue,Place,Cultural and Related Services,Open Spaces,5105658485,05.01.2018,Play Areas Health & Safety work,Payment to Private Contractors,345.75,C N SERVICES
Revenue,Place,Environmental & Regulatory Services,Service Management and Support Services,5105659548,12.01.2018,Environment officers,Payment to Private Contractors,"1,062.50",REDACTED PERSONAL DATA
Revenue,Regeneration,Planning services,Economic Development,5105656276,10.01.2018,Director of Regeneration,Professional Services,400,REDACTED PERSONAL DATA
Revenue,Adult Services,Adult Social Care,Social Care Activities,5105660711,26.01.2018,DoLS/MCA,Professional Services,200,THE MEMORY SERVICE
Revenue,Adult Services,Adult Social Care,Social Care Activities,5105660715,26.01.2018,DoLS/MCA,Professional Services,200,THE MEMORY SERVICE
Revenue,Adult Services,Adult Social Care,Social Care Activities,5105660714,26.01.2018,DoLS/MCA,Professional Services,200,THE MEMORY SERVICE
Revenue,Adult Services,Adult Social Care,Social Care Activities,5105660713,26.01.2018,DoLS/MCA,Professional Services,200,THE MEMORY SERVICE
Revenue,Adult Services,Adult Social Care,Social Support - Social Isolation/Other,5105658227,03.01.2018,Social Isolation/Other Other ST Support,Charges from Independent Providers,649,EXTRACTA CLEANING
Revenue,Place,Fire & Rescue Services,Fire fighting and Rescue Operations,5105659570,12.01.2018,Bikeability,Catering Purchases,35,FULL SPREAD LIMITED
Revenue,Place,Cultural and Related Services,Recreation and Sport,5105658722,05.01.2018,The Heights,Stock Purchases,47.84,FULL SPREAD LIMITED
Revenue,Place,Cultural and Related Services,Recreation and Sport,5105660765,24.01.2018,The Heights,Stock Purchases,27.85,FULL SPREAD LIMITED
Revenue,Place,Cultural and Related Services,Recreation and Sport,5105660766,24.01.2018,The Heights,Stock Purchases,35.18,FULL SPREAD LIMITED
Revenue,Place,Cultural and Related Services,Recreation and Sport,5105660993,26.01.2018,The Heights,Stock Purchases,16.74,FULL SPREAD LIMITED
Revenue,Place,Cultural and Related Services,Recreation and Sport,5105660994,26.01.2018,The Heights,Stock Purchases,40,FULL SPREAD LIMITED
Revenue,Place,Cultural and Related Services,Recreation and Sport,5105660997,26.01.2018,The Heights,Stock Purchases,14.16,FULL SPREAD LIMITED
Revenue,Childrens Services,Children's & Education Services,Family Support Services,5105658435,03.01.2018,S17 Child Protection,Professional Services,"1,214.38",GARY TAYLOR ASSOCIATES LIMITED
Revenue,Childrens Services,Children's & Education Services,Safeguarding Children/Young Peoples Svs,5105661139,31.01.2018,Court Work & Consultancy Services,Professional Services,384,GARY TAYLOR ASSOCIATES LIMITED
Revenue,Childrens Services,Children's & Education Services,Safeguarding Children/Young Peoples Svs,5105661184,31.01.2018,Court Work & Consultancy Services,Professional Services,253.86,GARY TAYLOR ASSOCIATES LIMITED
Revenue,Childrens Services,Children's & Education Services,Safeguarding Children/Young Peoples Svs,5105661171,31.01.2018,Court Work & Consultancy Services,Professional Services,385.28,GARY TAYLOR ASSOCIATES LIMITED
Revenue,Childrens Services,Children's & Education Services,Other Education and Community Budget,5105660773,24.01.2018,Home to School Mainstream Transport,Taxis - Contract Hire,750,HAYLES TAXIS
Revenue,Childrens Services,Children's & Education Services,Other Education and Community Budget,5105660771,24.01.2018,Home to College Post 16 Transport,Taxis - Contract Hire,510,HAYLES TAXIS
Revenue,Childrens Services,Children's & Education Services,Other Education and Community Budget,5105660772,24.01.2018,Home to College Post 16 Transport,Taxis - Contract Hire,180,HAYLES TAXIS
Revenue,Childrens Services,Children's & Education Services,Other Education and Community Budget,5105660774,24.01.2018,Home to School SEN Transport (LA),Taxis - Contract Hire,600,HAYLES TAXIS
Revenue,Adult Services,Adult Social Care,Social Care Activities,5105659683,17.01.2018,Local Safeguarding Adults Board,Professional Services,"3,300.00",REDACTED PERSONAL DATA
Revenue,Adult Services,Adult Social Care,Social Care Activities,5105659683,17.01.2018,Local Safeguarding Adults Board,Professional Services,199.6,REDACTED PERSONAL DATA
Revenue,Regeneration,Planning services,Economic Development,5105656988,03.01.2018,One Public Estate,Consultants Fees,"2,462.65",INNER CIRCLE CONSULTING LTD
Revenue,Regeneration,Planning services,Economic Development,5105660119,19.01.2018,One Public Estate,Consultants Fees,"3,176.15",INNER CIRCLE CONSULTING LTD
Revenue,Regeneration,Planning services,Economic Development,5105660118,19.01.2018,Director of Regeneration,Consultants Fees,851.5,INNER CIRCLE CONSULTING LTD
Revenue,Regeneration,Planning services,Economic Development,5105659190,10.01.2018,BAE Systems Office Block Regeneration,Consultants Fees,255,ISLAND HIGHWAY & TRANSPORT
Capital,Place,Capital,Capital,5105659825,17.01.2018,Bus Infrastructure,External Design and Supervision Fees,"1,420.00",ISLAND HIGHWAY & TRANSPORT
Capital,Adult Services,Capital,Capital,5105659695,17.01.2018,S106 Capital Projects,External Design and Supervision Fees,600,ISLAND HIGHWAY & TRANSPORT
Revenue,Place,Highways and Transport Services,Management and Support Services,5105653521,17.01.2018,Highways PFI Project,Consultants Fees,"3,630.00",ISLAND HIGHWAY & TRANSPORT
Revenue,Adult Services,Adult Social Care,Learning Disab Supp (to be reallocated),5105658339,03.01.2018,Saxonbury,Cleaning Contracts,33,ISLANDWIDE WINDOW CLEANING
Revenue,Adult Services,Adult Social Care,Learning Disab Supp (to be reallocated),5105658339,03.01.2018,Seagulls,Cleaning Contracts,22,ISLANDWIDE WINDOW CLEANING
Revenue,Adult Services,Adult Social Care,Learning Disab Supp (to be reallocated),5105658339,03.01.2018,40 Venner Avenue,Cleaning Contracts,18,ISLANDWIDE WINDOW CLEANING
Revenue,Adult Services,Adult Social Care,Learning Disab Supp (to be reallocated),5105658339,03.01.2018,Westminster House,Cleaning Contracts,60,ISLANDWIDE WINDOW CLEANING
Revenue,Adult Services,Adult Social Care,Learning Disab Supp (to be reallocated),5105658339,03.01.2018,31 Carter Avenue,Cleaning Contracts,27,ISLANDWIDE WINDOW CLEANING
Revenue,Adult Services,Adult Social Care,Learning Disab Supp (to be reallocated),5105658339,03.01.2018,Plean Dene,Cleaning Contracts,85,ISLANDWIDE WINDOW CLEANING
Revenue,Adult Services,Adult Social Care,Learning Disab Supp (to be reallocated),5105658339,03.01.2018,The Laurels,Cleaning Contracts,27,ISLANDWIDE WINDOW CLEANING
Revenue,Adult Services,Adult Social Care,Learning Disab Supp (to be reallocated),5105658339,03.01.2018,Overbrook,Cleaning Contracts,20,ISLANDWIDE WINDOW CLEANING
Revenue,Resources,Central Services,Support Services,5105658758,10.01.2018,Litigation Costs,Legal Fees - Other Parties,800,"COLLEGE CHAMBERS, BARRISTERS"
Revenue,Resources,Central Services,Support Services,5105658751,05.01.2018,Litigation Costs,Legal Fees - Other Parties,400,"COLLEGE CHAMBERS, BARRISTERS"
Revenue,Adult Services,Adult Social Care,Commissioning & Service Delivery,5105658409,03.01.2018,Learning Disability Homes Management & Admin,Consultants Fees,151.25,JAYNE KILGALLEN INTERIM SOLUTIONS
Revenue,Adult Services,Adult Social Care,Commissioning & Service Delivery,5105658409,03.01.2018,Learning Disability Homes Management & Admin,Consultants Fees,"1,700.00",JAYNE KILGALLEN INTERIM SOLUTIONS
Revenue,Childrens Services,Children's & Education Services,Family Support Services,5105660712,24.01.2018,Short Breaks,Charges from Independent Providers,274,REDACTED PERSONAL DATA
Revenue,Adult Services,Adult Social Care,Central Codes (to be reallocated),5105658237,03.01.2018,Community Outreach,Training,180,JOHN MARSH DRIVING INSTRUCTOR
Revenue,Childrens Services,Children's & Education Services,Children Looked After,5105657429,17.01.2018,Adoption Support Fund,Charges from Independent Providers,100,REDACTED PERSONAL DATA
Revenue,Childrens Services,Children's & Education Services,Other Education and Community Budget,5105660162,31.01.2018,Home to College Post 16 Transport,Taxis - Contract Hire,"1,296.00",REDACTED PERSONAL DATA
Revenue,Childrens Services,Children's & Education Services,Other Education and Community Budget,5105660165,31.01.2018,Home to College Post 16 Transport,Taxis - Contract Hire,"1,152.00",REDACTED PERSONAL DATA
Revenue,Childrens Services,Children's & Education Services,Other Education and Community Budget,5105660721,24.01.2018,Home to College Post 16 Transport,Taxis - Contract Hire,552,REDACTED PERSONAL DATA
Revenue,Place,Cultural and Related Services,Service Management and Support Services,5105658743,05.01.2018,Duke of Edingburgh Award,Professional Services,160,REDACTED PERSONAL DATA
Revenue,Regeneration,Planning services,Economic Development,5105658320,03.01.2018,Newport Young Designers Award,Consultants Fees,"1,000.00",REDACTED PERSONAL DATA
Capital,Resources,Capital,Capital,5105659116,10.01.2018,Corporate Savings_Efficiency,External Design and Supervision Fees,150,LINSCH CONSULTANTS
Capital,Place,Capital,Capital,5105659490,12.01.2018,Fire Capital Projects,Payment to Contractors - Capital,60,LINSCH CONSULTANTS
Capital,Childrens Services,Capital,Capital,5105659114,10.01.2018,Administration and Inspection Schemes,External Design and Supervision Fees,150,LINSCH CONSULTANTS
Revenue,Regeneration,Central Services,Support Services,5105659113,10.01.2018,"County Hall,Newport",Property Services - Day to day Maintenance,150,LINSCH CONSULTANTS
Revenue,Childrens Services,Children's & Education Services,Other Education and Community Budget,5105659112,10.01.2018,Love Lane Primary School,Minor Works,150,LINSCH CONSULTANTS
Revenue,Childrens Services,Children's & Education Services,Special Schools & Alternative Provision,5105659268,10.01.2018,Island Learning Centre,Bought in Prof Services - Curriculum (Schools),"1,375.00",ISLAND EQUUS
Revenue,Childrens Services,Children's & Education Services,Children Looked After,5105658867,05.01.2018,Star Awards,Support Children,130,REDACTED PERSONAL DATA
Revenue,Resources,Central Services,Support Services,5105658750,05.01.2018,Litigation Costs,Legal Fees - Other Parties,300,"COLLEGE CHAMBERS, BARRISTERS"
Revenue,Resources,Central Services,Support Services,5105661138,31.01.2018,Litigation Costs,Legal Fees - Other Parties,600,"COLLEGE CHAMBERS, BARRISTERS"
Revenue,Place,Cultural and Related Services,Open Spaces,5105659456,12.01.2018,Rights of Way Operations,Payment to Private Contractors,"1,600.00",REDACTED PERSONAL DATA
Revenue,Place,Planning services,Environmental Initiatives,5105658946,05.01.2018,WW Landscape Partnership,Payment to Private Contractors,"1,300.00",REDACTED PERSONAL DATA
Capital,Place,Capital,Capital,5105660718,24.01.2018,Rights Of Way Capital Programme,Payment to Contractors - Capital,"1,550.00",REDACTED PERSONAL DATA
Revenue,Childrens Services,Children's & Education Services,Other Education and Community Budget,5105652277,31.01.2018,Home to College Post 16 Transport,Taxis - Contract Hire,"1,440.00",MUSTI'S TAXIS
Revenue,Childrens Services,Children's & Education Services,Other Education and Community Budget,5105652276,31.01.2018,Home to School SEN Transport (LA),Taxis - Contract Hire,"1,700.00",MUSTI'S TAXIS
Revenue,Childrens Services,Children's & Education Services,Children Looked After,5105659096,10.01.2018,Adoption Support Fund,Charges from Independent Providers,350,REDACTED PERSONAL DATA
Revenue,Place,Environmental & Regulatory Services,"Cemetery, Cremation & Mortuary Services",5105660735,24.01.2018,Cemeteries Administration,Grounds Maintenance,720,NIGEL EARLEY SERVICES LTD
Revenue,Place,Cultural and Related Services,Open Spaces,5105659054,10.01.2018,Rights of Way Operations,Payment to Private Contractors,600,NIGEL EARLEY SERVICES LTD
Revenue,Place,Cultural and Related Services,Open Spaces,5105659774,17.01.2018,Rights of Way Operations,Payment to Private Contractors,800,NIGEL EARLEY SERVICES LTD
Revenue,Resources,Central Services,Support Services,5105659091,10.01.2018,Legal Services Section,Sundry Office Expenses,59.97,OD CONSULTANCY LTD
Revenue,Childrens Services,Children's & Education Services,Family Support Services,5105659062,10.01.2018,Short Breaks,Professional Services,80,HAVEN FALCONRY
Revenue,Place,Housing Services,Homelessness,5105660239,24.01.2018,Leaseholds by LA,Accommodation Costs - Leaseholder Payments,695.89,REDACTED PERSONAL DATA
Revenue,Place,Housing Services,Homelessness,5105660239,24.01.2018,Leaseholds by LA,Accommodation Costs - Leaseholder Payments,695.89,REDACTED PERSONAL DATA
Revenue,Place,Housing Services,Homelessness,5105660239,24.01.2018,Leaseholds by LA,Accommodation Costs - Leaseholder Payments,695.89,REDACTED PERSONAL DATA
Revenue,Place,Housing Services,Homelessness,5105660239,24.01.2018,Leaseholds by LA,Accommodation Costs - Leaseholder Payments,695.89,REDACTED PERSONAL DATA
Revenue,Place,Housing Services,Homelessness,5105660239,24.01.2018,Leaseholds by LA,Accommodation Costs - Leaseholder Payments,695.89,REDACTED PERSONAL DATA
Revenue,Place,Highways and Transport Services,"Airports, Harbours & Toll Facilities",5105659608,12.01.2018,Ferry Operation,Operational Equipment,736,PREMIER SOLUTIONS
Revenue,Adult Services,Adult Social Care,Commissioning & Service Delivery,5105659483,12.01.2018,Deferred Payment Fees,Professional Services,150,PRINCIPAL SURVEYORS LTD
Revenue,Adult Services,Adult Social Care,Commissioning & Service Delivery,5105660615,24.01.2018,Deferred Payment Fees,Professional Services,150,PRINCIPAL SURVEYORS LTD
Revenue,Regeneration,Planning services,Business Support,5105661122,31.01.2018,Properties Industrial Estates,Professional Services,600,PRINCIPAL SURVEYORS LTD
Revenue,Adult Services,Adult Social Care,Commissioning & Service Delivery,5105661234,31.01.2018,Deferred Payment Fees,Professional Services,150,PRINCIPAL SURVEYORS LTD
Revenue,Regeneration,Central Services,Support Services,5105661046,31.01.2018,"Guildhall,Newport",Property Services - Planned Maintenance,210,R G PROPERTY SERVICES
Revenue,Adult Services,Adult Social Care,Learning Disability Suppt-adults (18-64),5105659538,12.01.2018,Learning Disability Other LT Care 18-64,Taxis - Contract Hire,20,ROUNSEVELLS TAXIS
Revenue,Adult Services,Adult Social Care,Learning Disability Suppt-adults (18-64),5105658919,10.01.2018,Learning Disability Other LT Care 18-64,Taxis - Contract Hire,400,ROUNSEVELLS TAXIS
Revenue,Adult Services,Adult Social Care,Learning Disability Suppt-adults (18-64),5105658852,10.01.2018,Learning Disability Other LT Care 18-64,Taxis - Contract Hire,200,ROUNSEVELLS TAXIS
Revenue,Adult Services,Adult Social Care,Learning Disability Suppt-adults (18-64),5105660684,24.01.2018,Learning Disability Other LT Care 18-64,Taxis - Contract Hire,360,ROUNSEVELLS TAXIS
Revenue,Resources,Central Services,Support Services,5105658216,03.01.2018,Litigation Costs,Legal Fees - Other Parties,400,"COLLEGE CHAMBERS, BARRISTERS"
Revenue,Childrens Services,Children's & Education Services,Family Support Services,5105660779,26.01.2018,S17 Disabled Children,Support Children,198,SCALLYWAGS FUN CLUB
Capital,Place,Capital,Capital,5105659244,10.01.2018,Cowes Floating Brdge,Payment to Contractors - Capital,"7,050.00",SHORELINE SURVEYS LIMITED
Capital,Place,Capital,Capital,5105658984,10.01.2018,Cowes Floating Brdge,Payment to Contractors - Capital,"6,450.00",SHORELINE SURVEYS LIMITED
Revenue,Adult Services,Adult Social Care,Social Care Activities,5105660744,24.01.2018,DoLS/MCA,Professional Services,"1,843.20",REDACTED PERSONAL DATA
Capital,Place,Capital,Capital,5105658871,05.01.2018,Parks and Gardens Capital,External Design and Supervision Fees,"7,815.00",SOUTH ISLAND ESTATES LTD
Revenue,Childrens Services,Children's & Education Services,Family Support Services,5105660225,24.01.2018,Short Breaks,Charges from Independent Providers,246,SPLAT MESSY PLAY LTD
Revenue,Childrens Services,Children's & Education Services,Management & Support Services,5105659256,10.01.2018,Pupil Premium Managed Centrally,Professional Services,40,SUPPLY DESK LTD
Revenue,Childrens Services,Children's & Education Services,Children Looked After,5105661169,31.01.2018,Leaving Care Costs,Charges from Independent Providers,201.6,NUMBER5NEWPORT
Revenue,Childrens Services,Children's & Education Services,Children Looked After,5105658831,05.01.2018,Leaving Care Costs,Charges from Independent Providers,"2,214.33",NUMBER5NEWPORT
Revenue,Childrens Services,Children's & Education Services,Children Looked After,5105658831,05.01.2018,Leaving Care Costs,Charges from Independent Providers,297.6,NUMBER5NEWPORT
Revenue,Childrens Services,Children's & Education Services,Children Looked After,5105658736,10.01.2018,Leaving Care Costs,Charges from Independent Providers,163.2,NUMBER5NEWPORT
Revenue,Childrens Services,Children's & Education Services,Children Looked After,5105658736,10.01.2018,Leaving Care Costs,Charges from Independent Providers,"1,578.62",NUMBER5NEWPORT
Revenue,Childrens Services,Children's & Education Services,Children Looked After,5105658768,05.01.2018,Leaving Care Costs,Charges from Independent Providers,297.6,NUMBER5NEWPORT
Revenue,Childrens Services,Children's & Education Services,Children Looked After,5105661169,31.01.2018,Leaving Care Costs,Charges from Independent Providers,"1,950.06",NUMBER5NEWPORT
Revenue,Childrens Services,Children's & Education Services,Children Looked After,5105658837,10.01.2018,Purchased Residential,Charges from Independent Providers,"2,214.33",NUMBER5NEWPORT
Revenue,Childrens Services,Children's & Education Services,Children Looked After,5105658837,10.01.2018,Purchased Residential,Charges from Independent Providers,297.6,NUMBER5NEWPORT
Revenue,Childrens Services,Children's & Education Services,Children Looked After,5105658768,05.01.2018,Purchased Residential,Charges from Independent Providers,"2,214.33",NUMBER5NEWPORT
Revenue,Childrens Services,Children's & Education Services,Children Looked After,5105661159,31.01.2018,Purchased Residential,Charges from Independent Providers,"2,214.33",NUMBER5NEWPORT
Revenue,Childrens Services,Children's & Education Services,Children Looked After,5105661159,31.01.2018,Purchased Residential,Charges from Independent Providers,297.6,NUMBER5NEWPORT
Revenue,Childrens Services,Children's & Education Services,Other Education and Community Budget,5105658469,03.01.2018,Specialist Cross-Council Training,Training,550,THE CROSSLEY COMPANY (IOW) LTD
Revenue,Childrens Services,Children's & Education Services,Services for Young People,5105656800,03.01.2018,Youth Commissioning,Payments to Voluntary and Other Associations,"1,580.00",THE VECTIS RADIO 4PS TRAINING
Revenue,Childrens Services,Children's & Education Services,Services for Young People,5105659539,12.01.2018,Youth Commissioning,Payments to Voluntary and Other Associations,"1,580.00",THE VECTIS RADIO 4PS TRAINING
Revenue,Childrens Services,Children's & Education Services,Other Education and Community Budget,5105659214,17.01.2018,Home to School Mainstream Transport,Taxis - Contract Hire,320,THOMPSON TAXI
Revenue,Childrens Services,Children's & Education Services,Other Education and Community Budget,5105659209,12.01.2018,Home to School Mainstream Transport,Taxis - Contract Hire,750,THOMPSON TAXI
Revenue,Childrens Services,Children's & Education Services,Other Education and Community Budget,5105659211,12.01.2018,Home to School SEN Transport (LA),Taxis - Contract Hire,"1,120.00",THOMPSON TAXI
Revenue,Childrens Services,Children's & Education Services,Other Education and Community Budget,5105659212,17.01.2018,Home to School SEN Transport (LA),Taxis - Contract Hire,960,THOMPSON TAXI
Revenue,Childrens Services,Children's & Education Services,Other Education and Community Budget,5105659739,24.01.2018,Home to College Post 16 Transport,Taxis - Contract Hire,486,TJ CAR SERVICES LTD
Revenue,Childrens Services,Children's & Education Services,Other Education and Community Budget,5105659739,24.01.2018,Home to College Post 16 Transport,Taxis - Contract Hire,396,TJ CAR SERVICES LTD
Revenue,Childrens Services,Children's & Education Services,Other Education and Community Budget,5105659739,24.01.2018,Home to College Post 16 Transport,Taxis - Contract Hire,"1,052.00",TJ CAR SERVICES LTD
Revenue,Childrens Services,Children's & Education Services,Management & Support Services,5105656135,10.01.2018,Pupil Premium Managed Centrally,Professional Services,90,REDACTED PERSONAL DATA
Revenue,Childrens Services,Children's & Education Services,Management & Support Services,5105658925,10.01.2018,Pupil Premium Managed Centrally,Professional Services,94.39,REDACTED PERSONAL DATA
Revenue,Childrens Services,Children's & Education Services,Management & Support Services,5105658927,17.01.2018,Pupil Premium Managed Centrally,Professional Services,95.49,REDACTED PERSONAL DATA
Revenue,Childrens Services,Children's & Education Services,Special Schools & Alternative Provision,5105658220,03.01.2018,Workshop Initiative Support in Education,Cleaning Contracts,133.2,TOP MOPS LIMITED
Revenue,Childrens Services,Children's & Education Services,Special Schools & Alternative Provision,5105658963,10.01.2018,Workshop Initiative Support in Education,Cleaning Contracts,177.6,TOP MOPS LIMITED
Revenue,Childrens Services,Children's & Education Services,Special Schools & Alternative Provision,5105658855,05.01.2018,Island Learning Centre,Cleaning Contracts,"1,816.00",TOP MOPS LIMITED
Revenue,Childrens Services,Children's & Education Services,Special Schools & Alternative Provision,5105659493,12.01.2018,Island Learning Centre,Cleaning Contracts,948,TOP MOPS LIMITED
Revenue,Childrens Services,Children's & Education Services,Special Schools & Alternative Provision,5105658223,03.01.2018,Island Learning Centre,Consumable Cleaning Materials,95.15,TOP MOPS LIMITED
Revenue,Childrens Services,Children's & Education Services,Management & Support Services,5105661093,31.01.2018,Staff Supply Cover (de-del),Security of Buildings,90,VECTIS GROUP SECURITY LTD
Revenue,Childrens Services,Children's & Education Services,Other Education and Community Budget,5105661101,31.01.2018,Weston Academy Closure,Security of Buildings,282,VECTIS GROUP SECURITY LTD
Revenue,Childrens Services,Children's & Education Services,Other Education and Community Budget,5105658857,10.01.2018,Barton Primary Sshool Disposal,Security of Buildings,167,VECTIS GROUP SECURITY LTD
Revenue,Childrens Services,Children's & Education Services,Other Education and Community Budget,5105661102,31.01.2018,Broadlea PS Berry Hill site (was 55909),Security of Buildings,60,VECTIS GROUP SECURITY LTD
Revenue,Childrens Services,Children's & Education Services,Special Schools & Alternative Provision,5105661100,31.01.2018,Island Learning Centre,Security of Buildings,12,VECTIS GROUP SECURITY LTD
Revenue,Place,Planning services,Management & Support Services,5105658422,10.01.2018,Planning Management,Agency staff,"1,485.04",VIVID RESOURCING
Revenue,Place,Planning services,Management & Support Services,5105658856,10.01.2018,Planning Management,Agency staff,"1,463.00",VIVID RESOURCING
Revenue,Place,Planning services,Management & Support Services,5105659502,24.01.2018,Planning Management,Agency staff,"1,482.00",VIVID RESOURCING
Revenue,Place,Planning services,Management & Support Services,5105659505,24.01.2018,Planning Management,Agency staff,874,VIVID RESOURCING
Revenue,Place,Planning services,Management & Support Services,5105660201,24.01.2018,Planning Management,Agency staff,"1,159.00",VIVID RESOURCING
Revenue,Childrens Services,Children's & Education Services,Other Education and Community Budget,5105658983,10.01.2018,Home to School SEN Transport (LA),Taxis - Contract Hire,640,W W CARS OF SEAVIEW
Revenue,Childrens Services,Children's & Education Services,Other Education and Community Budget,5105658982,10.01.2018,Home to School SEN Transport (LA),Taxis - Contract Hire,"1,152.00",W W CARS OF SEAVIEW
Revenue,Adult Services,Adult Social Care,Social Care Activities,5105659125,10.01.2018,DoLS/MCA,Professional Services,"1,290.24",REDACTED PERSONAL DATA
Revenue,Childrens Services,Children's & Education Services,Other Education and Community Budget,5105660551,24.01.2018,Home to School Mainstream Transport,Taxis - Contract Hire,450,HAVEN TAXIS & PRIVATE HIRE
Revenue,Childrens Services,Children's & Education Services,Other Education and Community Budget,5105659469,12.01.2018,Home to College Post 16 Transport,Taxis - Contract Hire,327.8,HAVEN TAXIS & PRIVATE HIRE
Revenue,Childrens Services,Children's & Education Services,Other Education and Community Budget,5105659468,12.01.2018,Home to College Post 16 Transport,Taxis - Contract Hire,98,HAVEN TAXIS & PRIVATE HIRE
Revenue,Childrens Services,Children's & Education Services,Other Education and Community Budget,5105659470,12.01.2018,Home to School SEN Transport (LA),Taxis - Contract Hire,573,HAVEN TAXIS & PRIVATE HIRE
Revenue,Childrens Services,Children's & Education Services,Other Education and Community Budget,5105660549,24.01.2018,Home to School SEN Transport (LA),Taxis - Contract Hire,504,HAVEN TAXIS & PRIVATE HIRE
Revenue,Place,Cultural and Related Services,Library Service,5105658893,05.01.2018,Newport Library,Property Services - Day to day Maintenance,70,WIGHT HEATING LTD
Revenue,Place,Cultural and Related Services,Library Service,5105658888,05.01.2018,Newport Library,Property Services - Day to day Maintenance,141.95,WIGHT HEATING LTD
Capital,Resources,Capital,Capital,5105661072,31.01.2018,Boiler Replacement Heating Non Education,Payment to Contractors - Capital,"3,146.32",WIGHT HEATING LTD
Revenue,Childrens Services,Children's & Education Services,Children Looked After,5105660678,24.01.2018,Beaulieu House,Minor Works,185,WIGHT HEATING LTD
Revenue,Adult Services,Adult Social Care,Learning Disab Supp (to be reallocated),5105659161,10.01.2018,Westminster House,Property Services - Day to day Maintenance,45,WIGHT HEATING LTD
Revenue,Regeneration,Central Services,Support Services,5105658882,05.01.2018,"Enterprise House, Newport",Property Services - Day to day Maintenance,97.5,WIGHT HEATING LTD
Revenue,Adult Services,Adult Social Care,Learning Disab Supp (to be reallocated),5105659508,12.01.2018,Westminster House,Property Services - Day to day Maintenance,115,WIGHT HEATING LTD
Revenue,Regeneration,Central Services,Support Services,5105659506,12.01.2018,"Enterprise House, Newport",Property Services - Day to day Maintenance,172.41,WIGHT HEATING LTD
Revenue,Regeneration,Central Services,Support Services,5105658861,05.01.2018,"Enterprise House, Newport",Property Services - Planned Maintenance,115,WIGHT HEATING LTD
Capital,Resources,Capital,Capital,5105658234,03.01.2018,Management of Asbestos,Payment to Contractors - Capital,"5,357.96",WIGHT HEATING LTD
Capital,Resources,Capital,Capital,5105659172,10.01.2018,Management of Asbestos,Payment to Contractors - Capital,780,WIGHT HEATING LTD
Capital,Resources,Capital,Capital,5105659158,10.01.2018,Management of Asbestos,Payment to Contractors - Capital,"8,257.72",WIGHT HEATING LTD
Revenue,Place,Cultural and Related Services,Library Service,5105658907,05.01.2018,Cowes Library,Property Services - Day to day Maintenance,185,WIGHT HEATING LTD
Revenue,Regeneration,Central Services,Support Services,5105658814,05.01.2018,"Westridge, Ryde",Property Services - Day to day Maintenance,728.25,WIGHT HEATING LTD
Revenue,Adult Services,Adult Social Care,Central Codes (to be reallocated),5105658236,03.01.2018,Gouldings Resource Centre,Maintenance of Operational Equipment,"3,467.43",WIGHT HEATING LTD
Revenue,Adult Services,Adult Social Care,Central Codes (to be reallocated),5105658734,05.01.2018,Gouldings Resource Centre,Maintenance of Operational Equipment,45,WIGHT HEATING LTD
Revenue,Adult Services,Adult Social Care,Central Codes (to be reallocated),5105658883,05.01.2018,Adelaide Resource Centre,Property Services - Day to day Maintenance,97.5,WIGHT HEATING LTD
Revenue,Place,Cultural and Related Services,Library Service,5105658869,05.01.2018,Sandown Library,Property Services - Day to day Maintenance,219.35,WIGHT HEATING LTD
Revenue,Adult Services,Adult Social Care,Central Codes (to be reallocated),5105661212,31.01.2018,Adelaide Resource Centre,Property Services - Day to day Maintenance,319.12,WIGHT HEATING LTD
Revenue,Place,Fire & Rescue Services,Fire fighting and Rescue Operations,5105660680,24.01.2018,Business Support  - Fire,Property Services - Day to day Maintenance,936.87,WIGHT HEATING LTD
Revenue,Adult Services,Adult Social Care,Central Codes (to be reallocated),5105660668,24.01.2018,Gouldings Resource Centre,Property Services - Day to day Maintenance,356.02,WIGHT HEATING LTD
Revenue,Adult Services,Adult Social Care,Central Codes (to be reallocated),5105660683,24.01.2018,Adelaide Resource Centre,Property Services - Day to day Maintenance,45,WIGHT HEATING LTD
Revenue,Adult Services,Adult Social Care,Learning Disab Supp (to be reallocated),5105659750,17.01.2018,The Laurels,Minor Works,"1,487.21",WIGHT HEATING LTD
Revenue,Place,Housing Services,Homelessness,5105660253,24.01.2018,Leaseholds by LA,Accommodation Costs - Leaseholder Payments,866.67,2K PROPERTY
Revenue,Childrens Services,Children's & Education Services,Children Looked After,5105658953,10.01.2018,Purchased Fostering,Charges from Independent Providers,"3,703.05",5 FOSTERING
Revenue,Childrens Services,Children's & Education Services,Children Looked After,5105659312,12.01.2018,In-house Fostering,Boarding Out Allowances,234.52,REDACTED PERSONAL DATA
Revenue,Childrens Services,Children's & Education Services,Children Looked After,5105659312,12.01.2018,In-house Fostering,Boarding Out Allowances,234.52,REDACTED PERSONAL DATA
Revenue,Childrens Services,Children's & Education Services,Children Looked After,5105660809,26.01.2018,In-house Fostering,Boarding Out Allowances,234.52,REDACTED PERSONAL DATA
Revenue,Childrens Services,Children's & Education Services,Children Looked After,5105659885,19.01.2018,In-house Fostering,Boarding Out Allowances,234.52,REDACTED PERSONAL DATA
Revenue,Childrens Services,Children's & Education Services,Children Looked After,5105659885,19.01.2018,In-house Fostering,Boarding Out Allowances,234.52,REDACTED PERSONAL DATA
Revenue,Childrens Services,Children's & Education Services,Children Looked After,5105660809,26.01.2018,In-house Fostering,Boarding Out Allowances,234.52,REDACTED PERSONAL DATA
Revenue,Childrens Services,Children's & Education Services,Children Looked After,5105658528,05.01.2018,In-house Fostering,Boarding Out Allowances,234.52,REDACTED PERSONAL DATA
Revenue,Childrens Services,Children's & Education Services,Children Looked After,5105658528,05.01.2018,In-house Fostering,Boarding Out Allowances,234.52,REDACTED PERSONAL DATA
Revenue,Childrens Services,Children's & Education Services,Children Looked After,5105660809,26.01.2018,Special Guardianship Order Costs,Support Children,105,REDACTED PERSONAL DATA
Revenue,Childrens Services,Children's & Education Services,Children Looked After,5105659885,19.01.2018,Special Guardianship Order Costs,Support Children,105,REDACTED PERSONAL DATA
Revenue,Childrens Services,Children's & Education Services,Children Looked After,5105658528,05.01.2018,Special Guardianship Order Costs,Support Children,168.39,REDACTED PERSONAL DATA
Revenue,Childrens Services,Children's & Education Services,Children Looked After,5105659312,12.01.2018,Special Guardianship Order Costs,Support Children,105,REDACTED PERSONAL DATA
Revenue,Childrens Services,Children's & Education Services,Children Looked After,5105658528,05.01.2018,Special Guardianship Order Costs,Support Children,105,REDACTED PERSONAL DATA
Revenue,Childrens Services,Children's & Education Services,Children Looked After,5105660809,26.01.2018,Special Guardianship Order Costs,Support Children,168.39,REDACTED PERSONAL DATA
Revenue,Childrens Services,Children's & Education Services,Children Looked After,5105659885,19.01.2018,Special Guardianship Order Costs,Support Children,168.39,REDACTED PERSONAL DATA
Revenue,Childrens Services,Children's & Education Services,Children Looked After,5105659312,12.01.2018,Special Guardianship Order Costs,Support Children,168.39,REDACTED PERSONAL DATA
Revenue,Childrens Services,Children's & Education Services,Children Looked After,5105659939,19.01.2018,Leaving Care Costs,Support Children,120.89,REDACTED PERSONAL DATA
Revenue,Childrens Services,Children's & Education Services,Children Looked After,5105659939,19.01.2018,Leaving Care Costs,Support Children,68.5,REDACTED PERSONAL DATA
Revenue,Childrens Services,Children's & Education Services,Children Looked After,5105659939,19.01.2018,Leaving Care Costs,Support Children,2.9,REDACTED PERSONAL DATA
Revenue,Childrens Services,Children's & Education Services,Children Looked After,5105659366,12.01.2018,Leaving Care Costs,Support Children,120.89,REDACTED PERSONAL DATA
Revenue,Childrens Services,Children's & Education Services,Children Looked After,5105659366,12.01.2018,Leaving Care Costs,Support Children,68.5,REDACTED PERSONAL DATA
Revenue,Childrens Services,Children's & Education Services,Children Looked After,5105659366,12.01.2018,Leaving Care Costs,Support Children,2.9,REDACTED PERSONAL DATA
Revenue,Childrens Services,Children's & Education Services,Children Looked After,5105658581,05.01.2018,Leaving Care Costs,Support Children,120.89,REDACTED PERSONAL DATA
Revenue,Childrens Services,Children's & Education Services,Children Looked After,5105658581,05.01.2018,Leaving Care Costs,Support Children,68.5,REDACTED PERSONAL DATA
Revenue,Childrens Services,Children's & Education Services,Children Looked After,5105658581,05.01.2018,Leaving Care Costs,Support Children,2.9,REDACTED PERSONAL DATA
Revenue,Place,Housing Services,Homelessness,5105660250,24.01.2018,Leaseholds by LA,Accommodation Costs - Leaseholder Payments,510.25,REDACTED PERSONAL DATA
Revenue,Place,Housing Services,Homelessness,5105660250,24.01.2018,Leaseholds by LA,Accommodation Costs - Leaseholder Payments,510.25,REDACTED PERSONAL DATA
Revenue,Place,Housing Services,Homelessness,5105660250,24.01.2018,Leaseholds by LA,Accommodation Costs - Leaseholder Payments,510.25,REDACTED PERSONAL DATA
Revenue,Place,Housing Services,Homelessness,5105660250,24.01.2018,Leaseholds by LA,Accommodation Costs - Leaseholder Payments,510.25,REDACTED PERSONAL DATA
Revenue,Place,Housing Services,Homelessness,5105660250,24.01.2018,Leaseholds by LA,Accommodation Costs - Leaseholder Payments,510.25,REDACTED PERSONAL DATA
Revenue,Place,Housing Services,Homelessness,5105660250,24.01.2018,Leaseholds by LA,Accommodation Costs - Leaseholder Payments,510.25,REDACTED PERSONAL DATA
Revenue,Childrens Services,Children's & Education Services,Children Looked After,5105659871,19.01.2018,Adoption Costs,Support Children,225.83,REDACTED PERSONAL DATA
Revenue,Childrens Services,Children's & Education Services,Children Looked After,5105660795,26.01.2018,Adoption Costs,Support Children,225.83,REDACTED PERSONAL DATA
Revenue,Childrens Services,Children's & Education Services,Children Looked After,5105659299,12.01.2018,Adoption Costs,Support Children,225.83,REDACTED PERSONAL DATA
Revenue,Childrens Services,Children's & Education Services,Children Looked After,5105658515,05.01.2018,Adoption Costs,Support Children,225.83,REDACTED PERSONAL DATA
Revenue,Childrens Services,Children's & Education Services,Children Looked After,5105658555,05.01.2018,In-house Fostering,Boarding Out Allowances,500,REDACTED PERSONAL DATA
Revenue,Childrens Services,Children's & Education Services,Children Looked After,5105658555,05.01.2018,In-house Fostering,Boarding Out Allowances,500,REDACTED PERSONAL DATA
Revenue,Childrens Services,Children's & Education Services,Children Looked After,5105659340,12.01.2018,In-house Fostering,Boarding Out Allowances,500,REDACTED PERSONAL DATA
Revenue,Childrens Services,Children's & Education Services,Children Looked After,5105659913,19.01.2018,In-house Fostering,Boarding Out Allowances,500,REDACTED PERSONAL DATA
Revenue,Childrens Services,Children's & Education Services,Children Looked After,5105660837,26.01.2018,In-house Fostering,Boarding Out Allowances,500,REDACTED PERSONAL DATA
Revenue,Childrens Services,Children's & Education Services,Children Looked After,5105660837,26.01.2018,In-house Fostering,Boarding Out Allowances,500,REDACTED PERSONAL DATA
Revenue,Childrens Services,Children's & Education Services,Children Looked After,5105659913,19.01.2018,In-house Fostering,Boarding Out Allowances,500,REDACTED PERSONAL DATA
Revenue,Childrens Services,Children's & Education Services,Children Looked After,5105659340,12.01.2018,In-house Fostering,Boarding Out Allowances,500,REDACTED PERSONAL DATA
Revenue,Place,Housing Services,Homelessness,5105660241,24.01.2018,Leaseholds by LA,Accommodation Costs - Leaseholder Payments,700,REDACTED PERSONAL DATA
Revenue,Place,Housing Services,Homelessness,5105660241,24.01.2018,Leaseholds by LA,Accommodation Costs - Leaseholder Payments,835.08,REDACTED PERSONAL DATA
Revenue,Place,Housing Services,Homelessness,5105660241,24.01.2018,Leaseholds by LA,Accommodation Costs - Leaseholder Payments,789.01,REDACTED PERSONAL DATA
Revenue,Place,Housing Services,Homelessness,5105660241,24.01.2018,Leaseholds by LA,Accommodation Costs - Leaseholder Payments,649.83,REDACTED PERSONAL DATA
Revenue,Adult Services,Adult Social Care,Support - Memory /Cognition-older people (65+),5105660500,24.01.2018,Memory & Cognition Residential 65+,Charges from Independent Providers,"3,200.12",ABBERDALE LIMITED
Revenue,Place,Cultural and Related Services,Open Spaces,5105658998,10.01.2018,Estuaries Officer,Payment to Private Contractors,"5,937.60",ABP MARINE ENVIRONMENTAL RESEARCH LTD
Revenue,Adult Services,Adult Social Care,Physical Support - older people (65+),5105660347,24.01.2018,Physical Support Residential 65+,Charges from Independent Providers,"1,950.20",ACACIA CARE HOME
Revenue,Adult Services,Adult Social Care,Support - Memory /Cognition-older people (65+),5105660347,24.01.2018,Memory & Cognition Residential 65+,Charges from Independent Providers,"1,950.20",ACACIA CARE HOME
Revenue,Adult Services,Adult Social Care,Social Support - Support for Carer,5105660347,24.01.2018,Carers Residential,Charges from Independent Providers,"1,950.20",ACACIA CARE HOME
Revenue,Adult Services,Balance Sheet,Balance Sheet,5105660347,24.01.2018,REDACTED PERSONAL DATA,Order Settlement to Bal Sht GL,"1,862.00",ACACIA CARE HOME
Revenue,Adult Services,Adult Social Care,Physical Support - adults (18-64),5105660347,24.01.2018,Physical Support Residential 18-64,Charges from Independent Providers,"1,862.00",ACACIA CARE HOME
Capital,Corporate Items,Balance Sheet,Balance Sheet,5105659644,17.01.2018,Balance Sheet,Recruitment Advertising,12,ACCESS PERSONAL CHECKING SERVICES LTD
Capital,Corporate Items,Balance Sheet,Balance Sheet,5105659644,17.01.2018,Balance Sheet,Recruitment Advertising,6,ACCESS PERSONAL CHECKING SERVICES LTD
Revenue,Childrens Services,Children's & Education Services,Children Looked After,5105659644,17.01.2018,In-house Fostering,Recruitment Advertising,30,ACCESS PERSONAL CHECKING SERVICES LTD
Revenue,Childrens Services,Children's & Education Services,Youth Justice,5105659644,17.01.2018,Youth Offending Team,Recruitment Advertising,6,ACCESS PERSONAL CHECKING SERVICES LTD
Revenue,Childrens Services,Children's & Education Services,Other Education and Community Budget,5105659644,17.01.2018,Education Welfare Service,Recruitment Advertising,78,ACCESS PERSONAL CHECKING SERVICES LTD
Revenue,Adult Services,Adult Social Care,Assistive Equipment & Technology,5105659644,17.01.2018,Wightcare,Recruitment Advertising,18,ACCESS PERSONAL CHECKING SERVICES LTD
Revenue,Adult Services,Adult Social Care,Learning Disab Supp (to be reallocated),5105659644,17.01.2018,Saxonbury,Recruitment Advertising,12,ACCESS PERSONAL CHECKING SERVICES LTD
Capital,Corporate Items,Balance Sheet,Balance Sheet,5105659644,17.01.2018,Balance Sheet,Recruitment Advertising,44,ACCESS PERSONAL CHECKING SERVICES LTD
Revenue,Childrens Services,Children's & Education Services,Children Looked After,5105659644,17.01.2018,In-house Fostering,Recruitment Advertising,220,ACCESS PERSONAL CHECKING SERVICES LTD
Revenue,Childrens Services,Children's & Education Services,Youth Justice,5105659644,17.01.2018,Youth Offending Team,Recruitment Advertising,44,ACCESS PERSONAL CHECKING SERVICES LTD
Revenue,Adult Services,Adult Social Care,Assistive Equipment & Technology,5105659644,17.01.2018,Wightcare,Recruitment Advertising,132,ACCESS PERSONAL CHECKING SERVICES LTD
Revenue,Adult Services,Adult Social Care,Learning Disab Supp (to be reallocated),5105659644,17.01.2018,Saxonbury,Recruitment Advertising,88,ACCESS PERSONAL CHECKING SERVICES LTD
Revenue,Place,Environmental & Regulatory Services,Regulatory Services,5105659171,10.01.2018,Licensing Services,Professional Services,44,ACCESS PERSONAL CHECKING SERVICES LTD
Revenue,Place,Environmental & Regulatory Services,Regulatory Services,5105659171,10.01.2018,Licensing Services,Professional Services,6,ACCESS PERSONAL CHECKING SERVICES LTD
Revenue,Childrens Services,Children's & Education Services,Children Looked After,5105659644,17.01.2018,Beaulieu House,Recruitment Advertising,12,ACCESS PERSONAL CHECKING SERVICES LTD
Revenue,Childrens Services,Children's & Education Services,Children Looked After,5105659644,17.01.2018,Adoption Costs,Recruitment Advertising,6,ACCESS PERSONAL CHECKING SERVICES LTD
Revenue,Childrens Services,Children's & Education Services,Primary Schools,5105659644,17.01.2018,All Saints CE Primary - Freshwater,Recruitment Advertising,6,ACCESS PERSONAL CHECKING SERVICES LTD
Revenue,Place,Cultural and Related Services,Recreation and Sport,5105659644,17.01.2018,Medina Leisure Centre,Recruitment Advertising,8,ACCESS PERSONAL CHECKING SERVICES LTD
Revenue,Adult Services,Adult Social Care,Learning Disab Supp (to be reallocated),5105659644,17.01.2018,40 Venner Avenue,Recruitment Advertising,6,ACCESS PERSONAL CHECKING SERVICES LTD
Revenue,Place,Cultural and Related Services,Recreation and Sport,5105659644,17.01.2018,Medina Leisure Centre,Recruitment Advertising,25,ACCESS PERSONAL CHECKING SERVICES LTD
Revenue,Childrens Services,Children's & Education Services,Children Looked After,5105659644,17.01.2018,Beaulieu House,Recruitment Advertising,88,ACCESS PERSONAL CHECKING SERVICES LTD
Revenue,Childrens Services,Children's & Education Services,Children Looked After,5105659644,17.01.2018,Adoption Costs,Recruitment Advertising,44,ACCESS PERSONAL CHECKING SERVICES LTD
Revenue,Adult Services,Adult Social Care,Learning Disab Supp (to be reallocated),5105659644,17.01.2018,40 Venner Avenue,Recruitment Advertising,44,ACCESS PERSONAL CHECKING SERVICES LTD
Revenue,Place,Highways and Transport Services,Traffic Management and Road Safety,5105659644,17.01.2018,Road Safety,Recruitment Advertising,6,ACCESS PERSONAL CHECKING SERVICES LTD
Revenue,Adult Services,Adult Social Care,Learning Disab Supp (to be reallocated),5105659644,17.01.2018,Plean Dene,Recruitment Advertising,6,ACCESS PERSONAL CHECKING SERVICES LTD
Revenue,Adult Services,Adult Social Care,Learning Disab Supp (to be reallocated),5105659644,17.01.2018,31 Carter Avenue,Recruitment Advertising,6,ACCESS PERSONAL CHECKING SERVICES LTD
Revenue,Place,Highways and Transport Services,Traffic Management and Road Safety,5105659644,17.01.2018,Road Safety,Recruitment Advertising,44,ACCESS PERSONAL CHECKING SERVICES LTD
Revenue,Adult Services,Adult Social Care,Learning Disab Supp (to be reallocated),5105659644,17.01.2018,Plean Dene,Recruitment Advertising,44,ACCESS PERSONAL CHECKING SERVICES LTD
Revenue,Adult Services,Adult Social Care,Learning Disab Supp (to be reallocated),5105659644,17.01.2018,31 Carter Avenue,Recruitment Advertising,44,ACCESS PERSONAL CHECKING SERVICES LTD
Revenue,Adult Services,Adult Social Care,Central Codes (to be reallocated),5105659644,17.01.2018,Gouldings Resource Centre,Recruitment Advertising,6,ACCESS PERSONAL CHECKING SERVICES LTD
Revenue,Adult Services,Adult Social Care,Social Care Activities,5105659644,17.01.2018,First Response,Recruitment Advertising,6,ACCESS PERSONAL CHECKING SERVICES LTD
Revenue,Adult Services,Adult Social Care,Learning Disab Supp (to be reallocated),5105659644,17.01.2018,The Laurels,Recruitment Advertising,6,ACCESS PERSONAL CHECKING SERVICES LTD
Revenue,Adult Services,Adult Social Care,Central Codes (to be reallocated),5105659644,17.01.2018,Gouldings Resource Centre,Recruitment Advertising,44,ACCESS PERSONAL CHECKING SERVICES LTD
Revenue,Adult Services,Adult Social Care,Social Care Activities,5105659644,17.01.2018,First Response,Recruitment Advertising,44,ACCESS PERSONAL CHECKING SERVICES LTD
Revenue,Adult Services,Adult Social Care,Learning Disab Supp (to be reallocated),5105659644,17.01.2018,The Laurels,Recruitment Advertising,44,ACCESS PERSONAL CHECKING SERVICES LTD
Revenue,Adult Services,Adult Social Care,Assistive Equipment & Technology,5105660727,24.01.2018,Community Equipment Store,Maintenance of Operational Equipment,4,ACCORA  LIMITED
Revenue,Adult Services,Adult Social Care,Assistive Equipment & Technology,5105660727,24.01.2018,Community Equipment Store,Maintenance of Operational Equipment,34,ACCORA  LIMITED
Revenue,Adult Services,Adult Social Care,Assistive Equipment & Technology,5105660727,24.01.2018,Community Equipment Store,Maintenance of Operational Equipment,42,ACCORA  LIMITED
Revenue,Adult Services,Adult Social Care,Assistive Equipment & Technology,5105660727,24.01.2018,Community Equipment Store,Professional Services,7.5,ACCORA  LIMITED
Revenue,Place,Environmental & Regulatory Services,Regulatory Services,5105659187,10.01.2018,Environmental Health - Environmental Regulation & Protection,Professional Services,300,ACOUSTIC CALIBRATION SERVICES LTD
Revenue,Adult Services,Adult Social Care,Commissioning & Service Delivery,5105658986,10.01.2018,BCF Care Bill Implementation,Payment to Private Contractors,"43,750.00",ADAM HTT LTD
Revenue,Adult Services,Adult Social Care,Commissioning & Service Delivery,5105658338,03.01.2018,BCF Care Bill Implementation,Payment to Private Contractors,"20,000.00",ADAM HTT LTD
Revenue,Place,Fire & Rescue Services,Fire fighting and Rescue Operations,5105659155,10.01.2018,Fire Technical Support,Vehicle Maintenance Costs,56.45,ADAMS MOREY LTD
Revenue,Place,Fire & Rescue Services,Fire fighting and Rescue Operations,5105659155,10.01.2018,Fire Technical Support,Vehicle Maintenance Costs,65.92,ADAMS MOREY LTD
Revenue,Place,Fire & Rescue Services,Fire fighting and Rescue Operations,5105659155,10.01.2018,Fire Technical Support,Vehicle Maintenance Costs,8,ADAMS MOREY LTD
Revenue,Childrens Services,Children's & Education Services,Management & Support Services,5105658948,10.01.2018,Education Direct Payments,Charges from Independent Providers,220,A-DAY CONSULTANTS LTD
Revenue,Childrens Services,Children's & Education Services,Management & Support Services,5105658945,10.01.2018,Education Direct Payments,Charges from Independent Providers,110,A-DAY CONSULTANTS LTD
Revenue,Childrens Services,Children's & Education Services,Management & Support Services,5105658954,10.01.2018,Education Direct Payments,Charges from Independent Providers,295.8,A-DAY CONSULTANTS LTD
Revenue,Childrens Services,Children's & Education Services,Management & Support Services,5105658957,10.01.2018,Education Direct Payments,Charges from Independent Providers,227.4,A-DAY CONSULTANTS LTD
Revenue,Childrens Services,Children's & Education Services,Management & Support Services,5105659104,10.01.2018,Education Direct Payments,Charges from Independent Providers,227.4,A-DAY CONSULTANTS LTD
Revenue,Childrens Services,Children's & Education Services,Management & Support Services,5105659100,10.01.2018,Education Direct Payments,Charges from Independent Providers,285.2,A-DAY CONSULTANTS LTD
Revenue,Childrens Services,Children's & Education Services,Management & Support Services,5105659101,10.01.2018,Education Direct Payments,Charges from Independent Providers,110,A-DAY CONSULTANTS LTD
Revenue,Childrens Services,Children's & Education Services,Management & Support Services,5105658412,03.01.2018,Education Direct Payments,Charges from Independent Providers,110,A-DAY CONSULTANTS LTD
Revenue,Childrens Services,Children's & Education Services,Management & Support Services,5105658246,03.01.2018,Education Direct Payments,Charges from Independent Providers,151.6,A-DAY CONSULTANTS LTD
Revenue,Childrens Services,Children's & Education Services,Management & Support Services,5105658242,10.01.2018,Education Direct Payments,Charges from Independent Providers,330,A-DAY CONSULTANTS LTD
Revenue,Childrens Services,Children's & Education Services,Management & Support Services,5105658244,03.01.2018,Education Direct Payments,Charges from Independent Providers,435.8,A-DAY CONSULTANTS LTD
Revenue,Childrens Services,Children's & Education Services,Management & Support Services,5105660214,26.01.2018,Education Direct Payments,Charges from Independent Providers,295.8,A-DAY CONSULTANTS LTD
Revenue,Childrens Services,Children's & Education Services,Management & Support Services,5105660215,24.01.2018,Education Direct Payments,Charges from Independent Providers,110,A-DAY CONSULTANTS LTD
Revenue,Childrens Services,Children's & Education Services,Special Schools & Alternative Provision,5105658866,05.01.2018,Island Learning Centre,Agency staff,"2,529.20",A-DAY CONSULTANTS LTD
Revenue,Childrens Services,Children's & Education Services,Special Schools & Alternative Provision,5105659687,17.01.2018,Island Learning Centre,Agency staff,"2,749.60",A-DAY CONSULTANTS LTD
Revenue,Childrens Services,Children's & Education Services,Special Schools & Alternative Provision,5105659686,17.01.2018,Island Learning Centre,Agency staff,"2,749.60",A-DAY CONSULTANTS LTD
Revenue,Place,Highways and Transport Services,"Airports, Harbours & Toll Facilities",5105659816,17.01.2018,Newport Harbour Account,Payment to Private Contractors,"4,452.79",ADLER & ALLAN
Revenue,Childrens Services,Children's & Education Services,Management & Support Services,5105661083,31.01.2018,Special Discretionary Grants,Charges from Independent Providers,400,ADRC SOUTHAMPTON LTD
Revenue,Place,Cultural and Related Services,Culture and Heritage,5105659742,17.01.2018,Cothey Bottom Store RYDE,Payment to Private Contractors,545.62,ADT FIRE AND SECURITY PLC
Revenue,Adult Services,Adult Social Care,Commissioning & Service Delivery,5105658719,10.01.2018,Learning Disability Homes Management & Admin,Publications,64.94,AGORA BUSINESS PUBLICATIONS LLP
Revenue,Adult Services,Adult Social Care,Central Codes (to be reallocated),5105658088,19.01.2018,Gouldings Resource Centre,Publications,64.94,AGORA BUSINESS PUBLICATIONS LLP
Revenue,Resources,Housing Services,Housing Benefits Administration,5105659638,12.01.2018,Housing Benefit,Consultants Fees,"1,250.00",AIREY CONSULTANCY SERVICES LTD
Revenue,Childrens Services,Children's & Education Services,Children Looked After,5105658762,05.01.2018,Beaulieu House,Minor Works,167,AIRTEK SERVICES IOW LTD
Revenue,Adult Services,Adult Social Care,Learning Disability Suppt-adults (18-64),5105660490,24.01.2018,Learning Disability Residential 18-64,Charges from Independent Providers,"5,950.00",AITCH CARE HOMES (LONDON) LTD
Revenue,Resources,Central Services,Support Services,5105659215,10.01.2018,Insurance,Professional Subscriptions,388,ALARM
Revenue,Place,Environmental & Regulatory Services,"Cemetery, Cremation & Mortuary Services",5105658792,05.01.2018,Crematorium,Operational Equipment,23.52,ALBANY FARM & G MACHINERY LTD
Revenue,Resources,Highways and Transport Services,Public Transport,5105659067,10.01.2018,Transport Fleet Administration,Vehicle Fuel Costs,"8,446.89",ALLSTAR BUSINESS SOLUTIONS LTD
Revenue,Childrens Services,Children's & Education Services,Other Education and Community Budget,5105658153,10.01.2018,Home to School Mainstream Transport,Taxis - Contract Hire,18.75,ALPHA (IOW) LTD
Revenue,Childrens Services,Children's & Education Services,Other Education and Community Budget,5105659139,12.01.2018,Home to School Mainstream Transport,Taxis - Contract Hire,250,ALPHA (IOW) LTD
Revenue,Childrens Services,Children's & Education Services,Other Education and Community Budget,5105659272,10.01.2018,Home to School Mainstream Transport,Taxis - Contract Hire,250,ALPHA (IOW) LTD
Revenue,Childrens Services,Children's & Education Services,Other Education and Community Budget,5105659135,10.01.2018,Home to School Mainstream Transport,Taxis - Contract Hire,200,ALPHA (IOW) LTD
Revenue,Childrens Services,Children's & Education Services,Other Education and Community Budget,5105659138,12.01.2018,Home to School Mainstream Transport,Taxis - Contract Hire,250,ALPHA (IOW) LTD
Revenue,Childrens Services,Children's & Education Services,Other Education and Community Budget,5105659138,12.01.2018,Home to School Mainstream Transport,Taxis - Contract Hire,175,ALPHA (IOW) LTD
Revenue,Childrens Services,Children's & Education Services,Other Education and Community Budget,5105659135,10.01.2018,Home to School Mainstream Transport,Taxis - Contract Hire,140,ALPHA (IOW) LTD
Revenue,Childrens Services,Children's & Education Services,Other Education and Community Budget,5105659272,10.01.2018,Home to School Mainstream Transport,Taxis - Contract Hire,175,ALPHA (IOW) LTD
Revenue,Childrens Services,Children's & Education Services,Other Education and Community Budget,5105659139,12.01.2018,Home to School Mainstream Transport,Taxis - Contract Hire,175,ALPHA (IOW) LTD
Revenue,Childrens Services,Children's & Education Services,Other Education and Community Budget,5105659135,10.01.2018,Home to School Mainstream Transport,Taxis - Contract Hire,280,ALPHA (IOW) LTD
Revenue,Childrens Services,Children's & Education Services,Other Education and Community Budget,5105659139,12.01.2018,Home to School Mainstream Transport,Taxis - Contract Hire,350,ALPHA (IOW) LTD
Revenue,Childrens Services,Children's & Education Services,Other Education and Community Budget,5105659272,10.01.2018,Home to School Mainstream Transport,Taxis - Contract Hire,350,ALPHA (IOW) LTD
Revenue,Childrens Services,Children's & Education Services,Other Education and Community Budget,5105659138,12.01.2018,Home to School Mainstream Transport,Taxis - Contract Hire,350,ALPHA (IOW) LTD
Revenue,Childrens Services,Children's & Education Services,Other Education and Community Budget,5105659138,12.01.2018,Home to School Mainstream Transport,Taxis - Contract Hire,70,ALPHA (IOW) LTD
Revenue,Childrens Services,Children's & Education Services,Other Education and Community Budget,5105659139,12.01.2018,Home to School Mainstream Transport,Taxis - Contract Hire,70,ALPHA (IOW) LTD
Revenue,Childrens Services,Children's & Education Services,Other Education and Community Budget,5105659135,10.01.2018,Home to School Mainstream Transport,Taxis - Contract Hire,56,ALPHA (IOW) LTD
Revenue,Childrens Services,Children's & Education Services,Other Education and Community Budget,5105659272,10.01.2018,Home to School Mainstream Transport,Taxis - Contract Hire,70,ALPHA (IOW) LTD
Revenue,Childrens Services,Children's & Education Services,Other Education and Community Budget,5105659138,12.01.2018,Home to School Mainstream Transport,Taxis - Contract Hire,300,ALPHA (IOW) LTD
Revenue,Childrens Services,Children's & Education Services,Other Education and Community Budget,5105659139,12.01.2018,Home to School Mainstream Transport,Taxis - Contract Hire,300,ALPHA (IOW) LTD
Revenue,Childrens Services,Children's & Education Services,Other Education and Community Budget,5105659272,10.01.2018,Home to School Mainstream Transport,Taxis - Contract Hire,300,ALPHA (IOW) LTD
Revenue,Childrens Services,Children's & Education Services,Other Education and Community Budget,5105659135,10.01.2018,Home to School Mainstream Transport,Taxis - Contract Hire,240,ALPHA (IOW) LTD
Revenue,Childrens Services,Children's & Education Services,Other Education and Community Budget,5105659139,12.01.2018,Home to School Mainstream Transport,Taxis - Contract Hire,600,ALPHA (IOW) LTD
Revenue,Childrens Services,Children's & Education Services,Other Education and Community Budget,5105659135,10.01.2018,Home to School Mainstream Transport,Taxis - Contract Hire,480,ALPHA (IOW) LTD
Revenue,Childrens Services,Children's & Education Services,Other Education and Community Budget,5105659272,10.01.2018,Home to School Mainstream Transport,Taxis - Contract Hire,600,ALPHA (IOW) LTD
Revenue,Childrens Services,Children's & Education Services,Other Education and Community Budget,5105659138,12.01.2018,Home to School Mainstream Transport,Taxis - Contract Hire,600,ALPHA (IOW) LTD
Revenue,Childrens Services,Children's & Education Services,Other Education and Community Budget,5105659759,17.01.2018,Home to School Mainstream Transport,Taxis - Contract Hire,28,ALPHA (IOW) LTD
Revenue,Childrens Services,Children's & Education Services,Other Education and Community Budget,5105659759,17.01.2018,Home to School Mainstream Transport,Taxis - Contract Hire,100,ALPHA (IOW) LTD
Revenue,Childrens Services,Children's & Education Services,Other Education and Community Budget,5105659759,17.01.2018,Home to School Mainstream Transport,Taxis - Contract Hire,70,ALPHA (IOW) LTD
Revenue,Childrens Services,Children's & Education Services,Other Education and Community Budget,5105659759,17.01.2018,Home to School Mainstream Transport,Taxis - Contract Hire,120,ALPHA (IOW) LTD
Revenue,Childrens Services,Children's & Education Services,Other Education and Community Budget,5105659759,17.01.2018,Home to School Mainstream Transport,Taxis - Contract Hire,140,ALPHA (IOW) LTD
Revenue,Childrens Services,Children's & Education Services,Other Education and Community Budget,5105659759,17.01.2018,Home to School Mainstream Transport,Taxis - Contract Hire,240,ALPHA (IOW) LTD
Revenue,Childrens Services,Children's & Education Services,Other Education and Community Budget,5105658153,10.01.2018,Home to College Post 16 Transport,Taxis - Contract Hire,18,ALPHA (IOW) LTD
Revenue,Childrens Services,Children's & Education Services,Other Education and Community Budget,5105659136,10.01.2018,Home to College Post 16 Transport,Taxis - Contract Hire,600,ALPHA (IOW) LTD
Revenue,Childrens Services,Children's & Education Services,Other Education and Community Budget,5105659137,12.01.2018,Home to College Post 16 Transport,Taxis - Contract Hire,850,ALPHA (IOW) LTD
Revenue,Childrens Services,Children's & Education Services,Other Education and Community Budget,5105659136,10.01.2018,Home to College Post 16 Transport,Taxis - Contract Hire,312,ALPHA (IOW) LTD
Revenue,Childrens Services,Children's & Education Services,Other Education and Community Budget,5105659137,12.01.2018,Home to College Post 16 Transport,Taxis - Contract Hire,468,ALPHA (IOW) LTD
Revenue,Childrens Services,Children's & Education Services,Other Education and Community Budget,5105659136,10.01.2018,Home to College Post 16 Transport,Taxis - Contract Hire,384,ALPHA (IOW) LTD
Revenue,Childrens Services,Children's & Education Services,Other Education and Community Budget,5105659137,12.01.2018,Home to College Post 16 Transport,Taxis - Contract Hire,528,ALPHA (IOW) LTD
Revenue,Childrens Services,Children's & Education Services,Other Education and Community Budget,5105659137,12.01.2018,Home to College Post 16 Transport,Taxis - Contract Hire,936,ALPHA (IOW) LTD
Revenue,Childrens Services,Children's & Education Services,Other Education and Community Budget,5105659136,10.01.2018,Home to College Post 16 Transport,Taxis - Contract Hire,624,ALPHA (IOW) LTD
Revenue,Childrens Services,Children's & Education Services,Other Education and Community Budget,5105659136,10.01.2018,Home to College Post 16 Transport,Taxis - Contract Hire,630,ALPHA (IOW) LTD
Revenue,Childrens Services,Children's & Education Services,Other Education and Community Budget,5105659137,12.01.2018,Home to College Post 16 Transport,Taxis - Contract Hire,910,ALPHA (IOW) LTD
Revenue,Childrens Services,Children's & Education Services,Other Education and Community Budget,5105659136,10.01.2018,Home to College Post 16 Transport,Taxis - Contract Hire,120,ALPHA (IOW) LTD
Revenue,Childrens Services,Children's & Education Services,Other Education and Community Budget,5105659137,12.01.2018,Home to College Post 16 Transport,Taxis - Contract Hire,180,ALPHA (IOW) LTD
Revenue,Childrens Services,Children's & Education Services,Other Education and Community Budget,5105659759,17.01.2018,Home to College Post 16 Transport,Taxis - Contract Hire,18,ALPHA (IOW) LTD
Revenue,Childrens Services,Children's & Education Services,Other Education and Community Budget,5105659139,12.01.2018,Home to School SEN Transport (LA),Taxis - Contract Hire,150,ALPHA (IOW) LTD
Revenue,Childrens Services,Children's & Education Services,Other Education and Community Budget,5105659135,10.01.2018,Home to School SEN Transport (LA),Taxis - Contract Hire,200,ALPHA (IOW) LTD
Revenue,Childrens Services,Children's & Education Services,Other Education and Community Budget,5105659138,12.01.2018,Home to School SEN Transport (LA),Taxis - Contract Hire,250,ALPHA (IOW) LTD
Revenue,Childrens Services,Children's & Education Services,Other Education and Community Budget,5105659272,10.01.2018,Home to School SEN Transport (LA),Taxis - Contract Hire,250,ALPHA (IOW) LTD
Revenue,Childrens Services,Children's & Education Services,Other Education and Community Budget,5105659139,12.01.2018,Home to School SEN Transport (LA),Taxis - Contract Hire,250,ALPHA (IOW) LTD
Revenue,Childrens Services,Children's & Education Services,Other Education and Community Budget,5105659135,10.01.2018,Home to School SEN Transport (LA),Taxis - Contract Hire,240,ALPHA (IOW) LTD
Revenue,Childrens Services,Children's & Education Services,Other Education and Community Budget,5105659272,10.01.2018,Home to School SEN Transport (LA),Taxis - Contract Hire,300,ALPHA (IOW) LTD
Revenue,Childrens Services,Children's & Education Services,Other Education and Community Budget,5105659139,12.01.2018,Home to School SEN Transport (LA),Taxis - Contract Hire,300,ALPHA (IOW) LTD
Revenue,Childrens Services,Children's & Education Services,Other Education and Community Budget,5105659138,12.01.2018,Home to School SEN Transport (LA),Taxis - Contract Hire,300,ALPHA (IOW) LTD
Revenue,Childrens Services,Children's & Education Services,Other Education and Community Budget,5105659138,12.01.2018,Home to School SEN Transport (LA),Taxis - Contract Hire,350,ALPHA (IOW) LTD
Revenue,Childrens Services,Children's & Education Services,Other Education and Community Budget,5105659139,12.01.2018,Home to School SEN Transport (LA),Taxis - Contract Hire,350,ALPHA (IOW) LTD
Revenue,Childrens Services,Children's & Education Services,Other Education and Community Budget,5105659272,10.01.2018,Home to School SEN Transport (LA),Taxis - Contract Hire,350,ALPHA (IOW) LTD
Revenue,Childrens Services,Children's & Education Services,Other Education and Community Budget,5105659135,10.01.2018,Home to School SEN Transport (LA),Taxis - Contract Hire,350,ALPHA (IOW) LTD
Revenue,Childrens Services,Children's & Education Services,Other Education and Community Budget,5105659135,10.01.2018,Home to School SEN Transport (LA),Taxis - Contract Hire,80,ALPHA (IOW) LTD
Revenue,Childrens Services,Children's & Education Services,Other Education and Community Budget,5105659272,10.01.2018,Home to School SEN Transport (LA),Taxis - Contract Hire,100,ALPHA (IOW) LTD
Revenue,Childrens Services,Children's & Education Services,Other Education and Community Budget,5105659138,12.01.2018,Home to School SEN Transport (LA),Taxis - Contract Hire,100,ALPHA (IOW) LTD
Revenue,Childrens Services,Children's & Education Services,Other Education and Community Budget,5105659139,12.01.2018,Home to School SEN Transport (LA),Taxis - Contract Hire,100,ALPHA (IOW) LTD
Revenue,Childrens Services,Children's & Education Services,Other Education and Community Budget,5105659135,10.01.2018,Home to School SEN Transport (LA),Taxis - Contract Hire,224,ALPHA (IOW) LTD
Revenue,Childrens Services,Children's & Education Services,Other Education and Community Budget,5105659139,12.01.2018,Home to School SEN Transport (LA),Taxis - Contract Hire,280,ALPHA (IOW) LTD
Revenue,Childrens Services,Children's & Education Services,Other Education and Community Budget,5105659272,10.01.2018,Home to School SEN Transport (LA),Taxis - Contract Hire,280,ALPHA (IOW) LTD
Revenue,Childrens Services,Children's & Education Services,Other Education and Community Budget,5105659138,12.01.2018,Home to School SEN Transport (LA),Taxis - Contract Hire,280,ALPHA (IOW) LTD
Revenue,Childrens Services,Children's & Education Services,Other Education and Community Budget,5105659135,10.01.2018,Home to School SEN Transport (LA),Taxis - Contract Hire,360,ALPHA (IOW) LTD
Revenue,Childrens Services,Children's & Education Services,Other Education and Community Budget,5105659138,12.01.2018,Home to School SEN Transport (LA),Taxis - Contract Hire,450,ALPHA (IOW) LTD
Revenue,Childrens Services,Children's & Education Services,Other Education and Community Budget,5105659272,10.01.2018,Home to School SEN Transport (LA),Taxis - Contract Hire,450,ALPHA (IOW) LTD
Revenue,Childrens Services,Children's & Education Services,Other Education and Community Budget,5105659139,12.01.2018,Home to School SEN Transport (LA),Taxis - Contract Hire,450,ALPHA (IOW) LTD
Revenue,Childrens Services,Children's & Education Services,Other Education and Community Budget,5105659139,12.01.2018,Home to School SEN Transport (LA),Taxis - Contract Hire,400,ALPHA (IOW) LTD
Revenue,Childrens Services,Children's & Education Services,Other Education and Community Budget,5105659135,10.01.2018,Home to School SEN Transport (LA),Taxis - Contract Hire,320,ALPHA (IOW) LTD
Revenue,Childrens Services,Children's & Education Services,Other Education and Community Budget,5105659138,12.01.2018,Home to School SEN Transport (LA),Taxis - Contract Hire,400,ALPHA (IOW) LTD
Revenue,Childrens Services,Children's & Education Services,Other Education and Community Budget,5105659272,10.01.2018,Home to School SEN Transport (LA),Taxis - Contract Hire,400,ALPHA (IOW) LTD
Revenue,Childrens Services,Children's & Education Services,Other Education and Community Budget,5105659272,10.01.2018,Home to School SEN Transport (LA),Taxis - Contract Hire,350,ALPHA (IOW) LTD
Revenue,Childrens Services,Children's & Education Services,Other Education and Community Budget,5105659272,10.01.2018,Home to School SEN Transport (LA),Taxis - Contract Hire,250,ALPHA (IOW) LTD
Revenue,Childrens Services,Children's & Education Services,Other Education and Community Budget,5105659135,10.01.2018,Home to School SEN Transport (LA),Taxis - Contract Hire,200,ALPHA (IOW) LTD
Revenue,Childrens Services,Children's & Education Services,Other Education and Community Budget,5105659138,12.01.2018,Home to School SEN Transport (LA),Taxis - Contract Hire,250,ALPHA (IOW) LTD
Revenue,Childrens Services,Children's & Education Services,Other Education and Community Budget,5105659139,12.01.2018,Home to School SEN Transport (LA),Taxis - Contract Hire,250,ALPHA (IOW) LTD
Revenue,Childrens Services,Children's & Education Services,Other Education and Community Budget,5105659135,10.01.2018,Home to School SEN Transport (LA),Taxis - Contract Hire,160,ALPHA (IOW) LTD
Revenue,Childrens Services,Children's & Education Services,Other Education and Community Budget,5105659272,10.01.2018,Home to School SEN Transport (LA),Taxis - Contract Hire,200,ALPHA (IOW) LTD
Revenue,Childrens Services,Children's & Education Services,Other Education and Community Budget,5105659138,12.01.2018,Home to School SEN Transport (LA),Taxis - Contract Hire,200,ALPHA (IOW) LTD
Revenue,Childrens Services,Children's & Education Services,Other Education and Community Budget,5105659139,12.01.2018,Home to School SEN Transport (LA),Taxis - Contract Hire,200,ALPHA (IOW) LTD
Revenue,Childrens Services,Children's & Education Services,Other Education and Community Budget,5105659135,10.01.2018,Home to School SEN Transport (LA),Taxis - Contract Hire,360,ALPHA (IOW) LTD
Revenue,Childrens Services,Children's & Education Services,Other Education and Community Budget,5105659138,12.01.2018,Home to School SEN Transport (LA),Taxis - Contract Hire,450,ALPHA (IOW) LTD
Revenue,Childrens Services,Children's & Education Services,Other Education and Community Budget,5105659139,12.01.2018,Home to School SEN Transport (LA),Taxis - Contract Hire,450,ALPHA (IOW) LTD
Revenue,Childrens Services,Children's & Education Services,Other Education and Community Budget,5105659272,10.01.2018,Home to School SEN Transport (LA),Taxis - Contract Hire,450,ALPHA (IOW) LTD
Revenue,Childrens Services,Children's & Education Services,Other Education and Community Budget,5105659135,10.01.2018,Home to School SEN Transport (LA),Taxis - Contract Hire,260,ALPHA (IOW) LTD
Revenue,Childrens Services,Children's & Education Services,Other Education and Community Budget,5105659272,10.01.2018,Home to School SEN Transport (LA),Taxis - Contract Hire,325,ALPHA (IOW) LTD
Revenue,Childrens Services,Children's & Education Services,Other Education and Community Budget,5105659139,12.01.2018,Home to School SEN Transport (LA),Taxis - Contract Hire,325,ALPHA (IOW) LTD
Revenue,Childrens Services,Children's & Education Services,Other Education and Community Budget,5105659138,12.01.2018,Home to School SEN Transport (LA),Taxis - Contract Hire,325,ALPHA (IOW) LTD
Revenue,Childrens Services,Children's & Education Services,Other Education and Community Budget,5105659138,12.01.2018,Home to School SEN Transport (LA),Taxis - Contract Hire,300,ALPHA (IOW) LTD
Revenue,Childrens Services,Children's & Education Services,Other Education and Community Budget,5105659139,12.01.2018,Home to School SEN Transport (LA),Taxis - Contract Hire,300,ALPHA (IOW) LTD
Revenue,Childrens Services,Children's & Education Services,Other Education and Community Budget,5105659272,10.01.2018,Home to School SEN Transport (LA),Taxis - Contract Hire,300,ALPHA (IOW) LTD
Revenue,Childrens Services,Children's & Education Services,Other Education and Community Budget,5105659135,10.01.2018,Home to School SEN Transport (LA),Taxis - Contract Hire,240,ALPHA (IOW) LTD
Revenue,Childrens Services,Children's & Education Services,Other Education and Community Budget,5105659272,10.01.2018,Home to School SEN Transport (LA),Taxis - Contract Hire,450,ALPHA (IOW) LTD
Revenue,Childrens Services,Children's & Education Services,Other Education and Community Budget,5105659139,12.01.2018,Home to School SEN Transport (LA),Taxis - Contract Hire,450,ALPHA (IOW) LTD
Revenue,Childrens Services,Children's & Education Services,Other Education and Community Budget,5105659138,12.01.2018,Home to School SEN Transport (LA),Taxis - Contract Hire,450,ALPHA (IOW) LTD
Revenue,Childrens Services,Children's & Education Services,Other Education and Community Budget,5105659135,10.01.2018,Home to School SEN Transport (LA),Taxis - Contract Hire,360,ALPHA (IOW) LTD
Revenue,Childrens Services,Children's & Education Services,Other Education and Community Budget,5105659139,12.01.2018,Home to School SEN Transport (LA),Taxis - Contract Hire,350,ALPHA (IOW) LTD
Revenue,Childrens Services,Children's & Education Services,Other Education and Community Budget,5105659135,10.01.2018,Home to School SEN Transport (LA),Taxis - Contract Hire,350,ALPHA (IOW) LTD
Revenue,Childrens Services,Children's & Education Services,Other Education and Community Budget,5105659138,12.01.2018,Home to School SEN Transport (LA),Taxis - Contract Hire,350,ALPHA (IOW) LTD
Revenue,Childrens Services,Children's & Education Services,Other Education and Community Budget,5105659272,10.01.2018,Home to School SEN Transport (LA),Taxis - Contract Hire,395,ALPHA (IOW) LTD
Revenue,Childrens Services,Children's & Education Services,Other Education and Community Budget,5105659139,12.01.2018,Home to School SEN Transport (LA),Taxis - Contract Hire,395,ALPHA (IOW) LTD
Revenue,Childrens Services,Children's & Education Services,Other Education and Community Budget,5105659135,10.01.2018,Home to School SEN Transport (LA),Taxis - Contract Hire,316,ALPHA (IOW) LTD
Revenue,Childrens Services,Children's & Education Services,Other Education and Community Budget,5105659138,12.01.2018,Home to School SEN Transport (LA),Taxis - Contract Hire,395,ALPHA (IOW) LTD
Revenue,Childrens Services,Children's & Education Services,Other Education and Community Budget,5105659272,10.01.2018,Home to School SEN Transport (LA),Taxis - Contract Hire,200,ALPHA (IOW) LTD
Revenue,Childrens Services,Children's & Education Services,Other Education and Community Budget,5105659138,12.01.2018,Home to School SEN Transport (LA),Taxis - Contract Hire,200,ALPHA (IOW) LTD
Revenue,Childrens Services,Children's & Education Services,Other Education and Community Budget,5105659135,10.01.2018,Home to School SEN Transport (LA),Taxis - Contract Hire,160,ALPHA (IOW) LTD
Revenue,Childrens Services,Children's & Education Services,Other Education and Community Budget,5105659139,12.01.2018,Home to School SEN Transport (LA),Taxis - Contract Hire,200,ALPHA (IOW) LTD
Revenue,Childrens Services,Children's & Education Services,Other Education and Community Budget,5105659135,10.01.2018,Home to School SEN Transport (LA),Taxis - Contract Hire,480,ALPHA (IOW) LTD
Revenue,Childrens Services,Children's & Education Services,Other Education and Community Budget,5105659272,10.01.2018,Home to School SEN Transport (LA),Taxis - Contract Hire,600,ALPHA (IOW) LTD
Revenue,Childrens Services,Children's & Education Services,Other Education and Community Budget,5105659139,12.01.2018,Home to School SEN Transport (LA),Taxis - Contract Hire,600,ALPHA (IOW) LTD
Revenue,Childrens Services,Children's & Education Services,Other Education and Community Budget,5105659138,12.01.2018,Home to School SEN Transport (LA),Taxis - Contract Hire,600,ALPHA (IOW) LTD
Revenue,Childrens Services,Children's & Education Services,Other Education and Community Budget,5105659759,17.01.2018,Home to School SEN Transport (LA),Taxis - Contract Hire,60,ALPHA (IOW) LTD
Revenue,Childrens Services,Children's & Education Services,Other Education and Community Budget,5105659759,17.01.2018,Home to School SEN Transport (LA),Taxis - Contract Hire,100,ALPHA (IOW) LTD
Revenue,Childrens Services,Children's & Education Services,Other Education and Community Budget,5105659759,17.01.2018,Home to School SEN Transport (LA),Taxis - Contract Hire,80,ALPHA (IOW) LTD
Revenue,Childrens Services,Children's & Education Services,Other Education and Community Budget,5105659759,17.01.2018,Home to School SEN Transport (LA),Taxis - Contract Hire,100,ALPHA (IOW) LTD
Revenue,Childrens Services,Children's & Education Services,Other Education and Community Budget,5105659759,17.01.2018,Home to School SEN Transport (LA),Taxis - Contract Hire,180,ALPHA (IOW) LTD
Revenue,Childrens Services,Children's & Education Services,Other Education and Community Budget,5105659759,17.01.2018,Home to School SEN Transport (LA),Taxis - Contract Hire,120,ALPHA (IOW) LTD
Revenue,Childrens Services,Children's & Education Services,Other Education and Community Budget,5105659759,17.01.2018,Home to School SEN Transport (LA),Taxis - Contract Hire,130,ALPHA (IOW) LTD
Revenue,Childrens Services,Children's & Education Services,Other Education and Community Budget,5105659759,17.01.2018,Home to School SEN Transport (LA),Taxis - Contract Hire,120,ALPHA (IOW) LTD
Revenue,Childrens Services,Children's & Education Services,Other Education and Community Budget,5105659759,17.01.2018,Home to School SEN Transport (LA),Taxis - Contract Hire,140,ALPHA (IOW) LTD
Revenue,Childrens Services,Children's & Education Services,Other Education and Community Budget,5105659759,17.01.2018,Home to School SEN Transport (LA),Taxis - Contract Hire,40,ALPHA (IOW) LTD
Revenue,Childrens Services,Children's & Education Services,Other Education and Community Budget,5105659759,17.01.2018,Home to School SEN Transport (LA),Taxis - Contract Hire,112,ALPHA (IOW) LTD
Revenue,Childrens Services,Children's & Education Services,Other Education and Community Budget,5105659759,17.01.2018,Home to School SEN Transport (LA),Taxis - Contract Hire,180,ALPHA (IOW) LTD
Revenue,Childrens Services,Children's & Education Services,Other Education and Community Budget,5105659759,17.01.2018,Home to School SEN Transport (LA),Taxis - Contract Hire,160,ALPHA (IOW) LTD
Revenue,Childrens Services,Children's & Education Services,Other Education and Community Budget,5105659759,17.01.2018,Home to School SEN Transport (LA),Taxis - Contract Hire,140,ALPHA (IOW) LTD
Revenue,Childrens Services,Children's & Education Services,Other Education and Community Budget,5105659759,17.01.2018,Home to School SEN Transport (LA),Taxis - Contract Hire,158,ALPHA (IOW) LTD
Revenue,Childrens Services,Children's & Education Services,Other Education and Community Budget,5105659759,17.01.2018,Home to School SEN Transport (LA),Taxis - Contract Hire,80,ALPHA (IOW) LTD
Revenue,Childrens Services,Children's & Education Services,Other Education and Community Budget,5105659759,17.01.2018,Home to School SEN Transport (LA),Taxis - Contract Hire,240,ALPHA (IOW) LTD
Revenue,Childrens Services,Children's & Education Services,Other Education and Community Budget,5105659759,17.01.2018,Home to School SEN Transport (LA),Taxis - Contract Hire,180,ALPHA (IOW) LTD
Revenue,Childrens Services,Children's & Education Services,Family Support Services,5105658977,10.01.2018,S17 Disabled Children,Transport of Clients,15.6,ALPHA (IOW) LTD
Revenue,Childrens Services,Children's & Education Services,Other Education and Community Budget,5105659135,10.01.2018,Home to School SEN Transport (LA),Taxis - Contract Hire,120,ALPHA (IOW) LTD
Revenue,Childrens Services,Children's & Education Services,Other Education and Community Budget,5105659272,10.01.2018,Home to School SEN Transport (LA),Taxis - Contract Hire,150,ALPHA (IOW) LTD
Revenue,Childrens Services,Children's & Education Services,Other Education and Community Budget,5105659138,12.01.2018,Home to School SEN Transport (LA),Taxis - Contract Hire,150,ALPHA (IOW) LTD
Revenue,Adult Services,Adult Social Care,Learning Disability Suppt-adults (18-64),5105660311,24.01.2018,Learning Disability Residential 18-64,Charges from Independent Providers,"3,836.84",ALPHAGRANGE LTD
Capital,Place,Capital,Capital,5105660656,24.01.2018,Waste Capital Programme,Payment to Contractors - Capital,"1,482,242.32",AMEY (IOW) SPV LIMITED
Revenue,Place,Environmental & Regulatory Services,Waste Disposal,5105658431,03.01.2018,Waste Disposal - Amey Contract,Waste Contractors,"4,007.10",AMEY (IOW) SPV LIMITED
Revenue,Place,Environmental & Regulatory Services,Waste Disposal,5105660657,24.01.2018,Waste Disposal - Amey Contract,Waste Contractors,"350,421.72",AMEY (IOW) SPV LIMITED
Revenue,Place,Environmental & Regulatory Services,Recycling,5105660657,24.01.2018,Waste Recycling - Amey Contract,Waste Contractors,"32,073.71",AMEY (IOW) SPV LIMITED
Revenue,Place,Environmental & Regulatory Services,Waste Collection,5105660657,24.01.2018,Waste Collection - Amey Contract,Waste Contractors,"302,414.88",AMEY (IOW) SPV LIMITED
Capital,Corporate Items,Balance Sheet,Balance Sheet,5105660313,24.01.2018,Balance Sheet,Order Settlement to Bal Sht GL,614.04,ANCONA CARE HOME
Revenue,Adult Services,Adult Social Care,Physical Support - older people (65+),5105660313,24.01.2018,Physical Support Residential 65+,Charges from Independent Providers,"1,862.00",ANCONA CARE HOME
Revenue,Adult Services,Adult Social Care,Physical Support - older people (65+),5105660313,24.01.2018,Physical Support Residential 65+,Charges from Independent Providers,"1,950.20",ANCONA CARE HOME
Revenue,Adult Services,Adult Social Care,Physical Support - older people (65+),5105660313,24.01.2018,Physical Support Residential 65+,Charges from Independent Providers,"1,950.20",ANCONA CARE HOME
Revenue,Adult Services,Adult Social Care,Physical Support - older people (65+),5105660313,24.01.2018,Physical Support Residential 65+,Charges from Independent Providers,"1,862.00",ANCONA CARE HOME
Revenue,Adult Services,Adult Social Care,Physical Support - older people (65+),5105660313,24.01.2018,Physical Support Residential 65+,Charges from Independent Providers,"1,862.00",ANCONA CARE HOME
Revenue,Childrens Services,Children's & Education Services,Children Looked After,5105659068,10.01.2018,Purchased Residential,Charges from Independent Providers,"18,181.56",ANDERIDA ADOLESCENT CARE LTD
Revenue,Chief Executive,Central Services,Support Services,5105659060,10.01.2018,Print Unit,Printing Costs,24.1,ANTALIS MCNAUGHTON
Revenue,Chief Executive,Central Services,Support Services,5105659060,10.01.2018,Print Unit,Printing Costs,16.46,ANTALIS MCNAUGHTON
Revenue,Chief Executive,Central Services,Support Services,5105659060,10.01.2018,Print Unit,Printing Costs,57.3,ANTALIS MCNAUGHTON
Revenue,Chief Executive,Central Services,Support Services,5105659060,10.01.2018,Print Unit,Printing Costs,33.5,ANTALIS MCNAUGHTON
Revenue,Chief Executive,Central Services,Support Services,5105659216,10.01.2018,Print Unit,Printing Costs,39.2,ANTALIS MCNAUGHTON
Revenue,Chief Executive,Central Services,Support Services,5105659216,10.01.2018,Print Unit,Printing Costs,37.5,ANTALIS MCNAUGHTON
Revenue,Chief Executive,Central Services,Support Services,5105659216,10.01.2018,Print Unit,Printing Costs,36.33,ANTALIS MCNAUGHTON
Revenue,Chief Executive,Central Services,Support Services,5105658747,05.01.2018,Print Unit,Printing Costs,49.6,ANTALIS MCNAUGHTON
Revenue,Chief Executive,Central Services,Support Services,5105659521,12.01.2018,Print Unit,Printing Costs,49.6,ANTALIS MCNAUGHTON
Revenue,Chief Executive,Central Services,Support Services,5105659521,12.01.2018,Print Unit,Printing Costs,67,ANTALIS MCNAUGHTON
Revenue,Chief Executive,Central Services,Support Services,5105659521,12.01.2018,Print Unit,Printing Costs,15.74,ANTALIS MCNAUGHTON
Revenue,Place,Highways and Transport Services,"Airports, Harbours & Toll Facilities",5105658179,10.01.2018,Ferry Operation,Clothing & Laundry,78.75,ARCO LTD
Revenue,Place,Highways and Transport Services,"Airports, Harbours & Toll Facilities",5105659081,10.01.2018,Ferry Operation,Clothing & Laundry,-78.75,ARCO LTD
Revenue,Place,Highways and Transport Services,"Airports, Harbours & Toll Facilities",5105659775,17.01.2018,Ferry Operation,Clothing & Laundry,3.6,ARCO LTD
Revenue,Place,Highways and Transport Services,"Airports, Harbours & Toll Facilities",5105659775,17.01.2018,Ferry Operation,Clothing & Laundry,10.44,ARCO LTD
Revenue,Place,Highways and Transport Services,"Airports, Harbours & Toll Facilities",5105660991,26.01.2018,Ferry Operation,Clothing & Laundry,20.03,ARCO LTD
Revenue,Place,Highways and Transport Services,"Airports, Harbours & Toll Facilities",5105660991,26.01.2018,Ferry Operation,Clothing & Laundry,46.49,ARCO LTD
Revenue,Place,Highways and Transport Services,"Airports, Harbours & Toll Facilities",5105660991,26.01.2018,Ferry Operation,Clothing & Laundry,46.49,ARCO LTD
Revenue,Place,Housing Services,Homelessness,5105657119,05.01.2018,"Options,Prevention & Register Team",Clothing & Laundry,94.97,ARCO LTD
Revenue,Place,Environmental & Regulatory Services,Service Management and Support Services,5105661006,26.01.2018,Environment officers,Clothing & Laundry,36.74,ARCO LTD
Revenue,Place,Environmental & Regulatory Services,Service Management and Support Services,5105660695,24.01.2018,Environment officers,Operational Equipment,140.94,ARCO LTD
Revenue,Place,Housing Services,Homelessness,5105659778,17.01.2018,Homelessness,Medical Fees and Staff Welfare,10,ARGYLL HOUSE SURGERY
Revenue,Place,Housing Services,Homelessness,5105659780,17.01.2018,Homelessness,Medical Fees and Staff Welfare,25.15,ARGYLL HOUSE SURGERY
Revenue,Place,Housing Services,Homelessness,5105659779,17.01.2018,Homelessness,Medical Fees and Staff Welfare,25.15,ARGYLL HOUSE SURGERY
Revenue,Adult Services,Adult Social Care,Assistive Equipment & Technology,5105657912,19.01.2018,Community Equipment Store,Operational Equipment,438,ARJO UK LTD
Revenue,Adult Services,Adult Social Care,Assistive Equipment & Technology,5105659218,10.01.2018,Community Equipment Store,Operational Equipment,147.99,ARJO UK LTD
Revenue,Adult Services,Adult Social Care,Learning Disab Supp (to be reallocated),5105658813,05.01.2018,Saxonbury,Minor Works,126.39,ARJO UK LTD
Revenue,Adult Services,Adult Social Care,Learning Disability Support-older people,5105660506,24.01.2018,Learning Disability Residential 65+,Charges from Independent Providers,"1,763.72",ASPENGLADE LTD
Revenue,Adult Services,Adult Social Care,Central Codes (to be reallocated),5105659134,10.01.2018,Mental Health Day Services,Grounds Maintenance,200,ASPIRE RYDE
Revenue,Childrens Services,Children's & Education Services,Special Schools & Alternative Provision,5105660743,24.01.2018,Island Learning Centre,Hire of facilities,22,ASPIRE RYDE
Revenue,Place,Cultural and Related Services,Culture and Heritage,5105658458,05.01.2018,Medina Theatre,Property Services - Day to day Maintenance,131.43,ASSA ABLOY ENTRANCE SYSTEMS LTD
Revenue,Adult Services,Adult Social Care,Central Codes (to be reallocated),5105661173,31.01.2018,Mental Health Day Services,Property Services - Day to day Maintenance,47.49,ASSA ABLOY ENTRANCE SYSTEMS LTD
Revenue,Regeneration,Central Services,Support Services,5105658240,03.01.2018,"Westridge, Ryde",Property Services - Day to day Maintenance,167.89,ASSA ABLOY ENTRANCE SYSTEMS LTD
Revenue,Childrens Services,Children's & Education Services,Other Education and Community Budget,5105658996,10.01.2018,Learning & Development Running Costs,Minor Works,120.54,ASSA ABLOY ENTRANCE SYSTEMS LTD
Revenue,Childrens Services,Children's & Education Services,Special Schools & Alternative Provision,5105659023,10.01.2018,Island Learning Centre,Schools Examination Fees,503.25,ASSESSMENT & QUALIFICATION ALLIANCE
Revenue,Childrens Services,Children's & Education Services,Special Schools & Alternative Provision,5105659022,10.01.2018,Island Learning Centre,Schools Examination Fees,"1,124.48",ASSESSMENT & QUALIFICATION ALLIANCE
Revenue,Adult Services,Adult Social Care,Support - Memory /Cognition-older people (65+),5105660293,24.01.2018,Memory & Cognition Residential 65+,Charges from Independent Providers,"1,950.20",AUTUMN HOUSE CARE LTD
Revenue,Adult Services,Adult Social Care,Support - Memory /Cognition-older people (65+),5105661192,31.01.2018,Memory & Cognition Residential 65+,Charges from Independent Providers,"1,228.20",AUTUMN HOUSE CARE LTD
Revenue,Adult Services,Adult Social Care,Physical Support - older people (65+),5105660293,24.01.2018,Physical Support Residential 65+,Charges from Independent Providers,"1,950.20",AUTUMN HOUSE CARE LTD
Revenue,Adult Services,Adult Social Care,Support - Memory /Cognition-older people (65+),5105660293,24.01.2018,Memory & Cognition Residential 65+,Charges from Independent Providers,"2,292.64",AUTUMN HOUSE CARE LTD
Revenue,Adult Services,Adult Social Care,Support - Memory /Cognition-older people (65+),5105660293,24.01.2018,Memory & Cognition Residential 65+,Charges from Independent Providers,"2,292.64",AUTUMN HOUSE CARE LTD
Revenue,Adult Services,Adult Social Care,Support - Memory /Cognition-older people (65+),5105660293,24.01.2018,Memory & Cognition Residential 65+,Charges from Independent Providers,"2,292.64",AUTUMN HOUSE CARE LTD
Revenue,Adult Services,Adult Social Care,Physical Support - older people (65+),5105660293,24.01.2018,Physical Support Residential 65+,Charges from Independent Providers,"2,292.64",AUTUMN HOUSE CARE LTD
Revenue,Adult Services,Adult Social Care,Physical Support - older people (65+),5105660293,24.01.2018,Physical Support Residential 65+,Charges from Independent Providers,"2,292.64",AUTUMN HOUSE CARE LTD
Revenue,Adult Services,Adult Social Care,Physical Support - older people (65+),5105660293,24.01.2018,Physical Support Residential 65+,Charges from Independent Providers,"1,950.20",AUTUMN HOUSE CARE LTD
Revenue,Adult Services,Adult Social Care,Support - Memory /Cognition-older people (65+),5105660293,24.01.2018,Memory & Cognition Residential 65+,Charges from Independent Providers,"2,292.64",AUTUMN HOUSE CARE LTD
Revenue,Adult Services,Adult Social Care,Support - Memory /Cognition-older people (65+),5105660293,24.01.2018,Memory & Cognition Residential 65+,Charges from Independent Providers,"2,292.64",AUTUMN HOUSE CARE LTD
Revenue,Adult Services,Adult Social Care,Physical Support - older people (65+),5105660293,24.01.2018,Physical Support Residential 65+,Charges from Independent Providers,"2,292.64",AUTUMN HOUSE CARE LTD
Revenue,Adult Services,Adult Social Care,Physical Support - older people (65+),5105660293,24.01.2018,Physical Support Residential 65+,Charges from Independent Providers,"2,292.64",AUTUMN HOUSE CARE LTD
Revenue,Adult Services,Adult Social Care,Support - Memory /Cognition-older people (65+),5105660293,24.01.2018,Memory & Cognition Residential 65+,Charges from Independent Providers,"1,950.20",AUTUMN HOUSE CARE LTD
Revenue,Adult Services,Adult Social Care,Support - Memory /Cognition-older people (65+),5105660293,24.01.2018,Memory & Cognition Residential 65+,Charges from Independent Providers,"2,292.64",AUTUMN HOUSE CARE LTD
Revenue,Adult Services,Adult Social Care,Physical Support - older people (65+),5105660293,24.01.2018,Physical Support Residential 65+,Charges from Independent Providers,"2,292.64",AUTUMN HOUSE CARE LTD
Revenue,Adult Services,Adult Social Care,Physical Support - older people (65+),5105660293,24.01.2018,Physical Support Residential 65+,Charges from Independent Providers,"1,950.20",AUTUMN HOUSE CARE LTD
Revenue,Adult Services,Adult Social Care,Support - Memory /Cognition-older people (65+),5105660293,24.01.2018,Memory & Cognition Residential 65+,Charges from Independent Providers,"2,292.64",AUTUMN HOUSE CARE LTD
Revenue,Adult Services,Adult Social Care,Support - Memory /Cognition-older people (65+),5105660293,24.01.2018,Memory & Cognition Residential 65+,Charges from Independent Providers,"2,292.64",AUTUMN HOUSE CARE LTD
Revenue,Adult Services,Adult Social Care,Support - Memory /Cognition-older people (65+),5105660293,24.01.2018,Memory & Cognition Residential 65+,Charges from Independent Providers,"2,292.64",AUTUMN HOUSE CARE LTD
Revenue,Adult Services,Adult Social Care,Support - Memory /Cognition-older people (65+),5105660293,24.01.2018,Memory & Cognition Residential 65+,Charges from Independent Providers,"2,292.64",AUTUMN HOUSE CARE LTD
Revenue,Adult Services,Adult Social Care,Support - Memory /Cognition-older people (65+),5105660293,24.01.2018,Memory & Cognition Residential 65+,Charges from Independent Providers,"2,292.64",AUTUMN HOUSE CARE LTD
Revenue,Adult Services,Adult Social Care,Physical Support - older people (65+),5105660293,24.01.2018,Physical Support Residential 65+,Charges from Independent Providers,"2,292.64",AUTUMN HOUSE CARE LTD
Revenue,Adult Services,Adult Social Care,Support - Memory /Cognition-older people (65+),5105660293,24.01.2018,Memory & Cognition Residential 65+,Charges from Independent Providers,"2,292.64",AUTUMN HOUSE CARE LTD
Revenue,Adult Services,Adult Social Care,Support - Memory /Cognition-older people (65+),5105659178,10.01.2018,Memory & Cognition Residential 65+,Charges from Independent Providers,"1,810.90",AUTUMN HOUSE CARE LTD
Revenue,Adult Services,Adult Social Care,Mental Health Support-older people (65+),5105660293,24.01.2018,Mental Health Residential 65+,Charges from Independent Providers,"2,292.64",AUTUMN HOUSE CARE LTD
Revenue,Adult Services,Adult Social Care,Physical Support - older people (65+),5105660498,24.01.2018,Physical Support Residential 65+,Charges from Independent Providers,"2,240.56",AVON PARK RESIDENTIAL HOME
Revenue,Place,Cultural and Related Services,Service Management and Support Services,5105658325,03.01.2018,Duke of Edingburgh Award,General Materials,10,AWARD SCHEME LTD
Revenue,Place,Cultural and Related Services,Service Management and Support Services,5105658325,03.01.2018,Duke of Edingburgh Award,General Materials,3.9,AWARD SCHEME LTD
Revenue,Place,Cultural and Related Services,Service Management and Support Services,5105658325,03.01.2018,Duke of Edingburgh Award,General Materials,367,AWARD SCHEME LTD
Revenue,Place,Cultural and Related Services,Service Management and Support Services,5105659010,10.01.2018,Duke of Edingburgh Award,General Materials,54,AWARD SCHEME LTD
Revenue,Place,Cultural and Related Services,Service Management and Support Services,5105659010,10.01.2018,Duke of Edingburgh Award,General Materials,6.25,AWARD SCHEME LTD
Revenue,Childrens Services,Children's & Education Services,Children Looked After,5105659166,10.01.2018,In-house Fostering,Computer Purchase & Rental,"2,070.00",AZEUS UK LIMITED
Revenue,Childrens Services,Children's & Education Services,Children Looked After,5105659166,10.01.2018,In-house Fostering,Computer Purchase & Rental,180,AZEUS UK LIMITED
Revenue,Childrens Services,Children's & Education Services,Children Looked After,5105659166,10.01.2018,Adoption Costs,Computer Purchase & Rental,"2,070.00",AZEUS UK LIMITED
Revenue,Childrens Services,Children's & Education Services,Children Looked After,5105659166,10.01.2018,Adoption Costs,Computer Purchase & Rental,180,AZEUS UK LIMITED
Revenue,Place,Cultural and Related Services,Culture and Heritage,5105660109,19.01.2018,Museums & Collections Management,Maintenance of Operational Equipment,315.67,AZPACK LIMITED
Revenue,Childrens Services,Children's & Education Services,Children Looked After,5105658523,05.01.2018,In-house Fostering,Boarding Out Allowances,234.52,REDACTED PERSONAL DATA
Revenue,Childrens Services,Children's & Education Services,Children Looked After,5105660804,26.01.2018,In-house Fostering,Boarding Out Allowances,234.52,REDACTED PERSONAL DATA
Revenue,Childrens Services,Children's & Education Services,Children Looked After,5105659880,19.01.2018,In-house Fostering,Boarding Out Allowances,234.52,REDACTED PERSONAL DATA
Revenue,Childrens Services,Children's & Education Services,Children Looked After,5105659307,12.01.2018,In-house Fostering,Boarding Out Allowances,234.52,REDACTED PERSONAL DATA
Revenue,Childrens Services,Children's & Education Services,Children Looked After,5105659880,19.01.2018,Leaving Care Costs,Support Children,50,REDACTED PERSONAL DATA
Revenue,Childrens Services,Children's & Education Services,Children Looked After,5105660804,26.01.2018,Leaving Care Costs,Support Children,50,REDACTED PERSONAL DATA
Revenue,Childrens Services,Children's & Education Services,Children Looked After,5105659307,12.01.2018,Leaving Care Costs,Support Children,50,REDACTED PERSONAL DATA
Revenue,Childrens Services,Children's & Education Services,Children Looked After,5105658523,05.01.2018,Leaving Care Costs,Support Children,50,REDACTED PERSONAL DATA
Revenue,Childrens Services,Children's & Education Services,Children Looked After,5105658317,03.01.2018,Leaving Care Costs,Support Children,500,REDACTED PERSONAL DATA
Revenue,Childrens Services,Children's & Education Services,Other Education and Community Budget,5105659241,10.01.2018,Branstone Farm Studies Centre,Fuel Oil,62,REDACTED PERSONAL DATA
Revenue,Resources,Central Services,Support Services,5105660533,24.01.2018,Staff Benefits,Payment to Private Contractors,100,REDACTED PERSONAL DATA
Revenue,Resources,Central Services,Support Services,5105660533,24.01.2018,Staff Benefits,Payment to Private Contractors,100,REDACTED PERSONAL DATA
Revenue,Place,Housing Services,Homelessness,5105660243,24.01.2018,Leaseholds by LA,Accommodation Costs - Leaseholder Payments,799.5,REDACTED PERSONAL DATA
Revenue,Place,Housing Services,Homelessness,5105660243,24.01.2018,Leaseholds by LA,Accommodation Costs - Leaseholder Payments,888.33,REDACTED PERSONAL DATA
Revenue,Place,Housing Services,Homelessness,5105660243,24.01.2018,Leaseholds by LA,Accommodation Costs - Leaseholder Payments,866.67,REDACTED PERSONAL DATA
Capital,Corporate Items,Balance Sheet,Balance Sheet,5105660486,24.01.2018,Balance Sheet,Order Settlement to Bal Sht GL,160.16,B&M INVESTMENTS LTD
Revenue,Adult Services,Adult Social Care,Physical Support - older people (65+),5105660486,24.01.2018,Physical Support Residential 65+,Charges from Independent Providers,"1,920.80",B&M INVESTMENTS LTD
Revenue,Adult Services,Adult Social Care,Assistive Equipment & Technology,5105658891,10.01.2018,Community Equipment Store,Operational Equipment,59.96,B.E.S REHAB LTD
Revenue,Adult Services,Adult Social Care,Assistive Equipment & Technology,5105658891,10.01.2018,Community Equipment Store,Operational Equipment,239.84,B.E.S REHAB LTD
Revenue,Adult Services,Adult Social Care,Assistive Equipment & Technology,5105658891,10.01.2018,Community Equipment Store,Operational Equipment,65,B.E.S REHAB LTD
Revenue,Place,Fire & Rescue Services,Fire fighting and Rescue Operations,5105658446,19.01.2018,Fire Technical Support,Vehicle Maintenance Costs,"4,930.62",BABCOCK CRITICAL SERVICES LTD
Revenue,Place,Fire & Rescue Services,Fire fighting and Rescue Operations,5105661059,31.01.2018,Fire Technical Support,Vehicle Maintenance Costs,"4,930.62",BABCOCK CRITICAL SERVICES LTD
Revenue,Resources,Central Services,Support Services,5105658752,05.01.2018,Litigation Costs,Legal Fees - Other Parties,400,REDACTED PERSONAL DATA
Revenue,Place,Fire & Rescue Services,Fire fighting and Rescue Operations,5105656302,05.01.2018,Fire Technical Support,Payment to Private Contractors,877.76,BALLYCLARE LTD
Revenue,Place,Fire & Rescue Services,Fire fighting and Rescue Operations,5105658897,10.01.2018,Fire Technical Support,Payment to Private Contractors,877.76,BALLYCLARE LTD
Revenue,Place,Fire & Rescue Services,Fire fighting and Rescue Operations,5105658900,10.01.2018,Fire Technical Support,Payment to Private Contractors,"7,005.79",BALLYCLARE LTD
Revenue,Adult Services,Adult Social Care,Social Care Activities,5105658884,10.01.2018,Commissioning Manager Individual Support,Consultants Fees,"3,100.00",BALTIMORE CONSULTING LIMITED
Revenue,Adult Services,Adult Social Care,Social Care Activities,5105658958,05.01.2018,Commissioning Manager Individual Support,Consultants Fees,"3,100.00",BALTIMORE CONSULTING LIMITED
Revenue,Adult Services,Adult Social Care,Social Care Activities,5105659691,17.01.2018,Commissioning Manager Individual Support,Consultants Fees,"3,100.00",BALTIMORE CONSULTING LIMITED
Revenue,Adult Services,Adult Social Care,Social Care Activities,5105659703,17.01.2018,Commissioning Manager Individual Support,Consultants Fees,"3,100.00",BALTIMORE CONSULTING LIMITED
Revenue,Adult Services,Adult Social Care,Social Care Activities,5105660207,19.01.2018,Commissioning Manager Individual Support,Consultants Fees,"3,100.00",BALTIMORE CONSULTING LIMITED
Revenue,Adult Services,Adult Social Care,Social Care Activities,5105660208,19.01.2018,Commissioning Manager Individual Support,Consultants Fees,"2,480.00",BALTIMORE CONSULTING LIMITED
Revenue,Place,Central Services,Central Services to the Public,5105658759,05.01.2018,Coroner,Stationery,1.56,SUPPLIES TEAM LTD
Revenue,Adult Services,Adult Social Care,Assistive Equipment & Technology,5105658760,05.01.2018,Community Equipment Store,Stationery,4.96,SUPPLIES TEAM LTD
Revenue,Adult Services,Adult Social Care,Assistive Equipment & Technology,5105658361,03.01.2018,Wightcare,Stationery,31.3,SUPPLIES TEAM LTD
Revenue,Place,Housing Services,Private Sector Housing Renewal,5105658363,03.01.2018,Renewal & Enforcement,Stationery,4.49,SUPPLIES TEAM LTD
Revenue,Place,Housing Services,Private Sector Housing Renewal,5105658363,03.01.2018,Renewal & Enforcement,Stationery,4.92,SUPPLIES TEAM LTD
Revenue,Childrens Services,Children's & Education Services,Youth Justice,5105658363,03.01.2018,Youth Offending Team,Stationery,17.14,SUPPLIES TEAM LTD
Revenue,Place,Cultural and Related Services,Culture and Heritage,5105656155,05.01.2018,Museums & Collections Management,Stationery,25.71,SUPPLIES TEAM LTD
Revenue,Place,Cultural and Related Services,Culture and Heritage,5105656155,05.01.2018,Museums & Collections Management,Stationery,0.53,SUPPLIES TEAM LTD
Revenue,Place,Cultural and Related Services,Culture and Heritage,5105656155,05.01.2018,Museums & Collections Management,Stationery,1.23,SUPPLIES TEAM LTD
Revenue,Place,Central Services,Central Services to the Public,5105656788,24.01.2018,Coroner,Stationery,1.72,SUPPLIES TEAM LTD
Revenue,Place,Central Services,Central Services to the Public,5105656788,24.01.2018,Coroner,Stationery,34.28,SUPPLIES TEAM LTD
Revenue,Place,Central Services,Central Services to the Public,5105656788,24.01.2018,Coroner,Stationery,1.9,SUPPLIES TEAM LTD
Revenue,Place,Central Services,Central Services to the Public,5105656788,24.01.2018,Coroner,Stationery,0.54,SUPPLIES TEAM LTD
Revenue,Place,Central Services,Central Services to the Public,5105656788,24.01.2018,Coroner,Stationery,0.76,SUPPLIES TEAM LTD
Revenue,Place,Planning services,Building Control,5105656788,24.01.2018,Building Control,Stationery,7.22,SUPPLIES TEAM LTD
Revenue,Place,Environmental & Regulatory Services,Regulatory Services,5105658766,05.01.2018,Licensing Services,Stationery,3.84,SUPPLIES TEAM LTD
Revenue,Place,Cultural and Related Services,Library Service,5105658823,05.01.2018,Newport Library,Stationery,15.65,SUPPLIES TEAM LTD
Revenue,Childrens Services,Children's & Education Services,Other Education and Community Budget,5105658820,05.01.2018,Education Welfare Service,Stationery,0.7,SUPPLIES TEAM LTD
Revenue,Childrens Services,Children's & Education Services,Other Education and Community Budget,5105658820,05.01.2018,Education Welfare Service,Stationery,0.53,SUPPLIES TEAM LTD
Revenue,Childrens Services,Children's & Education Services,Management & Support Services,5105658820,05.01.2018,Specialist Service Business Admin,Stationery,4.98,SUPPLIES TEAM LTD
Revenue,Childrens Services,Children's & Education Services,Management & Support Services,5105658820,05.01.2018,Specialist Service Business Admin,Stationery,5.16,SUPPLIES TEAM LTD
Revenue,Childrens Services,Children's & Education Services,Management & Support Services,5105658820,05.01.2018,Specialist Service Business Admin,Stationery,2.28,SUPPLIES TEAM LTD
Revenue,Childrens Services,Children's & Education Services,Management & Support Services,5105658820,05.01.2018,Pre-school Special Educational Needs,Stationery,10.68,SUPPLIES TEAM LTD
Revenue,Childrens Services,Children's & Education Services,Management & Support Services,5105658820,05.01.2018,Specialist Service Business Admin,Stationery,68.56,SUPPLIES TEAM LTD
Revenue,Childrens Services,Children's & Education Services,Management & Support Services,5105658820,05.01.2018,Specialist Service Business Admin,Stationery,1.06,SUPPLIES TEAM LTD
Revenue,Childrens Services,Children's & Education Services,Management & Support Services,5105658820,05.01.2018,Specialist Service Business Admin,Stationery,2.46,SUPPLIES TEAM LTD
Revenue,Childrens Services,Children's & Education Services,Management & Support Services,5105658820,05.01.2018,Specialist Service Business Admin,Stationery,0.34,SUPPLIES TEAM LTD
Revenue,Childrens Services,Children's & Education Services,Management & Support Services,5105658820,05.01.2018,Specialist Service Business Admin,Stationery,0.16,SUPPLIES TEAM LTD
Revenue,Childrens Services,Children's & Education Services,Management & Support Services,5105658820,05.01.2018,Pre-school Special Educational Needs,Stationery,7,SUPPLIES TEAM LTD
Revenue,Resources,Central Services,Corporate and Democratic Core,5105658774,05.01.2018,Committee and Scrutiny Team,Stationery,27.66,SUPPLIES TEAM LTD
Revenue,Adult Services,Adult Social Care,Assistive Equipment & Technology,5105659234,10.01.2018,Community Equipment Store,Stationery,17.14,SUPPLIES TEAM LTD
Revenue,Adult Services,Adult Social Care,Assistive Equipment & Technology,5105659234,10.01.2018,Community Equipment Store,Stationery,4.91,SUPPLIES TEAM LTD
Revenue,Adult Services,Adult Social Care,Assistive Equipment & Technology,5105659234,10.01.2018,Community Equipment Store,Stationery,0.53,SUPPLIES TEAM LTD
Revenue,Adult Services,Adult Social Care,Assistive Equipment & Technology,5105659234,10.01.2018,Community Equipment Store,Stationery,1.38,SUPPLIES TEAM LTD
Revenue,Adult Services,Adult Social Care,Assistive Equipment & Technology,5105659234,10.01.2018,Community Equipment Store,Stationery,1.32,SUPPLIES TEAM LTD
Revenue,Adult Services,Adult Social Care,Assistive Equipment & Technology,5105659234,10.01.2018,Community Equipment Store,Stationery,3.19,SUPPLIES TEAM LTD
Revenue,Adult Services,Adult Social Care,Assistive Equipment & Technology,5105659234,10.01.2018,Community Equipment Store,Stationery,1.48,SUPPLIES TEAM LTD
Revenue,Place,Environmental & Regulatory Services,Regulatory Services,5105659226,17.01.2018,Licensing Services,Stationery,0.78,SUPPLIES TEAM LTD
Revenue,Place,Environmental & Regulatory Services,Regulatory Services,5105659226,17.01.2018,Licensing Services,Stationery,17.14,SUPPLIES TEAM LTD
Revenue,Childrens Services,Children's & Education Services,Safeguarding Children/Young Peoples Svs,5105659226,17.01.2018,LSCB (Local Safeguarding Childrens Board),Stationery,1.98,SUPPLIES TEAM LTD
Revenue,Childrens Services,Children's & Education Services,Safeguarding Children/Young Peoples Svs,5105659226,17.01.2018,LSCB (Local Safeguarding Childrens Board),Stationery,1.23,SUPPLIES TEAM LTD
Revenue,Childrens Services,Children's & Education Services,Safeguarding Children/Young Peoples Svs,5105659226,17.01.2018,LSCB (Local Safeguarding Childrens Board),Stationery,0.71,SUPPLIES TEAM LTD
Revenue,Childrens Services,Children's & Education Services,Safeguarding Children/Young Peoples Svs,5105659226,17.01.2018,LSCB (Local Safeguarding Childrens Board),Stationery,0.17,SUPPLIES TEAM LTD
Revenue,Childrens Services,Children's & Education Services,Safeguarding Children/Young Peoples Svs,5105659226,17.01.2018,LSCB (Local Safeguarding Childrens Board),Stationery,1.71,SUPPLIES TEAM LTD
Revenue,Childrens Services,Children's & Education Services,Safeguarding Children/Young Peoples Svs,5105659226,17.01.2018,LSCB (Local Safeguarding Childrens Board),Stationery,2.9,SUPPLIES TEAM LTD
Revenue,Childrens Services,Children's & Education Services,Safeguarding Children/Young Peoples Svs,5105659226,17.01.2018,LSCB (Local Safeguarding Childrens Board),Stationery,1.37,SUPPLIES TEAM LTD
Revenue,Childrens Services,Children's & Education Services,Safeguarding Children/Young Peoples Svs,5105659226,17.01.2018,LSCB (Local Safeguarding Childrens Board),Stationery,4.4,SUPPLIES TEAM LTD
Revenue,Childrens Services,Children's & Education Services,Management & Support Services,5105659222,10.01.2018,Pre-school Special Educational Needs,Stationery,6.99,SUPPLIES TEAM LTD
Revenue,Childrens Services,Children's & Education Services,Management & Support Services,5105660730,24.01.2018,Specialist Service Business Admin,Stationery,68.56,SUPPLIES TEAM LTD
Revenue,Childrens Services,Children's & Education Services,Management & Support Services,5105660730,24.01.2018,Specialist Service Business Admin,Stationery,2.46,SUPPLIES TEAM LTD
Revenue,Childrens Services,Children's & Education Services,Management & Support Services,5105659499,12.01.2018,Specialist Service Business Admin,Stationery,2.15,SUPPLIES TEAM LTD
Revenue,Adult Services,Adult Social Care,Assistive Equipment & Technology,5105659497,12.01.2018,Community Equipment Store,Stationery,9.92,SUPPLIES TEAM LTD
Revenue,Place,Planning services,Building Control,5105659507,19.01.2018,Building Control,Stationery,10.68,SUPPLIES TEAM LTD
Revenue,Place,Planning services,Building Control,5105659507,19.01.2018,Building Control,Stationery,4.02,SUPPLIES TEAM LTD
Revenue,Place,Planning services,Building Control,5105659507,19.01.2018,Building Control,Stationery,0.57,SUPPLIES TEAM LTD
Revenue,Place,Planning services,Building Control,5105659507,19.01.2018,Building Control,Stationery,1.44,SUPPLIES TEAM LTD
Revenue,Place,Planning services,Building Control,5105659507,19.01.2018,Building Control,Stationery,68.56,SUPPLIES TEAM LTD
Revenue,Place,Central Services,Central Services to the Public,5105659484,12.01.2018,Coroner,Stationery,2.34,SUPPLIES TEAM LTD
Revenue,Place,Central Services,Central Services to the Public,5105659507,19.01.2018,Coroner,Stationery,1.72,SUPPLIES TEAM LTD
Revenue,Place,Central Services,Central Services to the Public,5105659507,19.01.2018,Coroner,Stationery,2.38,SUPPLIES TEAM LTD
Revenue,Place,Central Services,Central Services to the Public,5105659507,19.01.2018,Coroner,Stationery,45.15,SUPPLIES TEAM LTD
Revenue,Place,Central Services,Central Services to the Public,5105660086,24.01.2018,Coroner,Stationery,-6.02,SUPPLIES TEAM LTD
Revenue,Place,Planning services,Building Control,5105659507,19.01.2018,Building Control,Stationery,38.7,SUPPLIES TEAM LTD
Revenue,Resources,Central Services,Support Services,5105659486,12.01.2018,Pension Administration,Stationery,4.49,SUPPLIES TEAM LTD
Revenue,Adult Services,Adult Social Care,Assistive Equipment & Technology,5105659806,17.01.2018,Wightcare,Stationery,21.66,SUPPLIES TEAM LTD
Revenue,Adult Services,Adult Social Care,Assistive Equipment & Technology,5105659806,17.01.2018,Wightcare,Stationery,1.61,SUPPLIES TEAM LTD
Revenue,Place,Housing Services,Private Sector Housing Renewal,5105659803,19.01.2018,Renewal & Enforcement,Stationery,4.49,SUPPLIES TEAM LTD
Revenue,Resources,Central Services,Support Services,5105659803,19.01.2018,Corproate Business Hub,Stationery,5.22,SUPPLIES TEAM LTD
Revenue,Resources,Central Services,Support Services,5105659803,19.01.2018,Corproate Business Hub,Stationery,26.84,SUPPLIES TEAM LTD
Revenue,Resources,Central Services,Central Services to the Public,5105659803,19.01.2018,Revenues & Benefits Operational Support,Stationery,1.08,SUPPLIES TEAM LTD
Revenue,Resources,Central Services,Central Services to the Public,5105659803,19.01.2018,Revenues & Benefits Operational Support,Stationery,1.08,SUPPLIES TEAM LTD
Revenue,Resources,Central Services,Central Services to the Public,5105659803,19.01.2018,Revenues & Benefits Operational Support,Stationery,1.06,SUPPLIES TEAM LTD
Revenue,Resources,Central Services,Central Services to the Public,5105659803,19.01.2018,Revenues & Benefits Operational Support,Stationery,0.76,SUPPLIES TEAM LTD
Revenue,Adult Services,Adult Social Care,Commissioning & Service Delivery,5105659803,19.01.2018,Head of Adult Social Care,Stationery,17.14,SUPPLIES TEAM LTD
Revenue,Childrens Services,Children's & Education Services,Youth Justice,5105659803,19.01.2018,Youth Offending Team,Stationery,6.26,SUPPLIES TEAM LTD
Revenue,Childrens Services,Children's & Education Services,Youth Justice,5105660739,24.01.2018,Youth Offending Team,Stationery,17.14,SUPPLIES TEAM LTD
Revenue,Adult Services,Adult Social Care,Commissioning & Service Delivery,5105660739,24.01.2018,Head of Adult Social Care,Stationery,25.71,SUPPLIES TEAM LTD
Revenue,Adult Services,Adult Social Care,Commissioning & Service Delivery,5105660739,24.01.2018,Head of Adult Social Care,Stationery,6.26,SUPPLIES TEAM LTD
Revenue,Place,Housing Services,Private Sector Housing Renewal,5105659635,12.01.2018,Renewal & Enforcement,Stationery,3.43,SUPPLIES TEAM LTD
Revenue,Resources,Central Services,Central Services to the Public,5105659566,12.01.2018,Council Tax,Stationery,85.7,SUPPLIES TEAM LTD
Revenue,Adult Services,Adult Social Care,Commissioning & Service Delivery,5105659635,12.01.2018,Head of Adult Social Care,Stationery,17.14,SUPPLIES TEAM LTD
Revenue,Adult Services,Adult Social Care,Commissioning & Service Delivery,5105659635,12.01.2018,Head of Adult Social Care,Stationery,6.26,SUPPLIES TEAM LTD
Revenue,Place,Cultural and Related Services,Library Service,5105659805,17.01.2018,Ventnor Library,Stationery,8.57,SUPPLIES TEAM LTD
Revenue,Childrens Services,Children's & Education Services,Safeguarding Children/Young Peoples Svs,5105659635,12.01.2018,Fostering Team,Stationery,2.46,SUPPLIES TEAM LTD
Revenue,Childrens Services,Children's & Education Services,Safeguarding Children/Young Peoples Svs,5105659635,12.01.2018,Fostering Team,Stationery,3.11,SUPPLIES TEAM LTD
Revenue,Resources,Central Services,Central Services to the Public,5105659635,12.01.2018,National Non Domestic Rates,Stationery,17.14,SUPPLIES TEAM LTD
Revenue,Resources,Central Services,Support Services,5105658759,05.01.2018,ICT CCR,Stationery,3.9,SUPPLIES TEAM LTD
Revenue,Resources,Central Services,Support Services,5105658363,03.01.2018,Legal Services Section,Stationery,1.06,SUPPLIES TEAM LTD
Revenue,Resources,Central Services,Support Services,5105658363,03.01.2018,Legal Services Section,Stationery,2.07,SUPPLIES TEAM LTD
Revenue,Place,Cultural and Related Services,Service Management and Support Services,5105658363,03.01.2018,Leisure Management & Admin,Stationery,17.14,SUPPLIES TEAM LTD
Revenue,Place,Cultural and Related Services,Library Service,5105658481,03.01.2018,Public Libraries Central,Stationery,-13.14,SUPPLIES TEAM LTD
Revenue,Place,Cultural and Related Services,Library Service,5105656155,05.01.2018,Public Libraries Central,Stationery,31.3,SUPPLIES TEAM LTD
Revenue,Place,Cultural and Related Services,Library Service,5105656155,05.01.2018,Public Libraries Central,Stationery,16.56,SUPPLIES TEAM LTD
Revenue,Place,Cultural and Related Services,Library Service,5105656155,05.01.2018,Public Libraries Central,Stationery,1.2,SUPPLIES TEAM LTD
Revenue,Place,Cultural and Related Services,Library Service,5105656155,05.01.2018,Public Libraries Central,Stationery,19.71,SUPPLIES TEAM LTD
Revenue,Place,Cultural and Related Services,Library Service,5105656155,05.01.2018,Public Libraries Central,Stationery,6.12,SUPPLIES TEAM LTD
Revenue,Resources,Central Services,Support Services,5105656788,24.01.2018,ICT CCR,Stationery,4.3,SUPPLIES TEAM LTD
Revenue,Place,Central Services,Central Services to the Public,5105656788,24.01.2018,"Registration Of Births,Deaths, Marriages",Stationery,0.8,SUPPLIES TEAM LTD
Revenue,Place,Cultural and Related Services,Library Service,5105656155,05.01.2018,Public Libraries Central,Stationery,1.71,SUPPLIES TEAM LTD
Revenue,Resources,Central Services,Support Services,5105658775,05.01.2018,Payments Social Care Team,Stationery,3.74,SUPPLIES TEAM LTD
Revenue,Place,Cultural and Related Services,Recreation and Sport,5105658767,05.01.2018,Medina Leisure Centre,Stationery,18.6,SUPPLIES TEAM LTD
Revenue,Place,Cultural and Related Services,Service Management and Support Services,5105658770,05.01.2018,Leisure Management & Admin,Stationery,6.26,SUPPLIES TEAM LTD
Revenue,Resources,Central Services,Support Services,5105658774,05.01.2018,County Hall Central Mail Room,Stationery,29.98,SUPPLIES TEAM LTD
Revenue,Childrens Services,Children's & Education Services,Other Education and Community Budget,5105660730,24.01.2018,Statutory Assessment and Review Team,Stationery,3,SUPPLIES TEAM LTD
Revenue,Childrens Services,Children's & Education Services,Children Looked After,5105659491,12.01.2018,Beaulieu House,Stationery,5.34,SUPPLIES TEAM LTD
Revenue,Childrens Services,Children's & Education Services,Children Looked After,5105659491,12.01.2018,Beaulieu House,Stationery,0.78,SUPPLIES TEAM LTD
Revenue,Childrens Services,Children's & Education Services,Children Looked After,5105659491,12.01.2018,Beaulieu House,Stationery,17.14,SUPPLIES TEAM LTD
Revenue,Childrens Services,Children's & Education Services,Children Looked After,5105659491,12.01.2018,Beaulieu House,Stationery,1.15,SUPPLIES TEAM LTD
Revenue,Childrens Services,Children's & Education Services,Children Looked After,5105659491,12.01.2018,Beaulieu House,Stationery,1.17,SUPPLIES TEAM LTD
Revenue,Place,Cultural and Related Services,Recreation and Sport,5105659510,12.01.2018,Medina Leisure Centre,Stationery,12.18,SUPPLIES TEAM LTD
Revenue,Place,Cultural and Related Services,Recreation and Sport,5105659510,12.01.2018,Medina Leisure Centre,Stationery,6.99,SUPPLIES TEAM LTD
Revenue,Place,Cultural and Related Services,Recreation and Sport,5105659510,12.01.2018,Medina Leisure Centre,Stationery,8.57,SUPPLIES TEAM LTD
Revenue,Place,Cultural and Related Services,Recreation and Sport,5105659510,12.01.2018,Medina Leisure Centre,Stationery,1.17,SUPPLIES TEAM LTD
Revenue,Resources,Central Services,Support Services,5105659507,19.01.2018,ICT CCR,Stationery,0.53,SUPPLIES TEAM LTD
Revenue,Resources,Central Services,Support Services,5105659507,19.01.2018,ICT CCR,Stationery,0.7,SUPPLIES TEAM LTD
Revenue,Resources,Central Services,Support Services,5105659507,19.01.2018,ICT CCR,Stationery,1.08,SUPPLIES TEAM LTD
Revenue,Place,Central Services,Central Services to the Public,5105659507,19.01.2018,"Registration Of Births,Deaths, Marriages",Stationery,0.86,SUPPLIES TEAM LTD
Revenue,Place,Central Services,Central Services to the Public,5105659507,19.01.2018,"Registration Of Births,Deaths, Marriages",Stationery,1.61,SUPPLIES TEAM LTD
Revenue,Place,Central Services,Central Services to the Public,5105659507,19.01.2018,"Registration Of Births,Deaths, Marriages",Stationery,1.23,SUPPLIES TEAM LTD
Revenue,Place,Central Services,Central Services to the Public,5105659507,19.01.2018,"Registration Of Births,Deaths, Marriages",Stationery,0.39,SUPPLIES TEAM LTD
Revenue,Place,Central Services,Central Services to the Public,5105659507,19.01.2018,"Registration Of Births,Deaths, Marriages",Stationery,0.24,SUPPLIES TEAM LTD
Revenue,Childrens Services,Children's & Education Services,Safeguarding Children/Young Peoples Svs,5105659803,19.01.2018,Fostering Team,Stationery,0.39,SUPPLIES TEAM LTD
Revenue,Childrens Services,Children's & Education Services,Safeguarding Children/Young Peoples Svs,5105659803,19.01.2018,Fostering Team,Stationery,4.92,SUPPLIES TEAM LTD
Revenue,Resources,Central Services,Support Services,5105659804,17.01.2018,County Hall Central Mail Room,Stationery,0.78,SUPPLIES TEAM LTD
Revenue,Place,Cultural and Related Services,Service Management and Support Services,5105659803,19.01.2018,Leisure Management & Admin,Stationery,2.46,SUPPLIES TEAM LTD
Revenue,Resources,Central Services,Central Services to the Public,5105659803,19.01.2018,National Non Domestic Rates,Stationery,5,SUPPLIES TEAM LTD
Revenue,Place,Cultural and Related Services,Service Management and Support Services,5105659803,19.01.2018,Leisure Management & Admin,Stationery,17.14,SUPPLIES TEAM LTD
Revenue,Childrens Services,Children's & Education Services,Safeguarding Children/Young Peoples Svs,5105659803,19.01.2018,Fostering Team,Stationery,18.09,SUPPLIES TEAM LTD
Revenue,Resources,Central Services,Support Services,5105660739,24.01.2018,Legal Services Section,Stationery,0.38,SUPPLIES TEAM LTD
Revenue,Resources,Central Services,Support Services,5105660739,24.01.2018,Legal Services Section,Stationery,2.46,SUPPLIES TEAM LTD
Revenue,Resources,Central Services,Support Services,5105660739,24.01.2018,Legal Services Section,Stationery,5.4,SUPPLIES TEAM LTD
Revenue,Resources,Central Services,Support Services,5105660739,24.01.2018,Legal Services Section,Stationery,2.28,SUPPLIES TEAM LTD
Revenue,Place,Cultural and Related Services,Service Management and Support Services,5105660739,24.01.2018,Leisure Management & Admin,Stationery,1.07,SUPPLIES TEAM LTD
Revenue,Place,Cultural and Related Services,Service Management and Support Services,5105660739,24.01.2018,Leisure Management & Admin,Stationery,0.17,SUPPLIES TEAM LTD
Revenue,Place,Cultural and Related Services,Service Management and Support Services,5105660739,24.01.2018,Leisure Management & Admin,Stationery,0.27,SUPPLIES TEAM LTD
Revenue,Place,Cultural and Related Services,Service Management and Support Services,5105660739,24.01.2018,Leisure Management & Admin,Stationery,3.43,SUPPLIES TEAM LTD
Revenue,Place,Cultural and Related Services,Service Management and Support Services,5105660739,24.01.2018,Leisure Management & Admin,Stationery,1.23,SUPPLIES TEAM LTD
Revenue,Place,Cultural and Related Services,Service Management and Support Services,5105660739,24.01.2018,Leisure Management & Admin,Stationery,3.08,SUPPLIES TEAM LTD
Revenue,Place,Cultural and Related Services,Service Management and Support Services,5105660739,24.01.2018,Leisure Management & Admin,Stationery,17.14,SUPPLIES TEAM LTD
Revenue,Resources,Central Services,Support Services,5105660739,24.01.2018,Legal Services Section,Stationery,25.71,SUPPLIES TEAM LTD
Revenue,Place,Cultural and Related Services,Library Service,5105660742,24.01.2018,Public Libraries Central,Stationery,85.7,SUPPLIES TEAM LTD
Revenue,Place,Cultural and Related Services,Library Service,5105659805,17.01.2018,Ryde Library,Stationery,1.14,SUPPLIES TEAM LTD
Revenue,Place,Cultural and Related Services,Library Service,5105659805,17.01.2018,Ryde Library,Stationery,6.26,SUPPLIES TEAM LTD
Revenue,Place,Cultural and Related Services,Library Service,5105659805,17.01.2018,Ryde Library,Stationery,8.57,SUPPLIES TEAM LTD
Revenue,Place,Cultural and Related Services,Library Service,5105659805,17.01.2018,Ryde Library,Stationery,0.53,SUPPLIES TEAM LTD
Revenue,Place,Cultural and Related Services,Library Service,5105659805,17.01.2018,Ryde Library,Stationery,0.8,SUPPLIES TEAM LTD
Revenue,Place,Cultural and Related Services,Library Service,5105659805,17.01.2018,Ryde Library,Stationery,1.07,SUPPLIES TEAM LTD
Revenue,Place,Cultural and Related Services,Library Service,5105659805,17.01.2018,Ryde Library,Stationery,0.33,SUPPLIES TEAM LTD
Revenue,Place,Cultural and Related Services,Library Service,5105659805,17.01.2018,Ryde Library,Stationery,0.76,SUPPLIES TEAM LTD
Revenue,Place,Cultural and Related Services,Library Service,5105659805,17.01.2018,Ryde Library,Stationery,3,SUPPLIES TEAM LTD
Revenue,Place,Cultural and Related Services,Library Service,5105659805,17.01.2018,Ventnor Library,Stationery,1.48,SUPPLIES TEAM LTD
Revenue,Place,Cultural and Related Services,Library Service,5105659801,17.01.2018,Ventnor Library,Stationery,4.96,SUPPLIES TEAM LTD
Revenue,Place,Cultural and Related Services,Library Service,5105659805,17.01.2018,Ventnor Library,Stationery,0.53,SUPPLIES TEAM LTD
Revenue,Place,Cultural and Related Services,Library Service,5105659805,17.01.2018,Ventnor Library,Stationery,8.71,SUPPLIES TEAM LTD
Revenue,Place,Cultural and Related Services,Library Service,5105659805,17.01.2018,Ventnor Library,Stationery,1.08,SUPPLIES TEAM LTD
Revenue,Place,Planning services,Management & Support Services,5105656788,24.01.2018,Planning Management,Stationery,2.49,SUPPLIES TEAM LTD
Revenue,Place,Cultural and Related Services,Recreation and Sport,5105657339,10.01.2018,The Heights,Stationery,2.58,SUPPLIES TEAM LTD
Revenue,Place,Cultural and Related Services,Recreation and Sport,5105657339,10.01.2018,The Heights,Stationery,6.99,SUPPLIES TEAM LTD
Revenue,Adult Services,Adult Social Care,Commissioning & Service Delivery,5105658772,17.01.2018,Adult Social Care Enterprise House,Stationery,1.61,SUPPLIES TEAM LTD
Revenue,Adult Services,Adult Social Care,Social Care Activities,5105658772,17.01.2018,Mental Health Team,Stationery,2.15,SUPPLIES TEAM LTD
Revenue,Place,Cultural and Related Services,Recreation and Sport,5105658776,05.01.2018,The Heights,Stationery,1.56,SUPPLIES TEAM LTD
Revenue,Adult Services,Adult Social Care,Commissioning & Service Delivery,5105658764,05.01.2018,Learning Disability Homes Management & Admin,Stationery,1.53,SUPPLIES TEAM LTD
Revenue,Adult Services,Adult Social Care,Commissioning & Service Delivery,5105658764,05.01.2018,Learning Disability Homes Management & Admin,Stationery,2.73,SUPPLIES TEAM LTD
Revenue,Adult Services,Adult Social Care,Commissioning & Service Delivery,5105659487,12.01.2018,Adult Social Care Enterprise House,Stationery,5.8,SUPPLIES TEAM LTD
Revenue,Adult Services,Adult Social Care,Commissioning & Service Delivery,5105659487,12.01.2018,Adult Social Care Enterprise House,Stationery,1.32,SUPPLIES TEAM LTD
Revenue,Adult Services,Adult Social Care,Commissioning & Service Delivery,5105659487,12.01.2018,Adult Social Care Enterprise House,Stationery,3.45,SUPPLIES TEAM LTD
Revenue,Adult Services,Adult Social Care,Commissioning & Service Delivery,5105659487,12.01.2018,Adult Social Care Enterprise House,Stationery,5.34,SUPPLIES TEAM LTD
Revenue,Adult Services,Adult Social Care,Commissioning & Service Delivery,5105659487,12.01.2018,Direct Payment Finance Team,Stationery,31.95,SUPPLIES TEAM LTD
Revenue,Adult Services,Adult Social Care,Commissioning & Service Delivery,5105659511,12.01.2018,Learning Disability Homes Management & Admin,Stationery,1.56,SUPPLIES TEAM LTD
Revenue,Adult Services,Adult Social Care,Commissioning & Service Delivery,5105659511,12.01.2018,Learning Disability Homes Management & Admin,Stationery,17.14,SUPPLIES TEAM LTD
Revenue,Adult Services,Adult Social Care,Commissioning & Service Delivery,5105659511,12.01.2018,Learning Disability Homes Management & Admin,Stationery,0.33,SUPPLIES TEAM LTD
Revenue,Adult Services,Adult Social Care,Commissioning & Service Delivery,5105659511,12.01.2018,Learning Disability Homes Management & Admin,Stationery,0.08,SUPPLIES TEAM LTD
Revenue,Place,Highways and Transport Services,Management and Support Services,5105659515,12.01.2018,Highways PFI Project,Stationery,2.46,SUPPLIES TEAM LTD
Revenue,Resources,Central Services,Support Services,5105659486,12.01.2018,Customer Accounts Shared Service Centre,Stationery,3.11,SUPPLIES TEAM LTD
Revenue,Adult Services,Adult Social Care,Commissioning & Service Delivery,5105659806,17.01.2018,Adult Social Care Enterprise House,Stationery,5.52,SUPPLIES TEAM LTD
Revenue,Adult Services,Adult Social Care,Commissioning & Service Delivery,5105659802,17.01.2018,Adult Social Care Enterprise House,Stationery,1.56,SUPPLIES TEAM LTD
Revenue,Adult Services,Adult Social Care,Commissioning & Service Delivery,5105659806,17.01.2018,Adult Social Care Enterprise House,Stationery,8.04,SUPPLIES TEAM LTD
Revenue,Resources,Parking Services,Off Street Parking,5105659803,19.01.2018,Parking Services,Stationery,2.28,SUPPLIES TEAM LTD
Revenue,Resources,Parking Services,Off Street Parking,5105659803,19.01.2018,Parking Services,Stationery,1.23,SUPPLIES TEAM LTD
Revenue,Resources,Parking Services,Off Street Parking,5105659803,19.01.2018,Parking Services,Stationery,0.54,SUPPLIES TEAM LTD
Revenue,Place,Planning services,Management & Support Services,5105660674,24.01.2018,Planning Management,Stationery,-0.17,SUPPLIES TEAM LTD
Revenue,Place,Planning services,Management & Support Services,5105660674,24.01.2018,Planning Management,Stationery,-0.1,SUPPLIES TEAM LTD
Revenue,Place,Planning services,Management & Support Services,5105660674,24.01.2018,Planning Management,Stationery,-0.45,SUPPLIES TEAM LTD
Revenue,Adult Services,Adult Social Care,Commissioning & Service Delivery,5105659666,17.01.2018,Adult Social Care Enterprise House,Stationery,-1.61,SUPPLIES TEAM LTD
Revenue,Adult Services,Adult Social Care,Social Care Activities,5105659666,17.01.2018,Mental Health Team,Stationery,-2.15,SUPPLIES TEAM LTD
Revenue,Adult Services,Adult Social Care,Commissioning & Service Delivery,5105660681,31.01.2018,Adult Social Care Enterprise House,Stationery,1,SUPPLIES TEAM LTD
Revenue,Adult Services,Adult Social Care,Commissioning & Service Delivery,5105661016,31.01.2018,Adult Social Care Enterprise House,Stationery,-1,SUPPLIES TEAM LTD
Revenue,Adult Services,Adult Social Care,Commissioning & Service Delivery,5105661016,31.01.2018,Adult Social Care Enterprise House,Stationery,-6.44,SUPPLIES TEAM LTD
Revenue,Adult Services,Adult Social Care,Commissioning & Service Delivery,5105660681,31.01.2018,Adult Social Care Enterprise House,Stationery,6.44,SUPPLIES TEAM LTD
Revenue,Adult Services,Adult Social Care,Commissioning & Service Delivery,5105660681,31.01.2018,Adult Social Care Enterprise House,Stationery,3.69,SUPPLIES TEAM LTD
Revenue,Adult Services,Adult Social Care,Commissioning & Service Delivery,5105661016,31.01.2018,Adult Social Care Enterprise House,Stationery,-3.69,SUPPLIES TEAM LTD
Revenue,Adult Services,Adult Social Care,Commissioning & Service Delivery,5105661016,31.01.2018,Adult Social Care Enterprise House,Stationery,-5.4,SUPPLIES TEAM LTD
Revenue,Adult Services,Adult Social Care,Commissioning & Service Delivery,5105660681,31.01.2018,Adult Social Care Enterprise House,Stationery,5.4,SUPPLIES TEAM LTD
Revenue,Adult Services,Adult Social Care,Commissioning & Service Delivery,5105660681,31.01.2018,Adult Social Care Enterprise House,Stationery,0.57,SUPPLIES TEAM LTD
Revenue,Adult Services,Adult Social Care,Commissioning & Service Delivery,5105661016,31.01.2018,Adult Social Care Enterprise House,Stationery,-0.57,SUPPLIES TEAM LTD
Revenue,Adult Services,Adult Social Care,Commissioning & Service Delivery,5105661016,31.01.2018,Adult Social Care Enterprise House,Stationery,-2.7,SUPPLIES TEAM LTD
Revenue,Adult Services,Adult Social Care,Commissioning & Service Delivery,5105660681,31.01.2018,Adult Social Care Enterprise House,Stationery,2.7,SUPPLIES TEAM LTD
Revenue,Adult Services,Adult Social Care,Commissioning & Service Delivery,5105660681,31.01.2018,Adult Social Care Enterprise House,Stationery,9.67,SUPPLIES TEAM LTD
Revenue,Adult Services,Adult Social Care,Commissioning & Service Delivery,5105661016,31.01.2018,Adult Social Care Enterprise House,Stationery,-9.67,SUPPLIES TEAM LTD
Revenue,Adult Services,Adult Social Care,Commissioning & Service Delivery,5105661016,31.01.2018,Adult Social Care Enterprise House,Stationery,-11.88,SUPPLIES TEAM LTD
Revenue,Adult Services,Adult Social Care,Commissioning & Service Delivery,5105660681,31.01.2018,Adult Social Care Enterprise House,Stationery,11.88,SUPPLIES TEAM LTD
Revenue,Adult Services,Adult Social Care,Commissioning & Service Delivery,5105660681,31.01.2018,Adult Social Care Enterprise House,Stationery,4.92,SUPPLIES TEAM LTD
Revenue,Adult Services,Adult Social Care,Commissioning & Service Delivery,5105661016,31.01.2018,Adult Social Care Enterprise House,Stationery,-4.92,SUPPLIES TEAM LTD
Revenue,Adult Services,Adult Social Care,Commissioning & Service Delivery,5105661016,31.01.2018,Direct Payment Finance Team,Stationery,-19.35,SUPPLIES TEAM LTD
Revenue,Adult Services,Adult Social Care,Commissioning & Service Delivery,5105660681,31.01.2018,Direct Payment Finance Team,Stationery,19.35,SUPPLIES TEAM LTD
Revenue,Place,Cultural and Related Services,Library Service,5105660685,24.01.2018,Cowes Library,Stationery,3,SUPPLIES TEAM LTD
Revenue,Place,Cultural and Related Services,Library Service,5105659805,17.01.2018,Cowes Library,Stationery,8.57,SUPPLIES TEAM LTD
Revenue,Chief Executive,Central Services,Central Services to the Public,5105659634,12.01.2018,Emergency Management,Stationery,4.96,SUPPLIES TEAM LTD
Revenue,Chief Executive,Central Services,Central Services to the Public,5105659635,12.01.2018,Emergency Management,Stationery,7.97,SUPPLIES TEAM LTD
Revenue,Chief Executive,Central Services,Central Services to the Public,5105659635,12.01.2018,Emergency Management,Stationery,1.08,SUPPLIES TEAM LTD
Revenue,Chief Executive,Central Services,Central Services to the Public,5105659635,12.01.2018,Emergency Management,Stationery,1.8,SUPPLIES TEAM LTD
Revenue,Chief Executive,Central Services,Central Services to the Public,5105659635,12.01.2018,Emergency Management,Stationery,4.91,SUPPLIES TEAM LTD
Revenue,Chief Executive,Central Services,Central Services to the Public,5105659635,12.01.2018,Emergency Management,Stationery,0.54,SUPPLIES TEAM LTD
Revenue,Chief Executive,Central Services,Central Services to the Public,5105659635,12.01.2018,Emergency Management,Stationery,1.33,SUPPLIES TEAM LTD
Revenue,Chief Executive,Central Services,Central Services to the Public,5105659635,12.01.2018,Emergency Management,Stationery,0.43,SUPPLIES TEAM LTD
Revenue,Place,Highways and Transport Services,Parking Services,5105659635,12.01.2018,Parking Management,Stationery,0.8,SUPPLIES TEAM LTD
Revenue,Place,Highways and Transport Services,Parking Services,5105659635,12.01.2018,Parking Management,Stationery,2.74,SUPPLIES TEAM LTD
Revenue,Place,Highways and Transport Services,Parking Services,5105659635,12.01.2018,Parking Management,Stationery,7.22,SUPPLIES TEAM LTD
Revenue,Resources,Housing Services,Housing Benefits Administration,5105659566,12.01.2018,Housing Benefit,Stationery,85.7,SUPPLIES TEAM LTD
Revenue,Resources,Central Services,Support Services,5105659635,12.01.2018,Customer Accounts Shared Service Centre,Stationery,17.14,SUPPLIES TEAM LTD
Revenue,Resources,Central Services,Support Services,5105659635,12.01.2018,Customer Accounts Shared Service Centre,Stationery,17.14,SUPPLIES TEAM LTD
Revenue,Place,Planning services,Management & Support Services,5105658759,05.01.2018,Planning Management,Stationery,2.52,SUPPLIES TEAM LTD
Revenue,Adult Services,Adult Social Care,Commissioning & Service Delivery,5105658361,03.01.2018,Adult Social Care Enterprise House,Stationery,1.62,SUPPLIES TEAM LTD
Revenue,Adult Services,Adult Social Care,Commissioning & Service Delivery,5105658361,03.01.2018,Adult Social Care Enterprise House,Stationery,1.6,SUPPLIES TEAM LTD
Revenue,Adult Services,Adult Social Care,Commissioning & Service Delivery,5105658361,03.01.2018,Adult Social Care Enterprise House,Stationery,0.5,SUPPLIES TEAM LTD
Revenue,Adult Services,Adult Social Care,Commissioning & Service Delivery,5105658361,03.01.2018,Adult Social Care Enterprise House,Stationery,34.28,SUPPLIES TEAM LTD
Revenue,Adult Services,Adult Social Care,Commissioning & Service Delivery,5105658361,03.01.2018,Adult Social Care Enterprise House,Stationery,3.96,SUPPLIES TEAM LTD
Revenue,Adult Services,Adult Social Care,Commissioning & Service Delivery,5105658361,03.01.2018,Adult Social Care Enterprise House,Stationery,1.4,SUPPLIES TEAM LTD
Revenue,Place,Cultural and Related Services,Recreation and Sport,5105657339,10.01.2018,The Heights,Stationery,9.67,SUPPLIES TEAM LTD
Revenue,Place,Cultural and Related Services,Recreation and Sport,5105657339,10.01.2018,The Heights,Stationery,1.06,SUPPLIES TEAM LTD
Revenue,Place,Cultural and Related Services,Recreation and Sport,5105657339,10.01.2018,The Heights,Stationery,1.23,SUPPLIES TEAM LTD
Revenue,Place,Cultural and Related Services,Recreation and Sport,5105657339,10.01.2018,The Heights,Stationery,1.61,SUPPLIES TEAM LTD
Revenue,Place,Cultural and Related Services,Recreation and Sport,5105657339,10.01.2018,The Heights,Stationery,8.57,SUPPLIES TEAM LTD
Revenue,Place,Planning services,Management & Support Services,5105656788,24.01.2018,Planning Management,Stationery,6.57,SUPPLIES TEAM LTD
Revenue,Place,Planning services,Management & Support Services,5105656788,24.01.2018,Planning Management,Stationery,2.28,SUPPLIES TEAM LTD
Revenue,Place,Planning services,Management & Support Services,5105656788,24.01.2018,Planning Management,Stationery,51.42,SUPPLIES TEAM LTD
Revenue,Place,Planning services,Management & Support Services,5105656788,24.01.2018,Planning Management,Stationery,1.23,SUPPLIES TEAM LTD
Revenue,Place,Planning services,Management & Support Services,5105656788,24.01.2018,Planning Management,Stationery,1.8,SUPPLIES TEAM LTD
Revenue,Place,Planning services,Management & Support Services,5105656788,24.01.2018,Planning Management,Stationery,0.19,SUPPLIES TEAM LTD
Revenue,Childrens Services,Children's & Education Services,Special Schools & Alternative Provision,5105658827,05.01.2018,Island Learning Centre,Stationery,25.04,SUPPLIES TEAM LTD
Revenue,Childrens Services,Children's & Education Services,Special Schools & Alternative Provision,5105658827,05.01.2018,Island Learning Centre,Stationery,17.14,SUPPLIES TEAM LTD
Revenue,Childrens Services,Children's & Education Services,Other Education and Community Budget,5105659222,10.01.2018,Learning & Development Running Costs,Stationery,17.14,SUPPLIES TEAM LTD
Revenue,Childrens Services,Children's & Education Services,Other Education and Community Budget,5105659222,10.01.2018,Learning & Development Running Costs,Stationery,12.88,SUPPLIES TEAM LTD
Revenue,Adult Services,Adult Social Care,Central Codes (to be reallocated),5105660687,24.01.2018,Gouldings Resource Centre,Stationery,42.85,SUPPLIES TEAM LTD
Revenue,Childrens Services,Children's & Education Services,Other Education and Community Budget,5105659504,12.01.2018,Learning & Development Running Costs,Stationery,51.42,SUPPLIES TEAM LTD
Revenue,Childrens Services,Children's & Education Services,Other Education and Community Budget,5105659504,12.01.2018,Learning & Development Running Costs,Stationery,12.52,SUPPLIES TEAM LTD
Revenue,Childrens Services,Children's & Education Services,Other Education and Community Budget,5105659504,12.01.2018,Learning & Development Running Costs,Stationery,7.92,SUPPLIES TEAM LTD
Revenue,Childrens Services,Children's & Education Services,Other Education and Community Budget,5105659504,12.01.2018,Learning & Development Running Costs,Stationery,2.34,SUPPLIES TEAM LTD
Revenue,Childrens Services,Children's & Education Services,Other Education and Community Budget,5105659504,12.01.2018,Learning & Development Running Costs,Stationery,4.92,SUPPLIES TEAM LTD
Revenue,Childrens Services,Children's & Education Services,Other Education and Community Budget,5105659504,12.01.2018,Learning & Development Running Costs,Stationery,0.86,SUPPLIES TEAM LTD
Revenue,Childrens Services,Children's & Education Services,Other Education and Community Budget,5105659492,12.01.2018,Learning & Development Running Costs,Stationery,0.78,SUPPLIES TEAM LTD
Revenue,Childrens Services,Children's & Education Services,Other Education and Community Budget,5105659504,12.01.2018,Learning & Development Running Costs,Stationery,2.4,SUPPLIES TEAM LTD
Revenue,Place,Fire & Rescue Services,Fire fighting and Rescue Operations,5105659489,12.01.2018,Business Support  - Fire,Stationery,19.78,SUPPLIES TEAM LTD
Revenue,Place,Fire & Rescue Services,Fire fighting and Rescue Operations,5105659629,12.01.2018,Business Support  - Fire,Stationery,-19.78,SUPPLIES TEAM LTD
Revenue,Place,Fire & Rescue Services,Fire fighting and Rescue Operations,5105659648,17.01.2018,Business Support  - Fire,Stationery,1.14,SUPPLIES TEAM LTD
Revenue,Place,Fire & Rescue Services,Fire fighting and Rescue Operations,5105659550,17.01.2018,Business Support  - Fire,Stationery,26.19,SUPPLIES TEAM LTD
Revenue,Place,Fire & Rescue Services,Fire fighting and Rescue Operations,5105659648,17.01.2018,Business Support  - Fire,Stationery,1.5,SUPPLIES TEAM LTD
Revenue,Place,Fire & Rescue Services,Fire fighting and Rescue Operations,5105659648,17.01.2018,Business Support  - Fire,Stationery,17.14,SUPPLIES TEAM LTD
Revenue,Place,Fire & Rescue Services,Fire fighting and Rescue Operations,5105659501,17.01.2018,Fire Technical Support,Stationery,5.52,SUPPLIES TEAM LTD
Revenue,Place,Fire & Rescue Services,Fire fighting and Rescue Operations,5105659501,17.01.2018,Fire Technical Support,Stationery,0.8,SUPPLIES TEAM LTD
Revenue,Place,Fire & Rescue Services,Fire fighting and Rescue Operations,5105659501,17.01.2018,Fire Technical Support,Stationery,8.57,SUPPLIES TEAM LTD
Revenue,Place,Fire & Rescue Services,Fire fighting and Rescue Operations,5105659501,17.01.2018,Fire Technical Support,Stationery,2.01,SUPPLIES TEAM LTD
Revenue,Place,Fire & Rescue Services,Fire fighting and Rescue Operations,5105659501,17.01.2018,Fire Technical Support,Stationery,0.22,SUPPLIES TEAM LTD
Revenue,Place,Fire & Rescue Services,Fire fighting and Rescue Operations,5105659501,17.01.2018,Fire Technical Support,Stationery,0.54,SUPPLIES TEAM LTD
Revenue,Place,Fire & Rescue Services,Fire fighting and Rescue Operations,5105659501,17.01.2018,Fire Technical Support,Stationery,1.33,SUPPLIES TEAM LTD
Revenue,Resources,Central Services,Support Services,5105659486,12.01.2018,Creditor Payments Shared Service Centre,Stationery,0.76,SUPPLIES TEAM LTD
Revenue,Childrens Services,Children's & Education Services,Safeguarding Children/Young Peoples Svs,5105659803,19.01.2018,Children's office costs,Stationery,6.02,SUPPLIES TEAM LTD
Revenue,Childrens Services,Children's & Education Services,Safeguarding Children/Young Peoples Svs,5105659804,17.01.2018,Children's office costs,Stationery,24.08,SUPPLIES TEAM LTD
Revenue,Childrens Services,Children's & Education Services,Safeguarding Children/Young Peoples Svs,5105659803,19.01.2018,Children's office costs,Stationery,2.12,SUPPLIES TEAM LTD
Revenue,Childrens Services,Children's & Education Services,Safeguarding Children/Young Peoples Svs,5105659803,19.01.2018,Children's office costs,Stationery,1,SUPPLIES TEAM LTD
Revenue,Childrens Services,Children's & Education Services,Safeguarding Children/Young Peoples Svs,5105659803,19.01.2018,Children's office costs,Stationery,4.49,SUPPLIES TEAM LTD
Revenue,Childrens Services,Children's & Education Services,Safeguarding Children/Young Peoples Svs,5105659803,19.01.2018,Children's office costs,Stationery,6.99,SUPPLIES TEAM LTD
Revenue,Childrens Services,Children's & Education Services,Safeguarding Children/Young Peoples Svs,5105659803,19.01.2018,Children's office costs,Stationery,2.9,SUPPLIES TEAM LTD
Revenue,Childrens Services,Children's & Education Services,Safeguarding Children/Young Peoples Svs,5105659803,19.01.2018,Children's office costs,Stationery,3.11,SUPPLIES TEAM LTD
Revenue,Childrens Services,Children's & Education Services,Safeguarding Children/Young Peoples Svs,5105659803,19.01.2018,Children's office costs,Stationery,2.72,SUPPLIES TEAM LTD
Revenue,Childrens Services,Children's & Education Services,Safeguarding Children/Young Peoples Svs,5105659803,19.01.2018,Children's office costs,Stationery,2.49,SUPPLIES TEAM LTD
Revenue,Childrens Services,Children's & Education Services,Safeguarding Children/Young Peoples Svs,5105659803,19.01.2018,Children's office costs,Stationery,7.2,SUPPLIES TEAM LTD
Revenue,Childrens Services,Children's & Education Services,Safeguarding Children/Young Peoples Svs,5105659803,19.01.2018,Children's office costs,Stationery,0.57,SUPPLIES TEAM LTD
Revenue,Resources,Central Services,Support Services,5105659803,19.01.2018,Help Centres Shared Service Centre,Stationery,3.18,SUPPLIES TEAM LTD
Revenue,Childrens Services,Children's & Education Services,Safeguarding Children/Young Peoples Svs,5105659803,19.01.2018,Children's office costs,Stationery,34.28,SUPPLIES TEAM LTD
Revenue,Childrens Services,Children's & Education Services,Safeguarding Children/Young Peoples Svs,5105659803,19.01.2018,Children's office costs,Stationery,34.28,SUPPLIES TEAM LTD
Revenue,Childrens Services,Children's & Education Services,Safeguarding Children/Young Peoples Svs,5105659803,19.01.2018,Children's office costs,Stationery,17.14,SUPPLIES TEAM LTD
Revenue,Resources,Central Services,Support Services,5105659803,19.01.2018,Help Centres Shared Service Centre,Stationery,17.14,SUPPLIES TEAM LTD
Revenue,Childrens Services,Children's & Education Services,Safeguarding Children/Young Peoples Svs,5105660739,24.01.2018,Children's office costs,Stationery,4.49,SUPPLIES TEAM LTD
Revenue,Childrens Services,Children's & Education Services,Safeguarding Children/Young Peoples Svs,5105660739,24.01.2018,Children's office costs,Stationery,6.99,SUPPLIES TEAM LTD
Revenue,Childrens Services,Children's & Education Services,Safeguarding Children/Young Peoples Svs,5105660739,24.01.2018,Children's office costs,Stationery,2.72,SUPPLIES TEAM LTD
Revenue,Childrens Services,Children's & Education Services,Safeguarding Children/Young Peoples Svs,5105660739,24.01.2018,Children's office costs,Stationery,2.49,SUPPLIES TEAM LTD
Revenue,Childrens Services,Children's & Education Services,Safeguarding Children/Young Peoples Svs,5105660739,24.01.2018,Children's office costs,Stationery,6.02,SUPPLIES TEAM LTD
Revenue,Childrens Services,Children's & Education Services,Safeguarding Children/Young Peoples Svs,5105660740,24.01.2018,Children's office costs,Stationery,24.08,SUPPLIES TEAM LTD
Revenue,Childrens Services,Children's & Education Services,Safeguarding Children/Young Peoples Svs,5105660739,24.01.2018,Children's office costs,Stationery,1.06,SUPPLIES TEAM LTD
Revenue,Childrens Services,Children's & Education Services,Special Schools & Alternative Provision,5105660741,24.01.2018,Island Learning Centre,Stationery,0.72,SUPPLIES TEAM LTD
Revenue,Childrens Services,Children's & Education Services,Special Schools & Alternative Provision,5105660741,24.01.2018,Island Learning Centre,Stationery,0.8,SUPPLIES TEAM LTD
Revenue,Childrens Services,Children's & Education Services,Special Schools & Alternative Provision,5105660741,24.01.2018,Island Learning Centre,Stationery,17.14,SUPPLIES TEAM LTD
Revenue,Childrens Services,Children's & Education Services,Special Schools & Alternative Provision,5105659636,12.01.2018,Island Learning Centre,Stationery,4.8,SUPPLIES TEAM LTD
Revenue,Childrens Services,Children's & Education Services,Special Schools & Alternative Provision,5105659636,12.01.2018,Island Learning Centre,Stationery,17.14,SUPPLIES TEAM LTD
Revenue,Childrens Services,Children's & Education Services,Special Schools & Alternative Provision,5105659636,12.01.2018,Island Learning Centre,Stationery,1.02,SUPPLIES TEAM LTD
Revenue,Childrens Services,Children's & Education Services,Special Schools & Alternative Provision,5105659636,12.01.2018,Island Learning Centre,Stationery,1.61,SUPPLIES TEAM LTD
Revenue,Childrens Services,Children's & Education Services,Special Schools & Alternative Provision,5105659636,12.01.2018,Island Learning Centre,Stationery,1.23,SUPPLIES TEAM LTD
Revenue,Childrens Services,Children's & Education Services,Special Schools & Alternative Provision,5105659636,12.01.2018,Island Learning Centre,Stationery,2.34,SUPPLIES TEAM LTD
Revenue,Place,Environmental & Regulatory Services,Service Management and Support Services,5105659635,12.01.2018,Environment officers,Stationery,2.41,SUPPLIES TEAM LTD
Revenue,Resources,Central Services,Support Services,5105659635,12.01.2018,Creditor Payments Shared Service Centre,Stationery,17.14,SUPPLIES TEAM LTD
Revenue,Childrens Services,Children's & Education Services,Safeguarding Children/Young Peoples Svs,5105659635,12.01.2018,Children's office costs,Stationery,25.71,SUPPLIES TEAM LTD
Revenue,Resources,Central Services,Central Services to the Public,5105659635,12.01.2018,Electoral Registration Office,Stationery,17.14,SUPPLIES TEAM LTD
Revenue,Adult Services,Adult Social Care,Central Codes (to be reallocated),5105658763,05.01.2018,Gouldings Resource Centre,Stationery,1.95,SUPPLIES TEAM LTD
Revenue,Childrens Services,Children's & Education Services,Safeguarding Children/Young Peoples Svs,5105658363,03.01.2018,Children's office costs,Stationery,4.92,SUPPLIES TEAM LTD
Revenue,Childrens Services,Children's & Education Services,Safeguarding Children/Young Peoples Svs,5105658363,03.01.2018,Children's office costs,Stationery,3,SUPPLIES TEAM LTD
Revenue,Childrens Services,Children's & Education Services,Other Education and Community Budget,5105658363,03.01.2018,Pupil Resources Business Support Team,Stationery,34.28,SUPPLIES TEAM LTD
Revenue,Childrens Services,Children's & Education Services,Safeguarding Children/Young Peoples Svs,5105658363,03.01.2018,Children's office costs,Stationery,17.14,SUPPLIES TEAM LTD
Revenue,Childrens Services,Children's & Education Services,Safeguarding Children/Young Peoples Svs,5105658363,03.01.2018,Children's office costs,Stationery,42.85,SUPPLIES TEAM LTD
Revenue,Childrens Services,Children's & Education Services,Other Education and Community Budget,5105658829,05.01.2018,Learning & Development Running Costs,Stationery,7.46,SUPPLIES TEAM LTD
Revenue,Resources,Central Services,Central Services to the Public,5105658769,05.01.2018,Electoral Registration Office,Stationery,18.78,SUPPLIES TEAM LTD
Revenue,Childrens Services,Children's & Education Services,Family Support Services,5105658849,05.01.2018,Strengthening Families,Payment to Private Contractors,"23,000.00",BARNARDO'S
Revenue,Childrens Services,Children's & Education Services,Children Looked After,5105658417,03.01.2018,Adoption Support Fund,Charges from Independent Providers,-980,BARNARDO'S
Revenue,Childrens Services,Children's & Education Services,Children Looked After,5105652300,03.01.2018,Adoption Support Fund,Charges from Independent Providers,980,BARNARDO'S
Revenue,Childrens Services,Children's & Education Services,Children Looked After,5105658448,05.01.2018,Adoption Support Fund,Charges from Independent Providers,70,BARNARDO'S
Revenue,Childrens Services,Children's & Education Services,Children Looked After,5105658448,05.01.2018,Adoption Support Fund,Charges from Independent Providers,140,BARNARDO'S
Revenue,Childrens Services,Children's & Education Services,Children Looked After,5105658449,03.01.2018,Adoption Support Fund,Charges from Independent Providers,180,BARNARDO'S
Revenue,Childrens Services,Children's & Education Services,Children Looked After,5105659834,17.01.2018,Adoption Support Fund,Charges from Independent Providers,60,BARNARDO'S
Revenue,Childrens Services,Children's & Education Services,Children Looked After,5105659831,17.01.2018,Adoption Support Fund,Charges from Independent Providers,60,BARNARDO'S
Revenue,Childrens Services,Children's & Education Services,Children Looked After,5105659832,17.01.2018,Adoption Support Fund,Charges from Independent Providers,-60,BARNARDO'S
Revenue,Childrens Services,Children's & Education Services,Children Looked After,5105658889,05.01.2018,Adoption Support Fund,Charges from Independent Providers,350,BARNARDO'S
Revenue,Childrens Services,Children's & Education Services,Children Looked After,5105660054,19.01.2018,Adoption Support Fund,Charges from Independent Providers,120,BARNARDO'S
Revenue,Childrens Services,Children's & Education Services,Children Looked After,5105660057,19.01.2018,Adoption Support Fund,Charges from Independent Providers,80,BARNARDO'S
Revenue,Childrens Services,Children's & Education Services,Children Looked After,5105659828,17.01.2018,Adoption Support Fund,Charges from Independent Providers,70,BARNARDO'S
Revenue,Childrens Services,Children's & Education Services,Children Looked After,5105660056,19.01.2018,Adoption Support Fund,Charges from Independent Providers,70,BARNARDO'S
Revenue,Childrens Services,Children's & Education Services,Support Service & Management Costs,5105659641,12.01.2018,Early Help Contracts,Payment to Private Contractors,"289,036.55",BARNARDO'S
Revenue,Childrens Services,Children's & Education Services,Support Service & Management Costs,5105659643,16.01.2018,Early Help Contracts,Payment to Private Contractors,"-289,036.55",BARNARDO'S
Revenue,Childrens Services,Children's & Education Services,Support Service & Management Costs,5105657603,16.01.2018,Early Help Contracts,Payment to Private Contractors,"289,036.55",BARNARDO'S
Revenue,Childrens Services,Children's & Education Services,Support Service & Management Costs,5105661249,31.01.2018,Early Help Contracts,Payments to Voluntary and Other Associations,"10,000.00",BARNARDO'S
Revenue,Resources,Central Services,Support Services,5105660518,24.01.2018,Staff Benefits,Payment to Private Contractors,50,BARTON PRIMARY & EARLY YEARS
Revenue,Place,Cultural and Related Services,Recreation and Sport,5105659193,10.01.2018,Westridge Squash Courts,Consumable Cleaning Materials,97.63,LAKE CLEANING & CATERING SUPPLIES
Revenue,Childrens Services,Children's & Education Services,Children Looked After,5105661185,31.01.2018,Beaulieu House,General Materials,159.81,LAKE CLEANING & CATERING SUPPLIES
Revenue,Place,Cultural and Related Services,Recreation and Sport,5105658180,03.01.2018,Medina Leisure Centre,Consumable Cleaning Materials,16.56,LAKE CLEANING & CATERING SUPPLIES
Revenue,Place,Cultural and Related Services,Recreation and Sport,5105658180,03.01.2018,Medina Leisure Centre,Consumable Cleaning Materials,6.6,LAKE CLEANING & CATERING SUPPLIES
Revenue,Place,Cultural and Related Services,Recreation and Sport,5105658180,03.01.2018,Medina Leisure Centre,Consumable Cleaning Materials,6.76,LAKE CLEANING & CATERING SUPPLIES
Revenue,Place,Cultural and Related Services,Recreation and Sport,5105658180,03.01.2018,Medina Leisure Centre,Consumable Cleaning Materials,2.74,LAKE CLEANING & CATERING SUPPLIES
Revenue,Place,Cultural and Related Services,Recreation and Sport,5105658180,03.01.2018,Medina Leisure Centre,Consumable Cleaning Materials,21.73,LAKE CLEANING & CATERING SUPPLIES
Revenue,Place,Cultural and Related Services,Recreation and Sport,5105658180,03.01.2018,Medina Leisure Centre,Consumable Cleaning Materials,117.5,LAKE CLEANING & CATERING SUPPLIES
Revenue,Place,Cultural and Related Services,Recreation and Sport,5105658180,03.01.2018,Medina Leisure Centre,Consumable Cleaning Materials,17.73,LAKE CLEANING & CATERING SUPPLIES
Revenue,Adult Services,Adult Social Care,Learning Disab Supp (to be reallocated),5105660588,24.01.2018,Plean Dene,Operational Equipment,26.59,LAKE CLEANING & CATERING SUPPLIES
Revenue,Adult Services,Adult Social Care,Learning Disab Supp (to be reallocated),5105658460,03.01.2018,Plean Dene,Operational Equipment,19.8,LAKE CLEANING & CATERING SUPPLIES
Revenue,Place,Fire & Rescue Services,Fire fighting and Rescue Operations,5105658378,03.01.2018,Fire Technical Support,Stock Purchases,27.36,LAKE CLEANING & CATERING SUPPLIES
Revenue,Place,Fire & Rescue Services,Fire fighting and Rescue Operations,5105658451,03.01.2018,Fire Technical Support,Stock Purchases,33.18,LAKE CLEANING & CATERING SUPPLIES
Revenue,Place,Fire & Rescue Services,Fire fighting and Rescue Operations,5105658451,03.01.2018,Fire Technical Support,Stock Purchases,23.4,LAKE CLEANING & CATERING SUPPLIES
Revenue,Place,Fire & Rescue Services,Fire fighting and Rescue Operations,5105658451,03.01.2018,Fire Technical Support,Stock Purchases,17.4,LAKE CLEANING & CATERING SUPPLIES
Revenue,Place,Fire & Rescue Services,Fire fighting and Rescue Operations,5105658451,03.01.2018,Fire Technical Support,Stock Purchases,63,LAKE CLEANING & CATERING SUPPLIES
Revenue,Place,Fire & Rescue Services,Fire fighting and Rescue Operations,5105661104,31.01.2018,Fire Technical Support,Stock Purchases,99.36,LAKE CLEANING & CATERING SUPPLIES
Revenue,Place,Fire & Rescue Services,Fire fighting and Rescue Operations,5105661104,31.01.2018,Fire Technical Support,Stock Purchases,21.92,LAKE CLEANING & CATERING SUPPLIES
Revenue,Place,Fire & Rescue Services,Fire fighting and Rescue Operations,5105661104,31.01.2018,Fire Technical Support,Stock Purchases,71.44,LAKE CLEANING & CATERING SUPPLIES
Revenue,Place,Fire & Rescue Services,Fire fighting and Rescue Operations,5105661104,31.01.2018,Fire Technical Support,Stock Purchases,75,LAKE CLEANING & CATERING SUPPLIES
Revenue,Place,Fire & Rescue Services,Fire fighting and Rescue Operations,5105661104,31.01.2018,Fire Technical Support,Stock Purchases,120.24,LAKE CLEANING & CATERING SUPPLIES
Revenue,Place,Fire & Rescue Services,Fire fighting and Rescue Operations,5105661104,31.01.2018,Fire Technical Support,Stock Purchases,21,LAKE CLEANING & CATERING SUPPLIES
Revenue,Place,Cultural and Related Services,Recreation and Sport,5105658816,05.01.2018,Play Development,Advertising & Publicity,200,BEACON MEDIA LIMITED
Revenue,Place,Cultural and Related Services,Recreation and Sport,5105658816,05.01.2018,Play Development,Advertising & Publicity,150,BEACON MEDIA LIMITED
Revenue,Adult Services,Adult Social Care,Support - Memory /Cognition-older people (65+),5105660371,24.01.2018,Memory & Cognition Nursing 65+,Charges from Independent Providers,"2,269.40",BEAUMONT LODGE LTD
Revenue,Place,Housing Services,Homelessness,5105660065,19.01.2018,B&B Properties,Accommodation Costs - Bed & Breakfast,"4,985.00",BERTRAM LODGE
Revenue,Adult Services,Adult Social Care,Learning Disab Supp (to be reallocated),5105658878,10.01.2018,Saxonbury,Operational Equipment,16.38,BETA PAK LTD
Revenue,Adult Services,Adult Social Care,Learning Disab Supp (to be reallocated),5105658803,10.01.2018,Saxonbury,Operational Equipment,19.33,BETA PAK LTD
Revenue,Adult Services,Adult Social Care,Learning Disab Supp (to be reallocated),5105658402,10.01.2018,Saxonbury,Operational Equipment,200.84,BETA PAK LTD
Revenue,Adult Services,Adult Social Care,Learning Disab Supp (to be reallocated),5105658791,10.01.2018,Seagulls,Operational Equipment,171.83,BETA PAK LTD
Revenue,Adult Services,Adult Social Care,Learning Disab Supp (to be reallocated),5105660623,24.01.2018,Saxonbury,Operational Equipment,42.42,BETA PAK LTD
Revenue,Adult Services,Adult Social Care,Learning Disab Supp (to be reallocated),5105661095,31.01.2018,Saxonbury,Operational Equipment,41,BETA PAK LTD
Revenue,Adult Services,Adult Social Care,Learning Disab Supp (to be reallocated),5105661155,31.01.2018,Saxonbury,Operational Equipment,204.38,BETA PAK LTD
Revenue,Adult Services,Adult Social Care,Learning Disab Supp (to be reallocated),5105659560,12.01.2018,Saxonbury,Operational Equipment,7.37,BETA PAK LTD
Revenue,Adult Services,Adult Social Care,Learning Disab Supp (to be reallocated),5105659498,12.01.2018,Saxonbury,Operational Equipment,174.64,BETA PAK LTD
Revenue,Adult Services,Adult Social Care,Learning Disab Supp (to be reallocated),5105660221,24.01.2018,Saxonbury,Operational Equipment,12.78,BETA PAK LTD
Revenue,Place,Cultural and Related Services,Recreation and Sport,5105661202,31.01.2018,Medina Leisure Centre,Stock Purchases,43.93,BETA PAK LTD
Revenue,Adult Services,Adult Social Care,Learning Disab Supp (to be reallocated),5105658968,10.01.2018,Westminster House,Operational Equipment,70.08,BETA PAK LTD
Revenue,Adult Services,Adult Social Care,Learning Disab Supp (to be reallocated),5105658399,05.01.2018,Westminster House,Operational Equipment,43.02,BETA PAK LTD
Revenue,Adult Services,Adult Social Care,Learning Disab Supp (to be reallocated),5105658255,10.01.2018,40 Venner Avenue,Operational Equipment,32.88,BETA PAK LTD
Revenue,Adult Services,Adult Social Care,Learning Disab Supp (to be reallocated),5105656159,10.01.2018,40 Venner Avenue,Operational Equipment,159.78,BETA PAK LTD
Revenue,Adult Services,Adult Social Care,Learning Disab Supp (to be reallocated),5105658106,10.01.2018,40 Venner Avenue,Operational Equipment,372.33,BETA PAK LTD
Revenue,Adult Services,Adult Social Care,Learning Disab Supp (to be reallocated),5105658879,10.01.2018,40 Venner Avenue,Operational Equipment,32.5,BETA PAK LTD
Revenue,Adult Services,Adult Social Care,Learning Disab Supp (to be reallocated),5105658401,10.01.2018,40 Venner Avenue,Operational Equipment,21.41,BETA PAK LTD
Revenue,Adult Services,Adult Social Care,Learning Disab Supp (to be reallocated),5105659688,31.01.2018,40 Venner Avenue,Operational Equipment,25.19,BETA PAK LTD
Revenue,Adult Services,Adult Social Care,Learning Disab Supp (to be reallocated),5105660110,19.01.2018,40 Venner Avenue,Operational Equipment,76.68,BETA PAK LTD
Revenue,Adult Services,Adult Social Care,Learning Disab Supp (to be reallocated),5105659518,12.01.2018,Westminster House,Operational Equipment,11.41,BETA PAK LTD
Revenue,Adult Services,Adult Social Care,Learning Disab Supp (to be reallocated),5105659542,12.01.2018,Westminster House,Operational Equipment,126.27,BETA PAK LTD
Revenue,Adult Services,Adult Social Care,Learning Disab Supp (to be reallocated),5105659559,12.01.2018,Westminster House,Operational Equipment,28.08,BETA PAK LTD
Revenue,Adult Services,Adult Social Care,Learning Disab Supp (to be reallocated),5105660226,24.01.2018,Westminster House,Operational Equipment,95.16,BETA PAK LTD
Revenue,Adult Services,Adult Social Care,Learning Disab Supp (to be reallocated),5400002283,31.01.2018,Westminster House,Operational Equipment,0.06,BETA PAK LTD
Revenue,Adult Services,Adult Social Care,Learning Disab Supp (to be reallocated),5105661096,31.01.2018,Plean Dene,Operational Equipment,-28.8,BETA PAK LTD
Revenue,Adult Services,Adult Social Care,Learning Disab Supp (to be reallocated),5105660636,26.01.2018,Plean Dene,Operational Equipment,30.54,BETA PAK LTD
Revenue,Adult Services,Adult Social Care,Learning Disab Supp (to be reallocated),5105658956,05.01.2018,Plean Dene,Operational Equipment,45.96,BETA PAK LTD
Revenue,Adult Services,Adult Social Care,Learning Disab Supp (to be reallocated),5105658330,02.01.2018,31 Carter Avenue,Operational Equipment,-580.22,BETA PAK LTD
Revenue,Adult Services,Adult Social Care,Learning Disab Supp (to be reallocated),5105658241,02.01.2018,31 Carter Avenue,Operational Equipment,580.22,BETA PAK LTD
Revenue,Adult Services,Adult Social Care,Learning Disab Supp (to be reallocated),5105657027,05.01.2018,Plean Dene,Operational Equipment,101.39,BETA PAK LTD
Revenue,Adult Services,Adult Social Care,Learning Disab Supp (to be reallocated),5105658865,10.01.2018,31 Carter Avenue,Operational Equipment,580.22,BETA PAK LTD
Revenue,Adult Services,Adult Social Care,Learning Disab Supp (to be reallocated),5105658956,05.01.2018,Plean Dene,Operational Equipment,104.82,BETA PAK LTD
Revenue,Adult Services,Adult Social Care,Central Codes (to be reallocated),5105658238,03.01.2018,Adelaide Resource Centre,Clothing & Laundry,165.97,BETA PAK LTD
Revenue,Adult Services,Adult Social Care,Central Codes (to be reallocated),5105658218,03.01.2018,Adelaide Resource Centre,Clothing & Laundry,46.14,BETA PAK LTD
Revenue,Childrens Services,Children's & Education Services,Family Support Services,5105658812,05.01.2018,Short Breaks,Advertising & Publicity,37.64,BETA PAK LTD
Revenue,Adult Services,Adult Social Care,Learning Disab Supp (to be reallocated),5105658915,12.01.2018,Overbrook,Operational Equipment,11.62,BETA PAK LTD
Revenue,Adult Services,Adult Social Care,Learning Disab Supp (to be reallocated),5105659820,19.01.2018,The Laurels,Operational Equipment,421.58,BETA PAK LTD
Revenue,Adult Services,Adult Social Care,Learning Disab Supp (to be reallocated),5105660199,19.01.2018,The Laurels,Operational Equipment,64.23,BETA PAK LTD
Revenue,Adult Services,Adult Social Care,Learning Disab Supp (to be reallocated),5105659605,12.01.2018,Overbrook,Operational Equipment,-11.62,BETA PAK LTD
Revenue,Adult Services,Adult Social Care,Learning Disab Supp (to be reallocated),5105659607,19.01.2018,Overbrook,Operational Equipment,11.62,BETA PAK LTD
Revenue,Adult Services,Adult Social Care,Central Codes (to be reallocated),5105658392,10.01.2018,Adelaide Resource Centre,Consumable Cleaning Materials,603.24,BETA PAK LTD
Revenue,Adult Services,Adult Social Care,Central Codes (to be reallocated),5105658802,05.01.2018,Gouldings Resource Centre,Consumable Cleaning Materials,51.38,BETA PAK LTD
Revenue,Adult Services,Adult Social Care,Central Codes (to be reallocated),5105658962,05.01.2018,Gouldings Resource Centre,Consumable Cleaning Materials,5.3,BETA PAK LTD
Revenue,Adult Services,Adult Social Care,Central Codes (to be reallocated),5105658864,10.01.2018,Adelaide Resource Centre,Consumable Cleaning Materials,67.22,BETA PAK LTD
Revenue,Adult Services,Adult Social Care,Central Codes (to be reallocated),5105658961,10.01.2018,Adelaide Resource Centre,Consumable Cleaning Materials,20.25,BETA PAK LTD
Revenue,Adult Services,Adult Social Care,Central Codes (to be reallocated),5105658872,10.01.2018,Adelaide Resource Centre,Consumable Cleaning Materials,31.01,BETA PAK LTD
Revenue,Adult Services,Adult Social Care,Central Codes (to be reallocated),5105658885,10.01.2018,Adelaide Resource Centre,Consumable Cleaning Materials,62.02,BETA PAK LTD
Revenue,Adult Services,Adult Social Care,Central Codes (to be reallocated),5105661156,31.01.2018,Adelaide Resource Centre,Consumable Cleaning Materials,27.45,BETA PAK LTD
Revenue,Adult Services,Adult Social Care,Central Codes (to be reallocated),5105660626,24.01.2018,Adelaide Resource Centre,Consumable Cleaning Materials,44.28,BETA PAK LTD
Revenue,Adult Services,Adult Social Care,Central Codes (to be reallocated),5105659754,17.01.2018,Adelaide Resource Centre,Consumable Cleaning Materials,625.2,BETA PAK LTD
Revenue,Adult Services,Adult Social Care,Central Codes (to be reallocated),5105660622,24.01.2018,Gouldings Resource Centre,Consumable Cleaning Materials,49.38,BETA PAK LTD
Revenue,Place,Cultural and Related Services,Recreation and Sport,5105660962,26.01.2018,Westridge Squash Courts,Stock Purchases,73.14,3663 (BFS GROUP LTD)
Revenue,Place,Cultural and Related Services,Recreation and Sport,5105659545,19.01.2018,Westridge Squash Courts,Stock Purchases,53.94,3663 (BFS GROUP LTD)
Revenue,Place,Cultural and Related Services,Recreation and Sport,5105658421,03.01.2018,The Heights,Stock Purchases,374.94,3663 (BFS GROUP LTD)
Revenue,Place,Cultural and Related Services,Recreation and Sport,5105658419,03.01.2018,The Heights,Stock Purchases,59.23,3663 (BFS GROUP LTD)
Revenue,Place,Cultural and Related Services,Recreation and Sport,5105660961,26.01.2018,The Heights,Stock Purchases,84.89,3663 (BFS GROUP LTD)
Revenue,Place,Cultural and Related Services,Recreation and Sport,5105660784,26.01.2018,The Heights,Stock Purchases,180.19,3663 (BFS GROUP LTD)
Revenue,Place,Cultural and Related Services,Recreation and Sport,5105660784,26.01.2018,The Heights,Stock Purchases,130.38,3663 (BFS GROUP LTD)
Revenue,Place,Cultural and Related Services,Recreation and Sport,5105660961,26.01.2018,The Heights,Stock Purchases,6.32,3663 (BFS GROUP LTD)
Revenue,Place,Cultural and Related Services,Recreation and Sport,5105660963,26.01.2018,The Heights,Stock Purchases,150.07,3663 (BFS GROUP LTD)
Revenue,Place,Cultural and Related Services,Recreation and Sport,5105660992,26.01.2018,The Heights,Stock Purchases,243.33,3663 (BFS GROUP LTD)
Revenue,Adult Services,Adult Social Care,Central Codes (to be reallocated),5105658728,05.01.2018,Adelaide Resource Centre,Catering Purchases,352.46,3663 (BFS GROUP LTD)
Revenue,Adult Services,Adult Social Care,Central Codes (to be reallocated),5105658729,05.01.2018,Adelaide Resource Centre,Catering Purchases,180.8,3663 (BFS GROUP LTD)
Revenue,Adult Services,Adult Social Care,Central Codes (to be reallocated),5105658729,05.01.2018,Adelaide Resource Centre,Catering Purchases,17.52,3663 (BFS GROUP LTD)
Revenue,Adult Services,Adult Social Care,Central Codes (to be reallocated),5105658728,05.01.2018,Adelaide Resource Centre,Catering Purchases,7.13,3663 (BFS GROUP LTD)
Revenue,Adult Services,Adult Social Care,Central Codes (to be reallocated),5105659240,10.01.2018,Gouldings Resource Centre,Catering Purchases,27.78,3663 (BFS GROUP LTD)
Revenue,Adult Services,Adult Social Care,Central Codes (to be reallocated),5105660767,24.01.2018,Gouldings Resource Centre,Catering Purchases,337.82,3663 (BFS GROUP LTD)
Revenue,Adult Services,Adult Social Care,Central Codes (to be reallocated),5105660969,26.01.2018,Gouldings Resource Centre,Catering Purchases,404.28,3663 (BFS GROUP LTD)
Revenue,Adult Services,Adult Social Care,Central Codes (to be reallocated),5105660078,19.01.2018,Adelaide Resource Centre,Catering Purchases,298.49,3663 (BFS GROUP LTD)
Revenue,Adult Services,Adult Social Care,Central Codes (to be reallocated),5105660079,19.01.2018,Adelaide Resource Centre,Catering Purchases,176.01,3663 (BFS GROUP LTD)
Revenue,Adult Services,Adult Social Care,Central Codes (to be reallocated),5105661177,31.01.2018,Adelaide Resource Centre,Catering Purchases,102.61,3663 (BFS GROUP LTD)
Revenue,Adult Services,Adult Social Care,Central Codes (to be reallocated),5105661177,31.01.2018,Adelaide Resource Centre,Catering Purchases,12.54,3663 (BFS GROUP LTD)
Revenue,Adult Services,Adult Social Care,Central Codes (to be reallocated),5105660079,19.01.2018,Adelaide Resource Centre,Catering Purchases,15.71,3663 (BFS GROUP LTD)
Revenue,Adult Services,Adult Social Care,Central Codes (to be reallocated),5105660078,19.01.2018,Adelaide Resource Centre,Catering Purchases,43.16,3663 (BFS GROUP LTD)
Revenue,Adult Services,Adult Social Care,Central Codes (to be reallocated),5105660070,19.01.2018,Adelaide Resource Centre,Catering Purchases,169.18,3663 (BFS GROUP LTD)
Revenue,Adult Services,Adult Social Care,Central Codes (to be reallocated),5105660071,19.01.2018,Adelaide Resource Centre,Catering Purchases,200.25,3663 (BFS GROUP LTD)
Revenue,Adult Services,Adult Social Care,Central Codes (to be reallocated),5105659842,17.01.2018,Adelaide Resource Centre,Catering Purchases,81.01,3663 (BFS GROUP LTD)
Revenue,Adult Services,Adult Social Care,Central Codes (to be reallocated),5105659840,17.01.2018,Adelaide Resource Centre,Catering Purchases,131.9,3663 (BFS GROUP LTD)
Revenue,Adult Services,Adult Social Care,Central Codes (to be reallocated),5105660071,19.01.2018,Adelaide Resource Centre,Catering Purchases,42.22,3663 (BFS GROUP LTD)
Revenue,Adult Services,Adult Social Care,Central Codes (to be reallocated),5105660070,19.01.2018,Adelaide Resource Centre,Catering Purchases,6.7,3663 (BFS GROUP LTD)
Revenue,Adult Services,Adult Social Care,Central Codes (to be reallocated),5105661176,31.01.2018,Adelaide Resource Centre,Catering Purchases,-25.86,3663 (BFS GROUP LTD)
Revenue,Adult Services,Adult Social Care,Central Codes (to be reallocated),5105660717,24.01.2018,Gouldings Resource Centre,Catering Purchases,453.38,3663 (BFS GROUP LTD)
Revenue,Adult Services,Adult Social Care,Central Codes (to be reallocated),5105660966,26.01.2018,Gouldings Resource Centre,Catering Purchases,171.68,3663 (BFS GROUP LTD)
Revenue,Adult Services,Adult Social Care,Central Codes (to be reallocated),5105660717,24.01.2018,Gouldings Resource Centre,Catering Purchases,39.25,3663 (BFS GROUP LTD)
Revenue,Adult Services,Adult Social Care,Central Codes (to be reallocated),5105660767,24.01.2018,Gouldings Resource Centre,Catering Purchases,28.72,3663 (BFS GROUP LTD)
Revenue,Adult Services,Adult Social Care,Central Codes (to be reallocated),5105660969,26.01.2018,Gouldings Resource Centre,Catering Purchases,26.29,3663 (BFS GROUP LTD)
Revenue,Adult Services,Adult Social Care,Central Codes (to be reallocated),5105658235,03.01.2018,Gouldings Resource Centre,Catering Purchases,11.43,3663 (BFS GROUP LTD)
Revenue,Adult Services,Adult Social Care,Central Codes (to be reallocated),5105658235,03.01.2018,Gouldings Resource Centre,Catering Purchases,486.75,3663 (BFS GROUP LTD)
Revenue,Adult Services,Adult Social Care,Central Codes (to be reallocated),5105658713,05.01.2018,Gouldings Resource Centre,Catering Purchases,306.67,3663 (BFS GROUP LTD)
Revenue,Adult Services,Adult Social Care,Central Codes (to be reallocated),5105658713,05.01.2018,Gouldings Resource Centre,Catering Purchases,40.4,3663 (BFS GROUP LTD)
Revenue,Adult Services,Adult Social Care,Assistive Equipment & Technology,5105659014,10.01.2018,Community Equipment Store,"Refuse Collection, Disposal and Recycling Costs",144.2,BIFFA WASTE SERVICES LTD
Revenue,Adult Services,Adult Social Care,Commissioning & Service Delivery,5105659014,10.01.2018,Stores Adult Social Care,"Refuse Collection, Disposal and Recycling Costs",10.78,BIFFA WASTE SERVICES LTD
Revenue,Resources,Central Services,Support Services,5105659014,10.01.2018,Corporate Stores,"Refuse Collection, Disposal and Recycling Costs",189.68,BIFFA WASTE SERVICES LTD
Revenue,Adult Services,Adult Social Care,Central Codes (to be reallocated),5105659014,10.01.2018,Mental Health Day Services,"Refuse Collection, Disposal and Recycling Costs",48.3,BIFFA WASTE SERVICES LTD
Revenue,Adult Services,Adult Social Care,Learning Disab Supp (to be reallocated),5105659014,10.01.2018,Saxonbury,"Refuse Collection, Disposal and Recycling Costs",110.25,BIFFA WASTE SERVICES LTD
Revenue,Adult Services,Adult Social Care,Learning Disab Supp (to be reallocated),5105659014,10.01.2018,Seagulls,"Refuse Collection, Disposal and Recycling Costs",115.75,BIFFA WASTE SERVICES LTD
Revenue,Place,Cultural and Related Services,Recreation and Sport,5105659014,10.01.2018,Westridge Squash Courts,"Refuse Collection, Disposal and Recycling Costs",37.89,BIFFA WASTE SERVICES LTD
Revenue,Childrens Services,Children's & Education Services,Management & Support Services,5105659014,10.01.2018,Specialist Service Business Admin,"Refuse Collection, Disposal and Recycling Costs",220.5,BIFFA WASTE SERVICES LTD
Revenue,Place,Cultural and Related Services,Culture and Heritage,5105659014,10.01.2018,Dinosaur Isle Museum (Sandown Geology),"Refuse Collection, Disposal and Recycling Costs",32.55,BIFFA WASTE SERVICES LTD
Revenue,Place,Highways and Transport Services,"Airports, Harbours & Toll Facilities",5105659014,10.01.2018,Ferry Management,"Refuse Collection, Disposal and Recycling Costs",115.75,BIFFA WASTE SERVICES LTD
Revenue,Place,Cultural and Related Services,Recreation and Sport,5105659014,10.01.2018,Ryde Harbour,"Refuse Collection, Disposal and Recycling Costs",55.3,BIFFA WASTE SERVICES LTD
Revenue,Regeneration,Central Services,Support Services,5105659014,10.01.2018,"Enterprise House, Newport","Refuse Collection, Disposal and Recycling Costs",213.5,BIFFA WASTE SERVICES LTD
Revenue,Childrens Services,Children's & Education Services,Other Education and Community Budget,5105659014,10.01.2018,SEND Independent Advice & Support,"Refuse Collection, Disposal and Recycling Costs",47,BIFFA WASTE SERVICES LTD
Revenue,Adult Services,Adult Social Care,Learning Disab Supp (to be reallocated),5105659014,10.01.2018,40 Venner Avenue,"Refuse Collection, Disposal and Recycling Costs",115.75,BIFFA WASTE SERVICES LTD
Revenue,Place,Cultural and Related Services,Library Service,5105659014,10.01.2018,Public Libraries Central,"Refuse Collection, Disposal and Recycling Costs",60.55,BIFFA WASTE SERVICES LTD
Revenue,Childrens Services,Children's & Education Services,Children Looked After,5105659014,10.01.2018,Beaulieu House,"Refuse Collection, Disposal and Recycling Costs",249.72,BIFFA WASTE SERVICES LTD
Revenue,Place,Cultural and Related Services,Recreation and Sport,5105659014,10.01.2018,Medina Leisure Centre,"Refuse Collection, Disposal and Recycling Costs",420.35,BIFFA WASTE SERVICES LTD
Revenue,Regeneration,Central Services,Support Services,5105659014,10.01.2018,"Civic Centre,Sandown","Refuse Collection, Disposal and Recycling Costs",195.6,BIFFA WASTE SERVICES LTD
Revenue,Place,Cultural and Related Services,Recreation and Sport,5105659014,10.01.2018,The Heights,"Refuse Collection, Disposal and Recycling Costs",361.2,BIFFA WASTE SERVICES LTD
Revenue,Place,Cultural and Related Services,Culture and Heritage,5105659014,10.01.2018,Archaeology,"Refuse Collection, Disposal and Recycling Costs",7,BIFFA WASTE SERVICES LTD
Revenue,Adult Services,Adult Social Care,Learning Disab Supp (to be reallocated),5105659014,10.01.2018,31 Carter Avenue,"Refuse Collection, Disposal and Recycling Costs",115.74,BIFFA WASTE SERVICES LTD
Revenue,Adult Services,Adult Social Care,Learning Disab Supp (to be reallocated),5105659014,10.01.2018,Plean Dene,"Refuse Collection, Disposal and Recycling Costs",224.5,BIFFA WASTE SERVICES LTD
Revenue,Regeneration,Central Services,Support Services,5105659014,10.01.2018,"Westridge, Ryde","Refuse Collection, Disposal and Recycling Costs",75.78,BIFFA WASTE SERVICES LTD
Revenue,Place,Cultural and Related Services,Culture and Heritage,5105659014,10.01.2018,Cothey Bottom Store RYDE,"Refuse Collection, Disposal and Recycling Costs",37.89,BIFFA WASTE SERVICES LTD
Revenue,Place,Planning services,Management & Support Services,5105659014,10.01.2018,Planning Management,"Refuse Collection, Disposal and Recycling Costs",333.5,BIFFA WASTE SERVICES LTD
Revenue,Place,Environmental & Regulatory Services,"Cemetery, Cremation & Mortuary Services",5105659014,10.01.2018,Crematorium,"Refuse Collection, Disposal and Recycling Costs",213.5,BIFFA WASTE SERVICES LTD
Revenue,Place,Cultural and Related Services,Open Spaces,5105659014,10.01.2018,Fort Victoria,"Refuse Collection, Disposal and Recycling Costs",172.2,BIFFA WASTE SERVICES LTD
Revenue,Regeneration,Central Services,Support Services,5105659014,10.01.2018,"Jubilee Stores, Newport","Refuse Collection, Disposal and Recycling Costs",115.75,BIFFA WASTE SERVICES LTD
Revenue,Place,Highways and Transport Services,"Airports, Harbours & Toll Facilities",5105659014,10.01.2018,Newport Harbour Account,"Refuse Collection, Disposal and Recycling Costs",435.24,BIFFA WASTE SERVICES LTD
Revenue,Place,Highways and Transport Services,"Airports, Harbours & Toll Facilities",5105659014,10.01.2018,Newport Harbour Account,"Refuse Collection, Disposal and Recycling Costs",213.08,BIFFA WASTE SERVICES LTD
Revenue,Regeneration,Central Services,Support Services,5105659014,10.01.2018,17 Fairlee Road,"Refuse Collection, Disposal and Recycling Costs",644.42,BIFFA WASTE SERVICES LTD
Revenue,Adult Services,Adult Social Care,Learning Disab Supp (to be reallocated),5105659014,10.01.2018,The Laurels,"Refuse Collection, Disposal and Recycling Costs",61.38,BIFFA WASTE SERVICES LTD
Revenue,Adult Services,Adult Social Care,Learning Disab Supp (to be reallocated),5105659014,10.01.2018,Overbrook,"Refuse Collection, Disposal and Recycling Costs",101.2,BIFFA WASTE SERVICES LTD
Revenue,Adult Services,Adult Social Care,Learning Disab Supp (to be reallocated),5105659014,10.01.2018,The Laurels,"Refuse Collection, Disposal and Recycling Costs",61.37,BIFFA WASTE SERVICES LTD
Revenue,Childrens Services,Children's & Education Services,Other Education and Community Budget,5105659014,10.01.2018,Learning & Development Running Costs,"Refuse Collection, Disposal and Recycling Costs",68.95,BIFFA WASTE SERVICES LTD
Revenue,Adult Services,Adult Social Care,Central Codes (to be reallocated),5105659018,10.01.2018,Gouldings Resource Centre,"Refuse Collection, Disposal and Recycling Costs",127.2,BIFFA WASTE SERVICES LTD
Revenue,Adult Services,Adult Social Care,Central Codes (to be reallocated),5105659016,10.01.2018,Gouldings Resource Centre,"Refuse Collection, Disposal and Recycling Costs",382.8,BIFFA WASTE SERVICES LTD
Revenue,Place,Fire & Rescue Services,Fire fighting and Rescue Operations,5105659014,10.01.2018,Fire Operations,"Refuse Collection, Disposal and Recycling Costs",479.77,BIFFA WASTE SERVICES LTD
Revenue,Childrens Services,Children's & Education Services,Children Looked After,5105659952,19.01.2018,Leaving Care Costs,Support Children,401,REDACTED PERSONAL DATA
Revenue,Resources,Central Services,Support Services,5105660284,24.01.2018,Staff Benefits,Payment to Private Contractors,175,BLACKBERRY LANE PRE-SCHOOL
Revenue,Resources,Central Services,Support Services,5105660284,24.01.2018,Staff Benefits,Payment to Private Contractors,243,BLACKBERRY LANE PRE-SCHOOL
Revenue,Childrens Services,Children's & Education Services,Children Looked After,5105659811,17.01.2018,Purchased Fostering,Charges from Independent Providers,"3,485.33",BLUE SKY FOSTERING LTD
Revenue,Place,Cultural and Related Services,Recreation and Sport,5105658910,05.01.2018,Medina Leisure Centre,Payment to Private Contractors,650,BLUELINE SECURITY MANAGEMENT LTD
Revenue,Childrens Services,Children's & Education Services,Children Looked After,5105659044,10.01.2018,Beaulieu House,Operational Equipment,36.95,BOC LTD
Revenue,Childrens Services,Children's & Education Services,Family Support Services,5105660706,24.01.2018,Short Breaks,Charges from Independent Providers,395.83,BODSTER EQUINE ASSISTED LEARN CIC
Revenue,Adult Services,Adult Social Care,Learning Disab Supp (to be reallocated),5105658396,10.01.2018,40 Venner Avenue,Catering Purchases,8.99,BOOKER CASH & CARRY LTD
Revenue,Adult Services,Adult Social Care,Learning Disab Supp (to be reallocated),5105659075,10.01.2018,40 Venner Avenue,Catering Purchases,14.69,BOOKER CASH & CARRY LTD
Revenue,Adult Services,Adult Social Care,Learning Disab Supp (to be reallocated),5105658253,05.01.2018,Plean Dene,Catering Purchases,6.99,BOOKER CASH & CARRY LTD
Revenue,Adult Services,Adult Social Care,Learning Disab Supp (to be reallocated),5105658253,05.01.2018,Plean Dene,Catering Purchases,196.02,BOOKER CASH & CARRY LTD
Revenue,Adult Services,Adult Social Care,Learning Disab Supp (to be reallocated),5105659025,10.01.2018,Plean Dene,Catering Purchases,217.13,BOOKER CASH & CARRY LTD
Revenue,Adult Services,Adult Social Care,Learning Disab Supp (to be reallocated),5105658967,10.01.2018,Plean Dene,Catering Purchases,6.79,BOOKER CASH & CARRY LTD
Revenue,Adult Services,Adult Social Care,Learning Disab Supp (to be reallocated),5105659206,26.01.2018,Plean Dene,Catering Purchases,217.47,BOOKER CASH & CARRY LTD
Revenue,Adult Services,Adult Social Care,Learning Disab Supp (to be reallocated),5105659220,10.01.2018,Plean Dene,Catering Purchases,10.18,BOOKER CASH & CARRY LTD
Revenue,Adult Services,Adult Social Care,Learning Disab Supp (to be reallocated),5105659150,10.01.2018,Plean Dene,Catering Purchases,11.19,BOOKER CASH & CARRY LTD
Revenue,Adult Services,Adult Social Care,Learning Disab Supp (to be reallocated),5105659151,10.01.2018,Plean Dene,Catering Purchases,13.68,BOOKER CASH & CARRY LTD
Revenue,Adult Services,Adult Social Care,Learning Disab Supp (to be reallocated),5105659152,10.01.2018,Plean Dene,Catering Purchases,4.49,BOOKER CASH & CARRY LTD
Revenue,Adult Services,Adult Social Care,Learning Disab Supp (to be reallocated),5105658404,05.01.2018,Plean Dene,Catering Purchases,20.62,BOOKER CASH & CARRY LTD
Revenue,Adult Services,Adult Social Care,Learning Disab Supp (to be reallocated),5105659152,10.01.2018,Plean Dene,Catering Purchases,4.29,BOOKER CASH & CARRY LTD
Revenue,Adult Services,Adult Social Care,Learning Disab Supp (to be reallocated),5105659151,10.01.2018,Plean Dene,Catering Purchases,1.49,BOOKER CASH & CARRY LTD
Revenue,Adult Services,Adult Social Care,Learning Disab Supp (to be reallocated),5105659206,26.01.2018,Plean Dene,Catering Purchases,11.97,BOOKER CASH & CARRY LTD
Revenue,Adult Services,Adult Social Care,Learning Disab Supp (to be reallocated),5105661235,31.01.2018,Plean Dene,Catering Purchases,16.36,BOOKER CASH & CARRY LTD
Revenue,Adult Services,Adult Social Care,Learning Disab Supp (to be reallocated),5105660707,31.01.2018,Plean Dene,Catering Purchases,23.67,BOOKER CASH & CARRY LTD
Revenue,Adult Services,Adult Social Care,Learning Disab Supp (to be reallocated),5105660705,31.01.2018,Plean Dene,Catering Purchases,7.45,BOOKER CASH & CARRY LTD
Revenue,Adult Services,Adult Social Care,Learning Disab Supp (to be reallocated),5105660709,31.01.2018,Plean Dene,Catering Purchases,140.83,BOOKER CASH & CARRY LTD
Revenue,Adult Services,Adult Social Care,Learning Disab Supp (to be reallocated),5105659624,31.01.2018,Plean Dene,Catering Purchases,31.36,BOOKER CASH & CARRY LTD
Revenue,Adult Services,Adult Social Care,Learning Disab Supp (to be reallocated),5105659645,26.01.2018,Plean Dene,Catering Purchases,6.99,BOOKER CASH & CARRY LTD
Revenue,Adult Services,Adult Social Care,Learning Disab Supp (to be reallocated),5105659733,17.01.2018,Plean Dene,Catering Purchases,28,BOOKER CASH & CARRY LTD
Revenue,Adult Services,Adult Social Care,Learning Disab Supp (to be reallocated),5105660709,31.01.2018,Plean Dene,Catering Purchases,9.57,BOOKER CASH & CARRY LTD
Revenue,Adult Services,Adult Social Care,Learning Disab Supp (to be reallocated),5105661237,31.01.2018,Overbrook,Catering Purchases,24.99,BOOKER CASH & CARRY LTD
Revenue,Adult Services,Adult Social Care,Learning Disab Supp (to be reallocated),5105661237,31.01.2018,Overbrook,Catering Purchases,334.17,BOOKER CASH & CARRY LTD
Revenue,Public Health,Public Health,Sexual Health,5105660140,19.01.2018,STI Tests & Treatment,Payment to Private Contractors,16.08,BOOTS THE CHEMIST LTD (Ryde)
Revenue,Public Health,Public Health,Sexual Health,5105660140,19.01.2018,STI Tests & Treatment,Payment to Private Contractors,60,BOOTS THE CHEMIST LTD (Ryde)
Revenue,Public Health,Public Health,Smoking & Tobacco,5105659700,17.01.2018,Stop Smoking Services & Interventions,Payment to Private Contractors,22.21,BOOTS THE CHEMIST LTD (Ryde)
Revenue,Public Health,Public Health,Smoking & Tobacco,5105659700,17.01.2018,Stop Smoking Services & Interventions,Payment to Private Contractors,8,BOOTS THE CHEMIST LTD (Ryde)
Revenue,Public Health,Public Health,Substance Misuse,5105660140,19.01.2018,Drug Misuse Adult- Treatment,Payment to Private Contractors,320,BOOTS THE CHEMIST LTD (Ryde)
Revenue,Public Health,Public Health,Substance Misuse,5105660140,19.01.2018,Drug Misuse Adult- Treatment,Payment to Private Contractors,430.5,BOOTS THE CHEMIST LTD (Ryde)
Revenue,Public Health,Public Health,Sexual Health,5105660140,19.01.2018,Contraception,Payment to Private Contractors,322.5,BOOTS THE CHEMIST LTD (Ryde)
Revenue,Public Health,Public Health,Sexual Health,5105660140,19.01.2018,Contraception,Payment to Private Contractors,98.35,BOOTS THE CHEMIST LTD (Ryde)
Revenue,Public Health,Public Health,Sexual Health,5105660140,19.01.2018,Contraception,Payment to Private Contractors,36.4,BOOTS THE CHEMIST LTD (Ryde)
Revenue,Public Health,Public Health,Substance Misuse,5105660173,19.01.2018,Drug Misuse Adult- Treatment,Payment to Private Contractors,208,BOOTS UK LTD (107 HIGH ST SANDOWN)
Revenue,Public Health,Public Health,Substance Misuse,5105660173,19.01.2018,Drug Misuse Adult- Treatment,Payment to Private Contractors,56,BOOTS UK LTD (107 HIGH ST SANDOWN)
Revenue,Public Health,Public Health,Substance Misuse,5105660172,19.01.2018,Drug Misuse Adult- Treatment,Payment to Private Contractors,216,BOOTS UK LTD (COWES)
Revenue,Public Health,Public Health,Substance Misuse,5105660172,19.01.2018,Drug Misuse Adult- Treatment,Payment to Private Contractors,52.5,BOOTS UK LTD (COWES)
Revenue,Public Health,Public Health,Sexual Health,5105660172,19.01.2018,Contraception,Payment to Private Contractors,28.1,BOOTS UK LTD (COWES)
Revenue,Public Health,Public Health,Sexual Health,5105660172,19.01.2018,Contraception,Payment to Private Contractors,10.4,BOOTS UK LTD (COWES)
Revenue,Public Health,Public Health,Sexual Health,5105660172,19.01.2018,Contraception,Payment to Private Contractors,86,BOOTS UK LTD (COWES)
Revenue,Public Health,Public Health,Substance Misuse,5105659699,17.01.2018,Drug Misuse Adult- Treatment,Payment to Private Contractors,31.73,BOOTS UK LTD (FRESHWATER)
Revenue,Public Health,Public Health,Substance Misuse,5105659699,17.01.2018,Drug Misuse Adult- Treatment,Payment to Private Contractors,4,BOOTS UK LTD (FRESHWATER)
Revenue,Public Health,Public Health,Sexual Health,5105660175,19.01.2018,Contraception,Payment to Private Contractors,5.2,BOOTS UK LTD (FRESHWATER)
Revenue,Public Health,Public Health,Sexual Health,5105660175,19.01.2018,Contraception,Payment to Private Contractors,21.5,BOOTS UK LTD (FRESHWATER)
Revenue,Public Health,Public Health,Substance Misuse,5105660142,19.01.2018,Drug Misuse Adult- Treatment,Payment to Private Contractors,322,BOOTS UK LTD (NEWPORT)
Revenue,Public Health,Public Health,Substance Misuse,5105660142,19.01.2018,Drug Misuse Adult- Treatment,Payment to Private Contractors,161,BOOTS UK LTD (NEWPORT)
Revenue,Public Health,Public Health,Sexual Health,5105660142,19.01.2018,Contraception,Payment to Private Contractors,224.8,BOOTS UK LTD (NEWPORT)
Revenue,Public Health,Public Health,Sexual Health,5105660142,19.01.2018,Contraception,Payment to Private Contractors,62.4,BOOTS UK LTD (NEWPORT)
Revenue,Public Health,Public Health,Sexual Health,5105660142,19.01.2018,Contraception,Payment to Private Contractors,623.5,BOOTS UK LTD (NEWPORT)
Revenue,Public Health,Public Health,Substance Misuse,5105660144,19.01.2018,Drug Misuse Adult- Treatment,Payment to Private Contractors,16,BOOTS UK LTD (SANDOWN LARGE STORE)
Revenue,Public Health,Public Health,Substance Misuse,5105660144,19.01.2018,Drug Misuse Adult- Treatment,Payment to Private Contractors,17.5,BOOTS UK LTD (SANDOWN LARGE STORE)
Revenue,Public Health,Public Health,Sexual Health,5105660144,19.01.2018,Contraception,Payment to Private Contractors,14.05,BOOTS UK LTD (SANDOWN LARGE STORE)
Revenue,Public Health,Public Health,Sexual Health,5105660144,19.01.2018,Contraception,Payment to Private Contractors,21.5,BOOTS UK LTD (SANDOWN LARGE STORE)
Revenue,Public Health,Public Health,Substance Misuse,5105660143,19.01.2018,Drug Misuse Adult- Treatment,Payment to Private Contractors,46,BOOTS UK LTD (SHANKLIN)
Revenue,Public Health,Public Health,Substance Misuse,5105660171,19.01.2018,Drug Misuse Adult- Treatment,Payment to Private Contractors,192,BOOTS UK LTD (TOWER HOUSE)
Revenue,Public Health,Public Health,Substance Misuse,5105660171,19.01.2018,Drug Misuse Adult- Treatment,Payment to Private Contractors,49,BOOTS UK LTD (TOWER HOUSE)
Revenue,Public Health,Public Health,Sexual Health,5105660171,19.01.2018,Contraception,Payment to Private Contractors,28.1,BOOTS UK LTD (TOWER HOUSE)
Revenue,Public Health,Public Health,Sexual Health,5105660171,19.01.2018,Contraception,Payment to Private Contractors,10.4,BOOTS UK LTD (TOWER HOUSE)
Revenue,Public Health,Public Health,Sexual Health,5105660171,19.01.2018,Contraception,Payment to Private Contractors,86,BOOTS UK LTD (TOWER HOUSE)
Revenue,Public Health,Public Health,Substance Misuse,5105660141,19.01.2018,Drug Misuse Adult- Treatment,Payment to Private Contractors,396,BOOTS UK LTD
Revenue,Public Health,Public Health,Substance Misuse,5105660141,19.01.2018,Drug Misuse Adult- Treatment,Payment to Private Contractors,17.5,BOOTS UK LTD
Revenue,Public Health,Public Health,Substance Misuse,5105660174,19.01.2018,Drug Misuse Adult- Treatment,Payment to Private Contractors,44,BOOTS UK LTD (YLB BEMBRIDGE)
Revenue,Public Health,Public Health,Substance Misuse,5105660174,19.01.2018,Drug Misuse Adult- Treatment,Payment to Private Contractors,3.5,BOOTS UK LTD (YLB BEMBRIDGE)
Revenue,Childrens Services,Children's & Education Services,Family Support Services,5105658835,05.01.2018,S17 Child Protection,Professional Services,270.81,BOSTICO INTERNATIONAL
Revenue,Childrens Services,Children's & Education Services,Youth Justice,5105660746,24.01.2018,Youth Offending Team,Professional Services,217.38,BOSTICO INTERNATIONAL
Revenue,Childrens Services,Children's & Education Services,Safeguarding Children/Young Peoples Svs,5105657106,10.01.2018,Children In Need 1,Professional Services,466.89,BOSTICO INTERNATIONAL
Revenue,Childrens Services,Children's & Education Services,Children Looked After,5105658838,24.01.2018,Support for Looked After Children,Support Children,272.52,BOSTICO INTERNATIONAL
Revenue,Childrens Services,Children's & Education Services,Children Looked After,5105661064,31.01.2018,Support for Looked After Children,Support Children,275.52,BOSTICO INTERNATIONAL
Revenue,Childrens Services,Children's & Education Services,Children Looked After,5105660672,24.01.2018,Purchased Fostering,Payments to Other Local Authorities,793.65,BOURNEMOUTH BOROUGH COUNCIL
Revenue,Childrens Services,Adult Social Care,Information & Early Intervention,5105656685,05.01.2018,Adult Social Care - Workforce Development,Training,"1,025.00",BOURNEMOUTH UNIVERSITY
Revenue,Childrens Services,Adult Social Care,Information & Early Intervention,5105656686,05.01.2018,Adult Social Care - Workforce Development,Training,"1,025.00",BOURNEMOUTH UNIVERSITY
Revenue,Childrens Services,Adult Social Care,Information & Early Intervention,5105656687,05.01.2018,Adult Social Care - Workforce Development,Training,"1,025.00",BOURNEMOUTH UNIVERSITY
Revenue,Childrens Services,Adult Social Care,Information & Early Intervention,5105656722,05.01.2018,Adult Social Care - Workforce Development,Training,"1,025.00",BOURNEMOUTH UNIVERSITY
Revenue,Childrens Services,Adult Social Care,Information & Early Intervention,5105657406,05.01.2018,Adult Social Care - Workforce Development,Training,"1,025.00",BOURNEMOUTH UNIVERSITY
Revenue,Childrens Services,Adult Social Care,Information & Early Intervention,5105656680,05.01.2018,Adult Social Care - Workforce Development,Training,"1,025.00",BOURNEMOUTH UNIVERSITY
Revenue,Place,Cultural and Related Services,Library Service,5105659001,10.01.2018,Public Libraries Central,Computer Maintenance,425,BPH DATA LTD
Revenue,Childrens Services,Children's & Education Services,Services for Young People,5105659632,12.01.2018,Youth Commissioning,Payments to Voluntary and Other Associations,960.46,BRADING COMMUNITY PARTNERSHIP
Revenue,Resources,Central Services,Support Services,5105660281,24.01.2018,Staff Benefits,Payment to Private Contractors,243,BRADING PRIMARY SCHOOL
Revenue,Place,Housing Services,Homelessness,5105660265,24.01.2018,Leaseholds by LA,Accommodation Costs - Leaseholder Payments,746.81,BRAMBLE LETTINGS
